Dept/Family,Entity,Expense Type,Expense Area,Supplier,Payment Date,Amount,SME,UNSPCC Code,UNSPCC Description
"Ministry of Housing, Communities and Local Government",Homes England,BARTON GRANGE LANDSCAPES,ESTATE GENERAL MAINTENANCE,North West,02/12/2019,2254.86,L,72101500,Building maintenance and repair services
"Ministry of Housing, Communities and Local Government",Homes England,BARTON GRANGE LANDSCAPES,ESTATE GENERAL MAINTENANCE,North West,23/12/2019,751.62,L,72101500,Building maintenance and repair services
"Ministry of Housing, Communities and Local Government",Homes England,HM LAND REGISTRY,LEGAL FEES (ADMIN ONLY),Finance & Corporate Services,10/12/2019,465,G,80131500,Lease and rental of property or building
"Ministry of Housing, Communities and Local Government",Homes England,HM LAND REGISTRY,LEGAL FEES (ADMIN ONLY),Finance & Corporate Services,11/12/2019,837,G,80131500,Lease and rental of property or building
"Ministry of Housing, Communities and Local Government",Homes England,WIGAN COUNCIL,CAPITAL GRANTS TO LOCAL AUTHORITIES,North West,24/12/2019,408000,G,,Grants
"Ministry of Housing, Communities and Local Government",Homes England,WIGAN COUNCIL,CAPITAL GRANTS TO LOCAL AUTHORITIES,North West,24/12/2019,140000,G,,Grants
"Ministry of Housing, Communities and Local Government",Homes England,BARNSLEY METROPOLITAN BOROUGH COUNCIL,CAPITAL GRANTS TO LOCAL AUTHORITIES,"North East, Yorkshire & the Humber",10/12/2019,18750,G,,Grants
"Ministry of Housing, Communities and Local Government",Homes England,DONCASTER METROPOLITAN BOROUGH COUNCIL,CAPITAL GRANTS TO LOCAL AUTHORITIES,"North East, Yorkshire & the Humber",24/12/2019,160000,G,,Grants
"Ministry of Housing, Communities and Local Government",Homes England,ROTHERHAM METROPOLITAN BOROUGH COUNCIL,Help To Buy Additions,"North East, Yorkshire & the Humber",24/12/2019,31000,G,,Grants
"Ministry of Housing, Communities and Local Government",Homes England,NEWCASTLE CITY COUNCIL,CAPITAL GRANTS TO LOCAL AUTHORITIES,"North East, Yorkshire & the Humber",24/12/2019,143750,G,,Grants
"Ministry of Housing, Communities and Local Government",Homes England,DUDLEY METROPOLITAN BOROUGH COUNCIL,Help To Buy Additions,Midlands,24/12/2019,32000,G,,Grants
"Ministry of Housing, Communities and Local Government",Homes England,DUDLEY METROPOLITAN BOROUGH COUNCIL,Help To Buy Additions,Midlands,24/12/2019,27000,G,,Grants
"Ministry of Housing, Communities and Local Government",Homes England,DUDLEY METROPOLITAN BOROUGH COUNCIL,Help To Buy Additions,Midlands,24/12/2019,27000,G,,Grants
"Ministry of Housing, Communities and Local Government",Homes England,DUDLEY METROPOLITAN BOROUGH COUNCIL,Help To Buy Additions,Midlands,24/12/2019,32000,G,,Grants
"Ministry of Housing, Communities and Local Government",Homes England,DUDLEY METROPOLITAN BOROUGH COUNCIL,Help To Buy Additions,Midlands,24/12/2019,27000,G,,Grants
"Ministry of Housing, Communities and Local Government",Homes England,DUDLEY METROPOLITAN BOROUGH COUNCIL,Help To Buy Additions,Midlands,24/12/2019,6750,G,,Grants
"Ministry of Housing, Communities and Local Government",Homes England,DUDLEY METROPOLITAN BOROUGH COUNCIL,Help To Buy Additions,Midlands,24/12/2019,27000,G,,Grants
"Ministry of Housing, Communities and Local Government",Homes England,DUDLEY METROPOLITAN BOROUGH COUNCIL,Help To Buy Additions,Midlands,24/12/2019,32000,G,,Grants
"Ministry of Housing, Communities and Local Government",Homes England,DUDLEY METROPOLITAN BOROUGH COUNCIL,Help To Buy Additions,Midlands,24/12/2019,27400,G,,Grants
"Ministry of Housing, Communities and Local Government",Homes England,HARTLEPOOL BOROUGH COUNCIL,CAPITAL GRANTS TO LOCAL AUTHORITIES,"North East, Yorkshire & the Humber",20/12/2019,9250,G,,Grants
"Ministry of Housing, Communities and Local Government",Homes England,MIDDLEBROUGH COUNCIL,CAPITAL GRANTS TO LOCAL AUTHORITIES,"North East, Yorkshire & the Humber",20/12/2019,12000,G,,Grants
"Ministry of Housing, Communities and Local Government",Homes England,MIDDLEBROUGH COUNCIL,CAPITAL GRANTS TO LOCAL AUTHORITIES,"North East, Yorkshire & the Humber",20/12/2019,24000,G,,Grants
"Ministry of Housing, Communities and Local Government",Homes England,MIDDLEBROUGH COUNCIL,CAPITAL GRANTS TO LOCAL AUTHORITIES,"North East, Yorkshire & the Humber",24/12/2019,4000,G,,Grants
"Ministry of Housing, Communities and Local Government",Homes England,EAST RIDING OF YORKSHIRE COUNCIL,CAPITAL GRANTS TO LOCAL AUTHORITIES,"North East, Yorkshire & the Humber",24/12/2019,22500,G,,Grants
"Ministry of Housing, Communities and Local Government",Homes England,EAST RIDING OF YORKSHIRE COUNCIL,CAPITAL GRANTS TO LOCAL AUTHORITIES,"North East, Yorkshire & the Humber",24/12/2019,26250,G,,Grants
"Ministry of Housing, Communities and Local Government",Homes England,EAST RIDING OF YORKSHIRE COUNCIL,CAPITAL GRANTS TO LOCAL AUTHORITIES,"North East, Yorkshire & the Humber",24/12/2019,12000,G,,Grants
"Ministry of Housing, Communities and Local Government",Homes England,EAST RIDING OF YORKSHIRE COUNCIL,CAPITAL GRANTS TO LOCAL AUTHORITIES,"North East, Yorkshire & the Humber",24/12/2019,12000,G,,Grants
"Ministry of Housing, Communities and Local Government",Homes England,CITY OF YORK COUNCIL,CAPITAL GRANTS TO LOCAL AUTHORITIES,"North East, Yorkshire & the Humber",19/12/2019,10625,G,,Grants
"Ministry of Housing, Communities and Local Government",Homes England,CITY OF YORK COUNCIL,CAPITAL GRANTS TO LOCAL AUTHORITIES,"North East, Yorkshire & the Humber",24/12/2019,17000,G,,Grants
"Ministry of Housing, Communities and Local Government",Homes England,CITY OF YORK COUNCIL,CAPITAL GRANTS TO LOCAL AUTHORITIES,"North East, Yorkshire & the Humber",24/12/2019,17000,G,,Grants
"Ministry of Housing, Communities and Local Government",Homes England,DERBY CITY COUNCIL,CAPITAL GRANTS TO LOCAL AUTHORITIES,Midlands,24/12/2019,6281,G,,Grants
"Ministry of Housing, Communities and Local Government",Homes England,SHROPSHIRE COUNCIL,CAPITAL GRANTS TO LOCAL AUTHORITIES,Midlands,24/12/2019,12500,G,,Grants
"Ministry of Housing, Communities and Local Government",Homes England,NORTH SOMERSET COUNCIL,CAPITAL GRANTS TO LOCAL AUTHORITIES,Programmes,17/12/2019,82514,G,,Grants
"Ministry of Housing, Communities and Local Government",Homes England,NORTH SOMERSET COUNCIL,CAPITAL GRANTS TO LOCAL AUTHORITIES,Programmes,23/12/2019,2980919.89,G,,Grants
"Ministry of Housing, Communities and Local Government",Homes England,CORNWALL COUNCIL,CAPITAL GRANTS TO LOCAL AUTHORITIES,South West,24/12/2019,50000,G,,Grants
"Ministry of Housing, Communities and Local Government",Homes England,ASDA STORES LTD,SERVICE CHARGE,Programmes,18/12/2019,371.93,L,80131500,Lease and rental of property or building
"Ministry of Housing, Communities and Local Government",Homes England,ASDA STORES LTD,SERVICE CHARGE,Programmes,18/12/2019,821.82,L,80131500,Lease and rental of property or building
"Ministry of Housing, Communities and Local Government",Homes England,DOVER DISTRICT COUNCIL,CAPITAL GRANTS TO LOCAL AUTHORITIES,Programmes,24/12/2019,519150.21,G,,Grants
"Ministry of Housing, Communities and Local Government",Homes England,COVENTRY CITY COUNCIL,SERVICE CHARGES,Finance & Corporate Services,03/12/2019,636.2,G,80131500,Lease and rental of property or building
"Ministry of Housing, Communities and Local Government",Homes England,COVENTRY CITY COUNCIL,SERVICE CHARGES,Finance & Corporate Services,03/12/2019,1576.06,G,80131500,Lease and rental of property or building
"Ministry of Housing, Communities and Local Government",Homes England,IDVERDE LIMITED,ESTATE GENERAL MAINTENANCE,Programmes,16/12/2019,878.39,L,72101500,Building maintenance and repair services
"Ministry of Housing, Communities and Local Government",Homes England,IDVERDE LIMITED,ESTATE GENERAL MAINTENANCE,Programmes,16/12/2019,878.39,L,72101500,Building maintenance and repair services
"Ministry of Housing, Communities and Local Government",Homes England,IDVERDE LIMITED,ESTATE GENERAL MAINTENANCE,Programmes,16/12/2019,745,L,72101500,Building maintenance and repair services
"Ministry of Housing, Communities and Local Government",Homes England,LOWTHER FORESTRY GROUP,ESTATE GENERAL MAINTENANCE,North West,12/12/2019,467.56,S,72101500,Building maintenance and repair services
"Ministry of Housing, Communities and Local Government",Homes England,KNIGHT FRANK LLP,SERVICE CHARGES,Finance & Corporate Services,24/12/2019,759.66,L,80131500,Lease and rental of property or building
"Ministry of Housing, Communities and Local Government",Homes England,KNIGHT FRANK LLP,SERVICE CHARGES,Finance & Corporate Services,24/12/2019,1842.79,L,80131500,Lease and rental of property or building
"Ministry of Housing, Communities and Local Government",Homes England,IRON MOUNTAIN (UK) LTD,IRON-MOUNTAIN ARCHIVE STORAGE ,Finance & Corporate Services,10/12/2019,6508.09,L,78131800,Specialized warehousing and storage
"Ministry of Housing, Communities and Local Government",Homes England,CANTERBURY CITY COUNCIL,CAPITAL GRANTS TO LOCAL AUTHORITIES,East & South East,24/12/2019,275000,G,,Grants
"Ministry of Housing, Communities and Local Government",Homes England,MK LONDON LINK,POSTAGE/COURIERS,Finance & Corporate Services,05/12/2019,3010.66,S,78102200,Postal and small parcel and courier services
"Ministry of Housing, Communities and Local Government",Homes England,HARROGATE BOROUGH COUNCIL,CAPITAL GRANTS TO LOCAL AUTHORITIES,"North East, Yorkshire & the Humber",24/12/2019,12500,G,,Grants
"Ministry of Housing, Communities and Local Government",Homes England,NEWARK AND SHERWOOD DISTRICT COUNCIL,CAPITAL GRANTS TO LOCAL AUTHORITIES,Midlands,19/12/2019,9500,G,,Grants
"Ministry of Housing, Communities and Local Government",Homes England,NEWARK AND SHERWOOD DISTRICT COUNCIL,CAPITAL GRANTS TO LOCAL AUTHORITIES,Midlands,19/12/2019,28500,G,,Grants
"Ministry of Housing, Communities and Local Government",Homes England,NEWARK AND SHERWOOD DISTRICT COUNCIL,CAPITAL GRANTS TO LOCAL AUTHORITIES,Midlands,19/12/2019,38000,G,,Grants
"Ministry of Housing, Communities and Local Government",Homes England,NEWARK AND SHERWOOD DISTRICT COUNCIL,CAPITAL GRANTS TO LOCAL AUTHORITIES,Midlands,19/12/2019,19000,G,,Grants
"Ministry of Housing, Communities and Local Government",Homes England,SOUTH OXFORDSHIRE DISTRICT COUNCIL,PLANNING APPLICATIONS,East And South East,11/12/2019,15000,G,80131500,Lease and rental of property or building
"Ministry of Housing, Communities and Local Government",Homes England,FIRST CHOICE HOMES OLDHAM LIMITED,CAPITAL GRANTS TO RPs (NOT LA),North West,24/12/2019,9000,,,Grants
"Ministry of Housing, Communities and Local Government",Homes England,GLOUCESTER CITY HOMES,CAPITAL GRANTS TO RPs (NOT LA),South West,24/12/2019,14500,,,Grants
"Ministry of Housing, Communities and Local Government",Homes England,KARBON HOMES LIMITED - ISOS HOUSING LIMITED,CAPITAL GRANTS TO RPs (NOT LA),"North East, Yorkshire & the Humber",24/12/2019,260400,L,,Grants
"Ministry of Housing, Communities and Local Government",Homes England,KEELMAN HOMES,CAPITAL GRANTS TO RPs (NOT LA),"North East, Yorkshire & the Humber",09/12/2019,24750,,,Grants
"Ministry of Housing, Communities and Local Government",Homes England,KEELMAN HOMES,CAPITAL GRANTS TO RPs (NOT LA),"North East, Yorkshire & the Humber",24/12/2019,25125,,,Grants
"Ministry of Housing, Communities and Local Government",Homes England,BROMFORD HOME OWNERSHIP LTD,REVENUE GRANTS TO RPs,Midlands,12/12/2019,39200,,,Grants
"Ministry of Housing, Communities and Local Government",Homes England,BROMFORD HOME OWNERSHIP LTD,REVENUE GRANTS TO RPs,Midlands,20/12/2019,67100,,,Grants
"Ministry of Housing, Communities and Local Government",Homes England,BROMFORD HOME OWNERSHIP LTD,REVENUE GRANTS TO RPs,Midlands,24/12/2019,57200,,,Grants
"Ministry of Housing, Communities and Local Government",Homes England,BROMFORD HOME OWNERSHIP LTD,CAPITAL GRANTS TO RPs (NOT LA),South West,24/12/2019,13500,,,Grants
"Ministry of Housing, Communities and Local Government",Homes England,BROMFORD HOME OWNERSHIP LTD,CAPITAL GRANTS TO RPs (NOT LA),Midlands,24/12/2019,13500,,,Grants
"Ministry of Housing, Communities and Local Government",Homes England,BROMFORD HOME OWNERSHIP LTD,CAPITAL GRANTS TO RPs (NOT LA),Midlands,24/12/2019,13500,,,Grants
"Ministry of Housing, Communities and Local Government",Homes England,BROMFORD HOME OWNERSHIP LTD,REVENUE GRANTS TO RPs,Midlands,24/12/2019,68600,,,Grants
"Ministry of Housing, Communities and Local Government",Homes England,HUMANKIND CHARITY,CAPITAL GRANTS TO RPs (NOT LA),"North East, Yorkshire & the Humber",09/12/2019,16875,,,Grants
"Ministry of Housing, Communities and Local Government",Homes England,HUMANKIND CHARITY,CAPITAL GRANTS TO RPs (NOT LA),"North East, Yorkshire & the Humber",24/12/2019,2181,,,Grants
"Ministry of Housing, Communities and Local Government",Homes England,THE GUINNESS PARTNERSHIP LIMITED,CAPITAL GRANTS TO RPs (NOT LA),East & South East,20/12/2019,131250,,,Grants
"Ministry of Housing, Communities and Local Government",Homes England,THE GUINNESS PARTNERSHIP LIMITED,CAPITAL GRANTS TO RPs (NOT LA),East & South East,20/12/2019,54999,,,Grants
"Ministry of Housing, Communities and Local Government",Homes England,J & M RESIDENTIAL LETTINGS LIMITED,CAPITAL GRANTS TO RPs (NOT LA),North West,10/12/2019,12600,,,Grants
"Ministry of Housing, Communities and Local Government",Homes England,J & M RESIDENTIAL LETTINGS LIMITED,CAPITAL GRANTS TO RPs (NOT LA),North West,23/12/2019,5000,,,Grants
"Ministry of Housing, Communities and Local Government",Homes England,HELLENS RESIDENTIAL LTD,CAPITAL GRANTS TO RPs (NOT LA),"North East, Yorkshire & the Humber",17/12/2019,312000,,,Grants
"Ministry of Housing, Communities and Local Government",Homes England,HELLENS RESIDENTIAL LTD,CAPITAL GRANTS TO RPs (NOT LA),"North East, Yorkshire & the Humber",24/12/2019,238500,,,Grants
"Ministry of Housing, Communities and Local Government",Homes England,PLEXUS UK (FIRST PROJECT) LIMITED,CAPITAL GRANTS TO RPs (NOT LA),South West,18/12/2019,67500,,,Grants
"Ministry of Housing, Communities and Local Government",Homes England,SOUTH TYNESIDE HOUSING VENTURE TRUST LTD,CAPITAL GRANTS TO RPs (NOT LA),"North East, Yorkshire & the Humber",12/12/2019,16800,,,Grants
"Ministry of Housing, Communities and Local Government",Homes England,PLATFORM HOUSING GROUP LIMITED,CAPITAL GRANTS TO RPs (NOT LA),Midlands,24/12/2019,39000,,,Grants
"Ministry of Housing, Communities and Local Government",Homes England,PLATFORM HOUSING GROUP LIMITED,CAPITAL GRANTS TO RPs (NOT LA),Midlands,24/12/2019,39000,,,Grants
"Ministry of Housing, Communities and Local Government",Homes England,PLATFORM HOUSING GROUP LIMITED,CAPITAL GRANTS TO RPs (NOT LA),Midlands,24/12/2019,39000,,,Grants
"Ministry of Housing, Communities and Local Government",Homes England,PLATFORM HOUSING GROUP LIMITED,CAPITAL GRANTS TO RPs (NOT LA),Midlands,24/12/2019,39000,,,Grants
"Ministry of Housing, Communities and Local Government",Homes England,PLATFORM HOUSING GROUP LIMITED,CAPITAL GRANTS TO RPs (NOT LA),Midlands,24/12/2019,39000,,,Grants
"Ministry of Housing, Communities and Local Government",Homes England,PLATFORM HOUSING GROUP LIMITED,CAPITAL GRANTS TO RPs (NOT LA),Midlands,24/12/2019,13000,,,Grants
"Ministry of Housing, Communities and Local Government",Homes England,PLATFORM HOUSING GROUP LIMITED,CAPITAL GRANTS TO RPs (NOT LA),Midlands,24/12/2019,13000,,,Grants
"Ministry of Housing, Communities and Local Government",Homes England,PLATFORM HOUSING GROUP LIMITED,CAPITAL GRANTS TO RPs (NOT LA),Midlands,24/12/2019,13000,,,Grants
"Ministry of Housing, Communities and Local Government",Homes England,PLATFORM HOUSING GROUP LIMITED,CAPITAL GRANTS TO RPs (NOT LA),Midlands,24/12/2019,13000,,,Grants
"Ministry of Housing, Communities and Local Government",Homes England,PLATFORM HOUSING GROUP LIMITED,CAPITAL GRANTS TO RPs (NOT LA),Midlands,24/12/2019,674250,,,Grants
"Ministry of Housing, Communities and Local Government",Homes England,DEVON AND CORNWALL HOUSING LIMITED,CAPITAL GRANTS TO RPs (NOT LA),South West,10/12/2019,131250,L,,Grants
"Ministry of Housing, Communities and Local Government",Homes England,DEVON AND CORNWALL HOUSING LIMITED,CAPITAL GRANTS TO RPs (NOT LA),South West,23/12/2019,35000,L,,Grants
"Ministry of Housing, Communities and Local Government",Homes England,DEVON AND CORNWALL HOUSING LIMITED,CAPITAL GRANTS TO RPs (NOT LA),South West,24/12/2019,89600,L,,Grants
"Ministry of Housing, Communities and Local Government",Homes England,DEVON AND CORNWALL HOUSING LIMITED,CAPITAL GRANTS TO RPs (NOT LA),South West,24/12/2019,8000,L,,Grants
"Ministry of Housing, Communities and Local Government",Homes England,DEVON AND CORNWALL HOUSING LIMITED,CAPITAL GRANTS TO RPs (NOT LA),South West,24/12/2019,177000,L,,Grants
"Ministry of Housing, Communities and Local Government",Homes England,DEVON AND CORNWALL HOUSING LIMITED,CAPITAL GRANTS TO RPs (NOT LA),South West,24/12/2019,156800,L,,Grants
"Ministry of Housing, Communities and Local Government",Homes England,DEVON AND CORNWALL HOUSING LIMITED,CAPITAL GRANTS TO RPs (NOT LA),South West,24/12/2019,72000,L,,Grants
"Ministry of Housing, Communities and Local Government",Homes England,DEVON AND CORNWALL HOUSING LIMITED,CAPITAL GRANTS TO RPs (NOT LA),South West,24/12/2019,137200,L,,Grants
"Ministry of Housing, Communities and Local Government",Homes England,DEVON AND CORNWALL HOUSING LIMITED,CAPITAL GRANTS TO RPs (NOT LA),South West,24/12/2019,78400,L,,Grants
"Ministry of Housing, Communities and Local Government",Homes England,DEVON AND CORNWALL HOUSING LIMITED,CAPITAL GRANTS TO RPs (NOT LA),South West,24/12/2019,63000,L,,Grants
"Ministry of Housing, Communities and Local Government",Homes England,DEVON AND CORNWALL HOUSING LIMITED,CAPITAL GRANTS TO RPs (NOT LA),South West,24/12/2019,591500,L,,Grants
"Ministry of Housing, Communities and Local Government",Homes England,DEVON AND CORNWALL HOUSING LIMITED,CAPITAL GRANTS TO RPs (NOT LA),South West,24/12/2019,35000,L,,Grants
"Ministry of Housing, Communities and Local Government",Homes England,DEVON AND CORNWALL HOUSING LIMITED,CAPITAL GRANTS TO RPs (NOT LA),South West,24/12/2019,98000,L,,Grants
"Ministry of Housing, Communities and Local Government",Homes England,DEVON AND CORNWALL HOUSING LIMITED,CAPITAL GRANTS TO RPs (NOT LA),South West,24/12/2019,7000,L,,Grants
"Ministry of Housing, Communities and Local Government",Homes England,DEVON AND CORNWALL HOUSING LIMITED,CAPITAL GRANTS TO RPs (NOT LA),South West,24/12/2019,168000,L,,Grants
"Ministry of Housing, Communities and Local Government",Homes England,LODDON HOMES LIMITED,CAPITAL GRANTS TO RPs (NOT LA),South West,18/12/2019,101250,,,Grants
"Ministry of Housing, Communities and Local Government",Homes England,FORTIS LIVING LIMITED,REVENUE GRANTS TO RPs,Midlands,11/12/2019,82900,L,,Grants
"Ministry of Housing, Communities and Local Government",Homes England,FORTIS LIVING LIMITED,REVENUE GRANTS TO RPs,Midlands,12/12/2019,63600,L,,Grants
"Ministry of Housing, Communities and Local Government",Homes England,FORTIS LIVING LIMITED,REVENUE GRANTS TO RPs,Midlands,24/12/2019,82900,L,,Grants
"Ministry of Housing, Communities and Local Government",Homes England,FORTIS LIVING LIMITED,REVENUE GRANTS TO RPs,Midlands,24/12/2019,68500,L,,Grants
"Ministry of Housing, Communities and Local Government",Homes England,FORTIS LIVING LIMITED,REVENUE GRANTS TO RPs,Midlands,24/12/2019,82900,L,,Grants
"Ministry of Housing, Communities and Local Government",Homes England,FORTIS LIVING LIMITED,REVENUE GRANTS TO RPs,Midlands,24/12/2019,43040,L,,Grants
"Ministry of Housing, Communities and Local Government",Homes England,KARBON HOMES,CAPITAL GRANTS TO RPs (NOT LA),"North East, Yorkshire & the Humber",19/12/2019,9000,L,,Grants
"Ministry of Housing, Communities and Local Government",Homes England,KARBON HOMES,CAPITAL GRANTS TO RPs (NOT LA),"North East, Yorkshire & the Humber",19/12/2019,9000,L,,Grants
"Ministry of Housing, Communities and Local Government",Homes England,KARBON HOMES,CAPITAL GRANTS TO RPs (NOT LA),"North East, Yorkshire & the Humber",19/12/2019,9000,L,,Grants
"Ministry of Housing, Communities and Local Government",Homes England,KARBON HOMES,CAPITAL GRANTS TO RPs (NOT LA),"North East, Yorkshire & the Humber",19/12/2019,9000,L,,Grants
"Ministry of Housing, Communities and Local Government",Homes England,KARBON HOMES,CAPITAL GRANTS TO RPs (NOT LA),"North East, Yorkshire & the Humber",24/12/2019,1174500,L,,Grants
"Ministry of Housing, Communities and Local Government",Homes England,KARBON HOMES,CAPITAL GRANTS TO RPs (NOT LA),"North East, Yorkshire & the Humber",24/12/2019,283500,L,,Grants
"Ministry of Housing, Communities and Local Government",Homes England,KARBON HOMES,CAPITAL GRANTS TO RPs (NOT LA),"North East, Yorkshire & the Humber",24/12/2019,541500,L,,Grants
"Ministry of Housing, Communities and Local Government",Homes England,KARBON HOMES,CAPITAL GRANTS TO RPs (NOT LA),"North East, Yorkshire & the Humber",24/12/2019,97710,L,,Grants
"Ministry of Housing, Communities and Local Government",Homes England,CLARION HOUSING ASSOCIATION LIMITED,REVENUE GRANTS TO RPs,Midlands,17/12/2019,44000,L,,Grants
"Ministry of Housing, Communities and Local Government",Homes England,CLARION HOUSING ASSOCIATION LIMITED,REVENUE GRANTS TO RPs,Midlands,18/12/2019,41000,L,,Grants
"Ministry of Housing, Communities and Local Government",Homes England,CLARION HOUSING ASSOCIATION LIMITED,REVENUE GRANTS TO RPs,Midlands,18/12/2019,65000,L,,Grants
"Ministry of Housing, Communities and Local Government",Homes England,CLARION HOUSING ASSOCIATION LIMITED,REVENUE GRANTS TO RPs,Midlands,18/12/2019,82900,L,,Grants
"Ministry of Housing, Communities and Local Government",Homes England,CLARION HOUSING ASSOCIATION LIMITED,REVENUE GRANTS TO RPs,Midlands,18/12/2019,74000,L,,Grants
"Ministry of Housing, Communities and Local Government",Homes England,CLARION HOUSING ASSOCIATION LIMITED,REVENUE GRANTS TO RPs,Midlands,18/12/2019,61400,L,,Grants
"Ministry of Housing, Communities and Local Government",Homes England,CLARION HOUSING ASSOCIATION LIMITED,REVENUE GRANTS TO RPs,Midlands,18/12/2019,82900,L,,Grants
"Ministry of Housing, Communities and Local Government",Homes England,CLARION HOUSING ASSOCIATION LIMITED,REVENUE GRANTS TO RPs,Midlands,24/12/2019,53850,L,,Grants
"Ministry of Housing, Communities and Local Government",Homes England,CLARION HOUSING ASSOCIATION LIMITED,REVENUE GRANTS TO RPs,Midlands,24/12/2019,57000,L,,Grants
"Ministry of Housing, Communities and Local Government",Homes England,CLARION HOUSING ASSOCIATION LIMITED,REVENUE GRANTS TO RPs,Midlands,24/12/2019,69500,L,,Grants
"Ministry of Housing, Communities and Local Government",Homes England,CLARION HOUSING ASSOCIATION LIMITED,REVENUE GRANTS TO RPs,Midlands,24/12/2019,52400,L,,Grants
"Ministry of Housing, Communities and Local Government",Homes England,CLARION HOUSING ASSOCIATION LIMITED,REVENUE GRANTS TO RPs,Midlands,24/12/2019,81050,L,,Grants
"Ministry of Housing, Communities and Local Government",Homes England,CLARION HOUSING ASSOCIATION LIMITED,REVENUE GRANTS TO RPs,Midlands,24/12/2019,81300,L,,Grants
"Ministry of Housing, Communities and Local Government",Homes England,CLARION HOUSING ASSOCIATION LIMITED,REVENUE GRANTS TO RPs,Midlands,24/12/2019,82900,L,,Grants
"Ministry of Housing, Communities and Local Government",Homes England,CLARION HOUSING ASSOCIATION LIMITED,REVENUE GRANTS TO RPs,Midlands,24/12/2019,65000,L,,Grants
"Ministry of Housing, Communities and Local Government",Homes England,CLARION HOUSING ASSOCIATION LIMITED,REVENUE GRANTS TO RPs,Midlands,24/12/2019,37000,L,,Grants
"Ministry of Housing, Communities and Local Government",Homes England,BERNICIA GROUP,CAPITAL GRANTS TO RPs (NOT LA),"North East, Yorkshire & the Humber",19/12/2019,9000,,,Grants
"Ministry of Housing, Communities and Local Government",Homes England,LINCOLNSHIRE HOUSING PARTNERSHIP LTD,REVENUE GRANTS TO RPs,Midlands,20/12/2019,47600,,,Grants
"Ministry of Housing, Communities and Local Government",Homes England,AMION CONSULTING LTD,MISC PROFESSIONAL FEES,Programmes,04/12/2019,2944.8,S,81121500,Economic analysis
"Ministry of Housing, Communities and Local Government",Homes England,AMION CONSULTING LTD,PROPERTY SERVICES,Programmes,04/12/2019,4750,S,81121500,Economic analysis
"Ministry of Housing, Communities and Local Government",Homes England,AMION CONSULTING LTD,PROPERTY SERVICES,Programmes,04/12/2019,2550,S,81121500,Economic analysis
"Ministry of Housing, Communities and Local Government",Homes England,AMION CONSULTING LTD,MISC PROFESSIONAL FEES,Programmes,04/12/2019,5510.59,S,81121500,Economic analysis
"Ministry of Housing, Communities and Local Government",Homes England,AMION CONSULTING LTD,PROPERTY SERVICES,Programmes,04/12/2019,916,S,81121500,Economic analysis
"Ministry of Housing, Communities and Local Government",Homes England,AMION CONSULTING LTD,MISC PROFESSIONAL FEES,Programmes,04/12/2019,4649.62,S,81121500,Economic analysis
"Ministry of Housing, Communities and Local Government",Homes England,AMION CONSULTING LTD,MISC PROFESSIONAL FEES,Programmes,04/12/2019,2715.61,S,81121500,Economic analysis
"Ministry of Housing, Communities and Local Government",Homes England,AMION CONSULTING LTD,ECONOMIC CONSULTANCY PANEL,North East And Yorkshire,04/12/2019,9000,S,81121500,Economic analysis
"Ministry of Housing, Communities and Local Government",Homes England,AMION CONSULTING LTD,PROPERTY SERVICES,Programmes,04/12/2019,2750,S,81121500,Economic analysis
"Ministry of Housing, Communities and Local Government",Homes England,AMION CONSULTING LTD,LEGAL FEES,Programmes,06/12/2019,4000,S,81121500,Economic analysis
"Ministry of Housing, Communities and Local Government",Homes England,AQUINNA DEVELOPMENTS LIMITED,ST Fund Loans Additions,Economic Assets Hub,19/12/2019,232466,,,Loans
"Ministry of Housing, Communities and Local Government",Homes England,ATKINS LTD,MISC PROFESSIONAL FEES,Programmes,02/12/2019,46407,L,80131800,Real estate management services
"Ministry of Housing, Communities and Local Government",Homes England,ATKINS LTD,OTHER PROFESSIONAL FEES,North West,18/12/2019,2000,L,80131800,Real estate management services
"Ministry of Housing, Communities and Local Government",Homes England,ATKINS LTD,PLANNING APPLICATIONS,North West,19/12/2019,3000,L,80131800,Real estate management services
"Ministry of Housing, Communities and Local Government",Homes England,ARGUS SOFTWARE LTD,PACKAGE MAINTENANCE & SUBSCRIPTIONS,Finance & Corporate Services,19/12/2019,3139.93,S,81112200,Software maintenance and support
"Ministry of Housing, Communities and Local Government",Homes England,ABALONE ESTATES (WARRINGTON) LIMITED,ST Fund Loans Additions,Economic Assets Hub,20/12/2019,40000,,,Loans
"Ministry of Housing, Communities and Local Government",Homes England,SOUTHERN ELECTRIC,PROPERTY SERVICES,South West,19/12/2019,308.18,L,83101800,Electric utilities
"Ministry of Housing, Communities and Local Government",Homes England,ALPHABET (GB) LTD,CAR LEASING - HIRE CHARGES,Programmes,13/12/2019,2149.17,L,25101500,Passenger motor vehicles
"Ministry of Housing, Communities and Local Government",Homes England,ALPHABET (GB) LTD,CAR LEASING - HIRE CHARGES,Programmes,13/12/2019,2968.73,L,25101500,Passenger motor vehicles
"Ministry of Housing, Communities and Local Government",Homes England,AEWC LIMITED,FENCE MAINTENANCE,South West,11/12/2019,9780.15,S,77101500,Environmental auditing
"Ministry of Housing, Communities and Local Government",Homes England,AEWC LIMITED,FENCE MAINTENANCE,South West,11/12/2019,10875,S,77101500,Environmental auditing
"Ministry of Housing, Communities and Local Government",Homes England,AUSTIN WILKINSON DEMOLITION LTD,CONTRACT WORKS,North West,03/12/2019,15368.52,S,72141500,Land preparation services
"Ministry of Housing, Communities and Local Government",Homes England,ANTI MONEY LAUNDERING PROFESSIONALS FORUM,SUBS TO OTHER BODIES ,Programmes,12/12/2019,740,M,94101600,Professional associations
"Ministry of Housing, Communities and Local Government",Homes England,ARVAL UK LIMITED,CAR LEASING - HIRE CHARGES,Executive Office,09/12/2019,1483.47,L,25101500,Passenger motor vehicles
"Ministry of Housing, Communities and Local Government",Homes England,ARVAL UK LIMITED,CAR LEASING - HIRE CHARGES,Executive Office,09/12/2019,1933.7,L,25101500,Passenger motor vehicles
"Ministry of Housing, Communities and Local Government",Homes England,ARVAL UK LIMITED,CAR LEASING - HIRE CHARGES,Midlands,09/12/2019,2506.39,L,25101500,Passenger motor vehicles
"Ministry of Housing, Communities and Local Government",Homes England,ARVAL UK LIMITED,CAR LEASING - HIRE CHARGES,Midlands,09/12/2019,3223.03,L,25101500,Passenger motor vehicles
"Ministry of Housing, Communities and Local Government",Homes England,ARVAL UK LIMITED,CAR LEASING - HIRE CHARGES,Executive Office,09/12/2019,1837.55,L,25101500,Passenger motor vehicles
"Ministry of Housing, Communities and Local Government",Homes England,ARVAL UK LIMITED,CAR LEASING - HIRE CHARGES,Executive Office,09/12/2019,2661.84,L,25101500,Passenger motor vehicles
"Ministry of Housing, Communities and Local Government",Homes England,ARVAL UK LIMITED,CAR LEASING - HIRE CHARGES,Finance & Corporate Services,10/12/2019,1766.95,L,25101500,Passenger motor vehicles
"Ministry of Housing, Communities and Local Government",Homes England,ARVAL UK LIMITED,CAR LEASING - HIRE CHARGES,Finance & Corporate Services,10/12/2019,2779.62,L,25101500,Passenger motor vehicles
"Ministry of Housing, Communities and Local Government",Homes England,ALLIUM ENVIRONMENTAL LTD,MANAGEMENT COSTS,East And South East,06/12/2019,1250,S,77101500,Environmental auditing
"Ministry of Housing, Communities and Local Government",Homes England,ACROM HOLDINGS LTD & ACROM CONSTRUCTION,ST Fund Loans Additions,Economic Assets Hub,19/12/2019,58302,,,Loans
"Ministry of Housing, Communities and Local Government",Homes England,ALBEN LANDSCAPES LIMITED,ESTATE GENERAL MAINTENANCE,Programmes,05/12/2019,1323.17,S,72101500,Building maintenance and repair services
"Ministry of Housing, Communities and Local Government",Homes England,ALBEN LANDSCAPES LIMITED,ESTATE GENERAL MAINTENANCE,Programmes,23/12/2019,2275,S,72101500,Building maintenance and repair services
"Ministry of Housing, Communities and Local Government",Homes England,AMETHYST HOMES LIMITED,ST Fund Loans Additions,Economic Assets Hub,23/12/2019,96214.5,,,Loans
"Ministry of Housing, Communities and Local Government",Homes England,AIREDALE FORESTRY,ESTATE GENERAL MAINTENANCE,North East And Yorkshire,02/12/2019,2375,S,72101500,Building maintenance and repair services
"Ministry of Housing, Communities and Local Government",Homes England,AIREDALE FORESTRY,ESTATE GENERAL MAINTENANCE,North East And Yorkshire,09/12/2019,250,S,72101500,Building maintenance and repair services
"Ministry of Housing, Communities and Local Government",Homes England,AIREDALE FORESTRY,ESTATE GENERAL MAINTENANCE,North East And Yorkshire,12/12/2019,521,S,72101500,Building maintenance and repair services
"Ministry of Housing, Communities and Local Government",Homes England,AIREDALE FORESTRY,ESTATE GENERAL MAINTENANCE,North East And Yorkshire,20/12/2019,389,S,72101500,Building maintenance and repair services
"Ministry of Housing, Communities and Local Government",Homes England,AIREDALE FORESTRY,ESTATE GENERAL MAINTENANCE,North East And Yorkshire,20/12/2019,413.13,S,72101500,Building maintenance and repair services
"Ministry of Housing, Communities and Local Government",Homes England,AIREDALE FORESTRY,ESTATE GENERAL MAINTENANCE,North East And Yorkshire,20/12/2019,811,S,72101500,Building maintenance and repair services
"Ministry of Housing, Communities and Local Government",Homes England,AIREDALE FORESTRY,ESTATE GENERAL MAINTENANCE,Programmes,23/12/2019,420.01,S,72101500,Building maintenance and repair services
"Ministry of Housing, Communities and Local Government",Homes England,AIREDALE FORESTRY,ESTATE GENERAL MAINTENANCE,North East And Yorkshire,24/12/2019,433.06,S,72101500,Building maintenance and repair services
"Ministry of Housing, Communities and Local Government",Homes England,AIREDALE FORESTRY,ESTATE GENERAL MAINTENANCE,North East And Yorkshire,24/12/2019,496.11,S,72101500,Building maintenance and repair services
"Ministry of Housing, Communities and Local Government",Homes England,AIREDALE FORESTRY,ESTATE GENERAL MAINTENANCE,North East And Yorkshire,24/12/2019,541.5,S,72101500,Building maintenance and repair services
"Ministry of Housing, Communities and Local Government",Homes England,ALL SAINTS ACTION NETWORK LIMITED,MASTERPLANNING FEES,Midlands,03/12/2019,5000,,,Grants
"Ministry of Housing, Communities and Local Government",Homes England,ASHFORDS,LEGAL FEES,South West,03/12/2019,360,L,80121600,Business law services
"Ministry of Housing, Communities and Local Government",Homes England,ASHFORDS,DISPOSAL FEES - LEGAL,South West,03/12/2019,1640,L,80121600,Business law services
"Ministry of Housing, Communities and Local Government",Homes England,ASHFORDS,DISPOSAL FEES - LEGAL,South West,03/12/2019,386,L,80121600,Business law services
"Ministry of Housing, Communities and Local Government",Homes England,ASHFORDS,DISPOSAL FEES - LEGAL,South West,10/12/2019,360,L,80121600,Business law services
"Ministry of Housing, Communities and Local Government",Homes England,ASHFORDS,LEGAL FEES,South West,11/12/2019,600,L,80121600,Business law services
"Ministry of Housing, Communities and Local Government",Homes England,ASHFORDS,LEGAL FEES,South West,19/12/2019,1553,L,80121600,Business law services
"Ministry of Housing, Communities and Local Government",Homes England,ANGLIAN WATER,BUILDINGS-WATER,East And South East,20/12/2019,252.49,L,83101500,Water and sewer utilities
"Ministry of Housing, Communities and Local Government",Homes England,ADT FIRE AND SECURITY PLC,BUILDINGS-FIRE PREVENTION,North West,19/12/2019,1010.39,L,72102900,Facility maintenance and repair services
"Ministry of Housing, Communities and Local Government",Homes England,ANGLIAN WATER SERVICES LTD,CONTRACT WORKS,Programmes,11/12/2019,801110,L,72101500,Building maintenance and repair services
"Ministry of Housing, Communities and Local Government",Homes England,BERWIN LEIGHTON PAISNER,LEGAL FEES,Economic Assets Hub,02/12/2019,6000,L,80121600,Business law services
"Ministry of Housing, Communities and Local Government",Homes England,BERWIN LEIGHTON PAISNER,LEGAL FEES,Economic Assets Hub,02/12/2019,83952,L,80121600,Business law services
"Ministry of Housing, Communities and Local Government",Homes England,BERWIN LEIGHTON PAISNER,LEGAL FEES,East And South East,04/12/2019,3000,L,80121600,Business law services
"Ministry of Housing, Communities and Local Government",Homes England,BERWIN LEIGHTON PAISNER,DISPOSAL FEES - LEGAL,East And South East,10/12/2019,10078.8,L,80121600,Business law services
"Ministry of Housing, Communities and Local Government",Homes England,BERWIN LEIGHTON PAISNER,LEGAL FEES,Economic Assets Hub,11/12/2019,3000,L,80121600,Business law services
"Ministry of Housing, Communities and Local Government",Homes England,BERWIN LEIGHTON PAISNER,LEGAL FEES,Economic Assets Hub,11/12/2019,4250,L,80121600,Business law services
"Ministry of Housing, Communities and Local Government",Homes England,BERWIN LEIGHTON PAISNER,Other Professional Fees  (Non-asset & Non-land),Programmes,13/12/2019,19000,L,80121600,Business law services
"Ministry of Housing, Communities and Local Government",Homes England,BERWIN LEIGHTON PAISNER,LEGAL FEES,East And South East,19/12/2019,17500,L,80121600,Business law services
"Ministry of Housing, Communities and Local Government",Homes England,BERWIN LEIGHTON PAISNER,LEGAL FEES,Economic Assets Hub,19/12/2019,1750,L,80121600,Business law services
"Ministry of Housing, Communities and Local Government",Homes England,BERWIN LEIGHTON PAISNER,LEGAL FEES,East And South East,20/12/2019,12735,L,80121600,Business law services
"Ministry of Housing, Communities and Local Government",Homes England,BERWIN LEIGHTON PAISNER,LEGAL FEES,East And South East,20/12/2019,10060.5,L,80121600,Business law services
"Ministry of Housing, Communities and Local Government",Homes England,BERWIN LEIGHTON PAISNER,LEGAL FEES,East And South East,23/12/2019,40821.92,L,80121600,Business law services
"Ministry of Housing, Communities and Local Government",Homes England,BUSINESS IT,DATA CENTRE,Finance & Corporate Services,05/12/2019,2641.25,S,81112300,Computer hardware maintenance and support
"Ministry of Housing, Communities and Local Government",Homes England,BUSINESS IT,Computers - Additions,Finance & Corporate Services,19/12/2019,3280,S,81112300,Computer hardware maintenance and support
"Ministry of Housing, Communities and Local Government",Homes England,BROWNE JACOBSON LLP,LEGAL FEES,South West,02/12/2019,1238,L,80121600,Business law services
"Ministry of Housing, Communities and Local Government",Homes England,BROWNE JACOBSON LLP,LEGAL FEES,Midlands,03/12/2019,2489.54,L,80121600,Business law services
"Ministry of Housing, Communities and Local Government",Homes England,BROWNE JACOBSON LLP,LEGAL FEES,Programmes,05/12/2019,303.5,L,80121600,Business law services
"Ministry of Housing, Communities and Local Government",Homes England,BROWNE JACOBSON LLP,LEGAL FEES,Programmes,05/12/2019,914.5,L,80121600,Business law services
"Ministry of Housing, Communities and Local Government",Homes England,BROWNE JACOBSON LLP,LEGAL FEES,North West,05/12/2019,1881,L,80121600,Business law services
"Ministry of Housing, Communities and Local Government",Homes England,BROWNE JACOBSON LLP,LEGAL FEES,South West,10/12/2019,1138.5,L,80121600,Business law services
"Ministry of Housing, Communities and Local Government",Homes England,BROWNE JACOBSON LLP,LEGAL FEES,Programmes,13/12/2019,569,L,80121600,Business law services
"Ministry of Housing, Communities and Local Government",Homes England,BROWNE JACOBSON LLP,LEGAL FEES,Programmes,16/12/2019,378,L,80121600,Business law services
"Ministry of Housing, Communities and Local Government",Homes England,BROWNE JACOBSON LLP,LEGAL FEES,Midlands,18/12/2019,2000,L,80121600,Business law services
"Ministry of Housing, Communities and Local Government",Homes England,BROWNE JACOBSON LLP,Homebuy Agents Fees,Programmes,18/12/2019,7385,L,80121600,Business law services
"Ministry of Housing, Communities and Local Government",Homes England,BROWNE JACOBSON LLP,LEGAL FEES,South West,19/12/2019,300,L,80121600,Business law services
"Ministry of Housing, Communities and Local Government",Homes England,BROWNE JACOBSON LLP,LEGAL FEES,South West,19/12/2019,2504,L,80121600,Business law services
"Ministry of Housing, Communities and Local Government",Homes England,BROWNE JACOBSON LLP,Homebuy Agents Fees,Programmes,19/12/2019,6875,L,80121600,Business law services
"Ministry of Housing, Communities and Local Government",Homes England,BROWNE JACOBSON LLP,Professional Fees Loans Capitalised,Economic Assets Hub,19/12/2019,4519,L,80121600,Business law services
"Ministry of Housing, Communities and Local Government",Homes England,BROWNE JACOBSON LLP,Legal Fees (Non-asset & Non-land),Programmes,19/12/2019,7385,L,80121600,Business law services
"Ministry of Housing, Communities and Local Government",Homes England,BROWNE JACOBSON LLP,DISPOSAL FEES - LEGAL,East And South East,20/12/2019,1000,L,80121600,Business law services
"Ministry of Housing, Communities and Local Government",Homes England,BROWNE JACOBSON LLP,Homebuy Agents Fees,Programmes,23/12/2019,13175,L,80121600,Business law services
"Ministry of Housing, Communities and Local Government",Homes England,BROWNE JACOBSON LLP,DISPOSAL FEES - LEGAL,South West,23/12/2019,1000,L,80121600,Business law services
"Ministry of Housing, Communities and Local Government",Homes England,BUILDING DESIGN PARTNERSHIP,OTHER PROFESSIONAL FEES,Programmes,03/12/2019,2800,L,80131800,Real estate management services
"Ministry of Housing, Communities and Local Government",Homes England,BUILDING DESIGN PARTNERSHIP,PLANNING APPLICATIONS,North West,03/12/2019,5381.25,L,80131800,Real estate management services
"Ministry of Housing, Communities and Local Government",Homes England,BUILDING DESIGN PARTNERSHIP,RI - MONITORING SURVEYOR FEES,Economic Assets Hub,20/12/2019,4600,L,80131800,Real estate management services
"Ministry of Housing, Communities and Local Government",Homes England,PETER BRETT ASSOCIATES LLP,PROJECT MANAGEMENT,South West,17/12/2019,11362,L,80131800,Real estate management services
"Ministry of Housing, Communities and Local Government",Homes England,PETER BRETT ASSOCIATES LLP,OTHER PROFESSIONAL FEES,South West,17/12/2019,475,L,80131800,Real estate management services
"Ministry of Housing, Communities and Local Government",Homes England,PETER BRETT ASSOCIATES LLP,LAND REMEDIATION,South West,17/12/2019,5374,L,80131800,Real estate management services
"Ministry of Housing, Communities and Local Government",Homes England,PETER BRETT ASSOCIATES LLP,ENGINEERING FEES,South West,17/12/2019,2780,L,80131800,Real estate management services
"Ministry of Housing, Communities and Local Government",Homes England,PETER BRETT ASSOCIATES LLP,MASTERPLANNING FEES,South East,17/12/2019,47453.39,L,80131800,Real estate management services
"Ministry of Housing, Communities and Local Government",Homes England,PETER BRETT ASSOCIATES LLP,PROJECT SPECIFIC FEES & PRELIM EXPENDITURE,East And South East,18/12/2019,3500,L,80131800,Real estate management services
"Ministry of Housing, Communities and Local Government",Homes England,PETER BRETT ASSOCIATES LLP,ENVIRONMENTAL IMPACT ASSESMENTS,East And South East,18/12/2019,7650,L,80131800,Real estate management services
"Ministry of Housing, Communities and Local Government",Homes England,PETER BRETT ASSOCIATES LLP,PROJECT SPECIFIC FEES & PRELIM EXPENDITURE,East And South East,18/12/2019,4700,L,80131800,Real estate management services
"Ministry of Housing, Communities and Local Government",Homes England,BADENOCH & CLARK,AGENCY STAFF,Executive Office,06/12/2019,3870.92,L,80111600,Temporary personnel services
"Ministry of Housing, Communities and Local Government",Homes England,BADENOCH & CLARK,AGENCY STAFF,Executive Office,06/12/2019,3870.92,L,80111600,Temporary personnel services
"Ministry of Housing, Communities and Local Government",Homes England,BADENOCH & CLARK,AGENCY STAFF,Executive Office,06/12/2019,3628.99,L,80111600,Temporary personnel services
"Ministry of Housing, Communities and Local Government",Homes England,BADENOCH & CLARK,AGENCY STAFF,Executive Office,13/12/2019,3145.12,L,80111600,Temporary personnel services
"Ministry of Housing, Communities and Local Government",Homes England,BADENOCH & CLARK,AGENCY STAFF,Executive Office,20/12/2019,3870.92,L,80111600,Temporary personnel services
"Ministry of Housing, Communities and Local Government",Homes England,BRITISH TELECOMMUNICATIONS PLC,TELEPHONES,Finance & Corporate Services,02/12/2019,346.41,L,83111500,Local and long distance telephone communications
"Ministry of Housing, Communities and Local Government",Homes England,BRITISH TELECOMMUNICATIONS PLC,HOME WORKERS,Finance & Corporate Services,24/12/2019,896,L,83111500,Local and long distance telephone communications
"Ministry of Housing, Communities and Local Government",Homes England,BRITISH GAS BUSINESS,STREET LIGHTING,Programmes,02/12/2019,429.92,L,83101800,Electric utilities
"Ministry of Housing, Communities and Local Government",Homes England,BRITISH GAS BUSINESS,BUILDINGS-ELECTRICITY,North East And Yorkshire,12/12/2019,388.66,L,83101800,Electric utilities
"Ministry of Housing, Communities and Local Government",Homes England,BRITISH GAS BUSINESS,BUILDINGS-ELECTRICITY,South West,19/12/2019,287.31,L,83101800,Electric utilities
"Ministry of Housing, Communities and Local Government",Homes England,KNIGHTS BROWN CONSTRUCTION LIMITED,CONTRACT WORKS,South West,20/12/2019,185547.92,M,72141500,Land preparation services
"Ministry of Housing, Communities and Local Government",Homes England,BOSTON BOROUGH COUNCIL,CAPITAL GRANTS TO LOCAL AUTHORITIES,Programmes,16/12/2019,3052269,G,,Grants
"Ministry of Housing, Communities and Local Government",Homes England,BRAVE PRODUCTIONS,MANAGEMENT DEVELOPMENT,Executive Office,06/12/2019,1386.3,S,86101800,In service training and manpower development
"Ministry of Housing, Communities and Local Government",Homes England,BRAVE PRODUCTIONS,MANAGEMENT DEVELOPMENT,Executive Office,06/12/2019,800,S,86101800,In service training and manpower development
"Ministry of Housing, Communities and Local Government",Homes England,BRECKLAND DISTRICT COUNCIL,CAPITAL GRANTS TO LOCAL AUTHORITIES,Programmes,24/12/2019,560332,G,,Grants
"Ministry of Housing, Communities and Local Government",Homes England,BARCLAYS BANK PLC,ST Fund Loans Additions,Economic Assets Hub,20/12/2019,2454478.05,,,Loans
"Ministry of Housing, Communities and Local Government",Homes England,BAWDEN CONTRACTING SERVICES LIMITED,ESTATE GENERAL MAINTENANCE,South West,10/12/2019,565,S,72101500,Building maintenance and repair services
"Ministry of Housing, Communities and Local Government",Homes England,BAWDEN CONTRACTING SERVICES LIMITED,LANDSCAPE MAINT-BUILT ESTATE,South West,17/12/2019,604.52,S,72101500,Building maintenance and repair services
"Ministry of Housing, Communities and Local Government",Homes England,BERWIN LEIGHTON PAISNER,COST OF ACQUISITION,Programmes,17/12/2019,3492455,,,Acqusitions
"Ministry of Housing, Communities and Local Government",Homes England,BNP PARIBAS REAL ESTATE,RI - MONITORING SURVEYOR FEES,Economic Assets Hub,03/12/2019,1048.5,L,80131800,Real estate management services
"Ministry of Housing, Communities and Local Government",Homes England,BNP PARIBAS REAL ESTATE,Professional Fees Loans Capitalised,Programmes,03/12/2019,500,L,80131800,Real estate management services
"Ministry of Housing, Communities and Local Government",Homes England,BNP PARIBAS REAL ESTATE,Professional Fees Loans Capitalised,Economic Assets Hub,04/12/2019,900,L,80131800,Real estate management services
"Ministry of Housing, Communities and Local Government",Homes England,BNP PARIBAS REAL ESTATE,RI - MONITORING SURVEYOR FEES,Programmes,04/12/2019,600,L,80131800,Real estate management services
"Ministry of Housing, Communities and Local Government",Homes England,BNP PARIBAS REAL ESTATE,RI - MONITORING SURVEYOR FEES,Economic Assets Hub,11/12/2019,600,L,80131800,Real estate management services
"Ministry of Housing, Communities and Local Government",Homes England,BNP PARIBAS REAL ESTATE,RI - MONITORING SURVEYOR FEES,Economic Assets Hub,11/12/2019,700,L,80131800,Real estate management services
"Ministry of Housing, Communities and Local Government",Homes England,BNP PARIBAS REAL ESTATE,Professional Fees Loans Capitalised,Economic Assets Hub,16/12/2019,6250,L,80131800,Real estate management services
"Ministry of Housing, Communities and Local Government",Homes England,BNP PARIBAS REAL ESTATE,RI - MONITORING SURVEYOR FEES,Programmes,16/12/2019,850,L,80131800,Real estate management services
"Ministry of Housing, Communities and Local Government",Homes England,BNP PARIBAS REAL ESTATE,PROPERTY SERVICES,East And South East,17/12/2019,5829,L,80131800,Real estate management services
"Ministry of Housing, Communities and Local Government",Homes England,BNP PARIBAS REAL ESTATE,RI - SITE VALUATION FEES,Economic Assets Hub,17/12/2019,3500,L,80131800,Real estate management services
"Ministry of Housing, Communities and Local Government",Homes England,BNP PARIBAS REAL ESTATE,RI - MONITORING SURVEYOR FEES,Economic Assets Hub,20/12/2019,600,L,80131800,Real estate management services
"Ministry of Housing, Communities and Local Government",Homes England,BNP PARIBAS REAL ESTATE,Professional Fees Loans Capitalised,Programmes,20/12/2019,600,L,80131800,Real estate management services
"Ministry of Housing, Communities and Local Government",Homes England,BNP PARIBAS REAL ESTATE,RI - MONITORING SURVEYOR FEES,Programmes,20/12/2019,600,L,80131800,Real estate management services
"Ministry of Housing, Communities and Local Government",Homes England,BNP PARIBAS REAL ESTATE,PROPERTY SERVICES,Programmes,23/12/2019,9000,L,80131800,Real estate management services
"Ministry of Housing, Communities and Local Government",Homes England,BRISTOL CITY COUNCIL,OCCUPIED RATES,South West,20/12/2019,576.52,G,80131500,Lease and rental of property or building
"Ministry of Housing, Communities and Local Government",Homes England,BRIDGEWAY CONSULTING LIMITED,OTHER PROFESSIONAL FEES,North West,13/12/2019,440.8,L,80131800,Real estate management services
"Ministry of Housing, Communities and Local Government",Homes England,G BURLEY & SONS LTD,ESTATE GENERAL MAINTENANCE,North East And Yorkshire,24/12/2019,325.44,S,72101500,Building maintenance and repair services
"Ministry of Housing, Communities and Local Government",Homes England,G BURLEY & SONS LTD,ESTATE GENERAL MAINTENANCE,North East And Yorkshire,24/12/2019,1354,S,72101500,Building maintenance and repair services
"Ministry of Housing, Communities and Local Government",Homes England,BERRYS,MANAGEMENT COSTS,Programmes,12/12/2019,9000,S,80131800,Real estate management services
"Ministry of Housing, Communities and Local Government",Homes England,BERRYS,MANAGEMENT COSTS,Programmes,16/12/2019,876,S,80131800,Real estate management services
"Ministry of Housing, Communities and Local Government",Homes England,BERRYS,COST OF ACQUISITION,Programmes,19/12/2019,3000,S,80131800,Real estate management services
"Ministry of Housing, Communities and Local Government",Homes England,BERRYS,MANAGEMENT COSTS,Programmes,19/12/2019,720,S,80131800,Real estate management services
"Ministry of Housing, Communities and Local Government",Homes England,BERRYS,PROPERTY SERVICES,South West,19/12/2019,3000,S,80131800,Real estate management services
"Ministry of Housing, Communities and Local Government",Homes England,BERRYS,PROPERTY SERVICES,North East And Yorkshire,20/12/2019,2500,S,80131800,Real estate management services
"Ministry of Housing, Communities and Local Government",Homes England,BERRYS,MISC PROFESSIONAL FEES,East And South East,20/12/2019,1500,S,80131800,Real estate management services
"Ministry of Housing, Communities and Local Government",Homes England,CAMPBELL REITH,ENGINEERING FEES,South West,05/12/2019,6910.63,M,77101500,Environmental auditing
"Ministry of Housing, Communities and Local Government",Homes England,CAMPBELL REITH,ENGINEERING FEES,East And South East,05/12/2019,750.49,M,77101500,Environmental auditing
"Ministry of Housing, Communities and Local Government",Homes England,CAMPBELL REITH,ENGINEERING FEES,East And South East,05/12/2019,695.16,M,77101500,Environmental auditing
"Ministry of Housing, Communities and Local Government",Homes England,CAMPBELL REITH,ENGINEERING FEES,East And South East,05/12/2019,322.96,M,77101500,Environmental auditing
"Ministry of Housing, Communities and Local Government",Homes England,CAMPBELL REITH,LEGAL FEES,South West,05/12/2019,5000,M,77101500,Environmental auditing
"Ministry of Housing, Communities and Local Government",Homes England,CAMPBELL REITH,ENVIRONMENTAL IMPACT ASSESMENTS,North East And Yorkshire,06/12/2019,1610,M,77101500,Environmental auditing
"Ministry of Housing, Communities and Local Government",Homes England,CAMPBELL REITH,MISC PROFESSIONAL FEES,North West,10/12/2019,8645.63,M,77101500,Environmental auditing
"Ministry of Housing, Communities and Local Government",Homes England,CAMPBELL REITH,PLANNING APPLICATIONS,Programmes,10/12/2019,3750,M,77101500,Environmental auditing
"Ministry of Housing, Communities and Local Government",Homes England,CAMPBELL REITH,OTHER PROFESSIONAL FEES,North West,13/12/2019,5576.41,M,77101500,Environmental auditing
"Ministry of Housing, Communities and Local Government",Homes England,CAMPBELL REITH,ENGINEERING CONSULTANTS,Programmes,13/12/2019,2000,M,77101500,Environmental auditing
"Ministry of Housing, Communities and Local Government",Homes England,CAMPBELL REITH,ENGINEERING CONSULTANTS,Programmes,13/12/2019,7312.5,M,77101500,Environmental auditing
"Ministry of Housing, Communities and Local Government",Homes England,CAMPBELL REITH,ENGINEERING CONSULTANTS,Programmes,13/12/2019,7312.5,M,77101500,Environmental auditing
"Ministry of Housing, Communities and Local Government",Homes England,CAMPBELL REITH,ENGINEERING FEES,East And South East,13/12/2019,2000,M,77101500,Environmental auditing
"Ministry of Housing, Communities and Local Government",Homes England,CAMPBELL REITH,MASTERPLANNING FEES,South West,13/12/2019,9000,M,77101500,Environmental auditing
"Ministry of Housing, Communities and Local Government",Homes England,CAMPBELL REITH,PLANNING APPLICATIONS,North West,16/12/2019,22712.87,M,77101500,Environmental auditing
"Ministry of Housing, Communities and Local Government",Homes England,CAMPBELL REITH,ENGINEERING FEES,Midlands,23/12/2019,1500,M,77101500,Environmental auditing
"Ministry of Housing, Communities and Local Government",Homes England,CAMPBELL REITH,ENGINEERING FEES,South West,24/12/2019,6813.75,M,77101500,Environmental auditing
"Ministry of Housing, Communities and Local Government",Homes England,CARTER JONAS,DISPOSAL FEES - PROPERTY AGENTS & ADVERTISING,East And South East,02/12/2019,3000,L,80131800,Real estate management services
"Ministry of Housing, Communities and Local Government",Homes England,CARTER JONAS,OPEN MARKET VALUATION FEE,East And South East,02/12/2019,5000,L,80131800,Real estate management services
"Ministry of Housing, Communities and Local Government",Homes England,CARTER JONAS,OPEN MARKET VALUATION FEE,East And South East,02/12/2019,34000,L,80131800,Real estate management services
"Ministry of Housing, Communities and Local Government",Homes England,CARTER JONAS,Professional Fees Loans Capitalised,Programmes,10/12/2019,700,L,80131800,Real estate management services
"Ministry of Housing, Communities and Local Government",Homes England,CARTER JONAS,OPEN MARKET VALUATION FEE,South West,18/12/2019,750,L,80131800,Real estate management services
"Ministry of Housing, Communities and Local Government",Homes England,CARTER JONAS,PROJECT MANAGEMENT,East And South East,20/12/2019,14787.5,L,80131800,Real estate management services
"Ministry of Housing, Communities and Local Government",Homes England,CARTER JONAS,PROJECT MANAGEMENT,East And South East,20/12/2019,12177.2,L,80131800,Real estate management services
"Ministry of Housing, Communities and Local Government",Homes England,CARTER JONAS,OPEN MARKET VALUATION FEE,East And South East,24/12/2019,7500,L,80131800,Real estate management services
"Ministry of Housing, Communities and Local Government",Homes England,CARTER JONAS,DISPOSAL FEES - PROPERTY AGENTS & ADVERTISING,East And South East,24/12/2019,2000,L,80131800,Real estate management services
"Ministry of Housing, Communities and Local Government",Homes England,CORONA ENERGY,GAS,Finance & Corporate Services,16/12/2019,303.06,L,83101600,Oil and gas utilities
"Ministry of Housing, Communities and Local Government",Homes England,CORONA ENERGY,GAS,Finance & Corporate Services,16/12/2019,735.18,L,83101600,Oil and gas utilities
"Ministry of Housing, Communities and Local Government",Homes England,CORONA ENERGY,GAS,Finance & Corporate Services,16/12/2019,367.47,L,83101600,Oil and gas utilities
"Ministry of Housing, Communities and Local Government",Homes England,CORONA ENERGY,GAS,Finance & Corporate Services,16/12/2019,796.52,L,83101600,Oil and gas utilities
"Ministry of Housing, Communities and Local Government",Homes England,THE COPYRIGHT LICENSING AGENCY,COMMUNICATIONS LICENCES & SUPPORT FEES,Executive Office,12/12/2019,13838.22,L,93151517,License or registration fee�
"Ministry of Housing, Communities and Local Government",Homes England,C A STAMP FARM & GARDEN SERVICES,SIGNS & NOTICEBOARDS,North East And Yorkshire,20/12/2019,600,S,72153501,Building exterior cleaning service  
"Ministry of Housing, Communities and Local Government",Homes England,CLAYTON HOTELS,RENT,Finance & Corporate Services,19/12/2019,2640,L,80131500,Lease and rental of property or building
"Ministry of Housing, Communities and Local Government",Homes England,D & J COACHWORKS (NORTH EAST) LTD,CAR LEASING - OTHER COSTS,Finance & Corporate Services,20/12/2019,1092,S,78180100,Vehicle maintenance and repairs services
"Ministry of Housing, Communities and Local Government",Homes England,CHAPEL RIVERSIDE DEVELOPMENTS LIMITED,ST Fund Loans Additions,Economic Assets Hub,05/12/2019,1193037.81,,,Loans
"Ministry of Housing, Communities and Local Government",Homes England,CAMBRIDGE ARCHAEOLOGY UNIT,LAND REMEDIATION,Programmes,02/12/2019,5441.67,L,80131800,Real estate management services
"Ministry of Housing, Communities and Local Government",Homes England,CAMBRIDGE ARCHAEOLOGY UNIT,LAND REMEDIATION,Programmes,02/12/2019,1130.83,L,80131800,Real estate management services
"Ministry of Housing, Communities and Local Government",Homes England,CAMBRIDGE ARCHAEOLOGY UNIT,LAND REMEDIATION,Programmes,11/12/2019,40905,L,80131800,Real estate management services
"Ministry of Housing, Communities and Local Government",Homes England,COAST 2 COAST SECURITY LTD,SECURITY,South West,13/12/2019,8247,M,92121500,Guard services
"Ministry of Housing, Communities and Local Government",Homes England,CPUK CIVILS & REMEDIATION LTD,LAND REMEDIATION,Midlands,19/12/2019,112469.14,M,72141500,Land preparation services
"Ministry of Housing, Communities and Local Government",Homes England,COLLIERS INTERNATIONAL PROPERTY CONSULTANTS,RI - SITE VALUATION FEES,Economic Assets Hub,18/12/2019,3250,S,80131800,Real estate management services
"Ministry of Housing, Communities and Local Government",Homes England,COLLIERS INTERNATIONAL PROPERTY CONSULTANTS,RI - MONITORING SURVEYOR FEES,Economic Assets Hub,23/12/2019,675,S,80131800,Real estate management services
"Ministry of Housing, Communities and Local Government",Homes England,COGNITION LAND & WATER,OTHER PROFESSIONAL FEES,East And South East,13/12/2019,172490.92,M,72141500,Land preparation services
"Ministry of Housing, Communities and Local Government",Homes England,COGNITION LAND & WATER,LAND REMEDIATION,South West,16/12/2019,112675.7,M,72141500,Land preparation services
"Ministry of Housing, Communities and Local Government",Homes England,COGNITION LAND & WATER,LAND REMEDIATION,South West,19/12/2019,339567.79,M,72141500,Land preparation services
"Ministry of Housing, Communities and Local Government",Homes England,CHATHAM MARITIME TRUST,DISPOSAL FEES - LEGAL,East And South East,19/12/2019,6451.4,S,80131500,Lease and rental of property or building
"Ministry of Housing, Communities and Local Government",Homes England,CLARKE WILLMOTT LLP,LEGAL FEES,Economic Assets Hub,02/12/2019,403.9,M,80121600,Business law services
"Ministry of Housing, Communities and Local Government",Homes England,CLARKE WILLMOTT LLP,LEGAL FEES,Economic Assets Hub,02/12/2019,400,M,80121600,Business law services
"Ministry of Housing, Communities and Local Government",Homes England,CLARKE WILLMOTT LLP,Homebuy Agents Fees,Programmes,02/12/2019,1500,M,80121600,Business law services
"Ministry of Housing, Communities and Local Government",Homes England,CLARKE WILLMOTT LLP,DISPOSAL FEES - LEGAL,East And South East,02/12/2019,3498.41,M,80121600,Business law services
"Ministry of Housing, Communities and Local Government",Homes England,CLARKE WILLMOTT LLP,Homebuy Agents Fees,Programmes,10/12/2019,4460,M,80121600,Business law services
"Ministry of Housing, Communities and Local Government",Homes England,CLARKE WILLMOTT LLP,LEGAL FEES,South West,16/12/2019,1620,M,80121600,Business law services
"Ministry of Housing, Communities and Local Government",Homes England,CLARKE WILLMOTT LLP,LEGAL FEES,Economic Assets Hub,16/12/2019,450,M,80121600,Business law services
"Ministry of Housing, Communities and Local Government",Homes England,CLARKE WILLMOTT LLP,LEGAL FEES,Economic Assets Hub,18/12/2019,3667,M,80121600,Business law services
"Ministry of Housing, Communities and Local Government",Homes England,CLARKE WILLMOTT LLP,Homebuy Agents Fees,Programmes,19/12/2019,8620,M,80121600,Business law services
"Ministry of Housing, Communities and Local Government",Homes England,CLARKE WILLMOTT LLP,Homebuy Agents Fees,Programmes,19/12/2019,7460,M,80121600,Business law services
"Ministry of Housing, Communities and Local Government",Homes England,CLARKE WILLMOTT LLP,LEGAL FEES,Programmes,19/12/2019,1500,M,80121600,Business law services
"Ministry of Housing, Communities and Local Government",Homes England,CLARKE WILLMOTT LLP,LEGAL FEES,Economic Assets Hub,20/12/2019,403.9,M,80121600,Business law services
"Ministry of Housing, Communities and Local Government",Homes England,CLARKE WILLMOTT LLP,LEGAL FEES,Economic Assets Hub,20/12/2019,403.9,M,80121600,Business law services
"Ministry of Housing, Communities and Local Government",Homes England,CHURCHILL CLEANING SERVICES LTD,CLEANING,Finance & Corporate Services,04/12/2019,3342.41,S,76111504,Window or window blind cleaning services
"Ministry of Housing, Communities and Local Government",Homes England,CIVIL SERVICE HR,STAFF RECRUITMENT COSTS,Finance & Corporate Services,09/12/2019,40239.75,G,80141600,Sales and business promotion activities
"Ministry of Housing, Communities and Local Government",Homes England,CIVIL SERVICE HR,STAFF RECRUITMENT COSTS,Finance & Corporate Services,18/12/2019,7000,G,80141600,Sales and business promotion activities
"Ministry of Housing, Communities and Local Government",Homes England,CHARTERED INSTITUTE OF HOUSING,STAFF PROFESSIONAL SUBSCRIPTIONS,Finance & Corporate Services,11/12/2019,310,L,94101600,Professional associations
"Ministry of Housing, Communities and Local Government",Homes England,CHARTERED INSTITUTE OF HOUSING,STAFF PROFESSIONAL SUBSCRIPTIONS,Finance & Corporate Services,11/12/2019,310,L,94101600,Professional associations
"Ministry of Housing, Communities and Local Government",Homes England,CHARTERED INSTITUTE OF HOUSING,STAFF PROFESSIONAL SUBSCRIPTIONS,Finance & Corporate Services,11/12/2019,310,L,94101600,Professional associations
"Ministry of Housing, Communities and Local Government",Homes England,CHARTERED INSTITUTE OF HOUSING,STAFF PROFESSIONAL SUBSCRIPTIONS,Finance & Corporate Services,11/12/2019,310,L,94101600,Professional associations
"Ministry of Housing, Communities and Local Government",Homes England,CHARTERED INSTITUTE OF HOUSING,STAFF PROFESSIONAL SUBSCRIPTIONS,Finance & Corporate Services,11/12/2019,310,L,94101600,Professional associations
"Ministry of Housing, Communities and Local Government",Homes England,CHARTERED INSTITUTE OF HOUSING,STAFF PROFESSIONAL SUBSCRIPTIONS,Finance & Corporate Services,11/12/2019,310,L,94101600,Professional associations
"Ministry of Housing, Communities and Local Government",Homes England,CHARTERED INSTITUTE OF HOUSING,STAFF PROFESSIONAL SUBSCRIPTIONS,Finance & Corporate Services,11/12/2019,310,L,94101600,Professional associations
"Ministry of Housing, Communities and Local Government",Homes England,CHARTERED INSTITUTE OF HOUSING,STAFF PROFESSIONAL SUBSCRIPTIONS,Finance & Corporate Services,11/12/2019,310,L,94101600,Professional associations
"Ministry of Housing, Communities and Local Government",Homes England,CHARTERED INSTITUTE OF HOUSING,STAFF PROFESSIONAL SUBSCRIPTIONS,Finance & Corporate Services,11/12/2019,310,L,94101600,Professional associations
"Ministry of Housing, Communities and Local Government",Homes England,CHARTERED INSTITUTE OF HOUSING,STAFF PROFESSIONAL SUBSCRIPTIONS,Finance & Corporate Services,11/12/2019,310,L,94101600,Professional associations
"Ministry of Housing, Communities and Local Government",Homes England,CHARTERED INSTITUTE OF HOUSING,STAFF PROFESSIONAL SUBSCRIPTIONS,Finance & Corporate Services,11/12/2019,310,L,94101600,Professional associations
"Ministry of Housing, Communities and Local Government",Homes England,CHARTERED INSTITUTE OF HOUSING,STAFF PROFESSIONAL SUBSCRIPTIONS,Finance & Corporate Services,11/12/2019,310,L,94101600,Professional associations
"Ministry of Housing, Communities and Local Government",Homes England,CHARTERED INSTITUTE OF HOUSING,STAFF PROFESSIONAL SUBSCRIPTIONS,Finance & Corporate Services,11/12/2019,310,L,94101600,Professional associations
"Ministry of Housing, Communities and Local Government",Homes England,CHARTERED INSTITUTE OF HOUSING,STAFF PROFESSIONAL SUBSCRIPTIONS,Finance & Corporate Services,11/12/2019,310,L,94101600,Professional associations
"Ministry of Housing, Communities and Local Government",Homes England,CHARTERED INSTITUTE OF HOUSING,STAFF PROFESSIONAL SUBSCRIPTIONS,Finance & Corporate Services,11/12/2019,310,L,94101600,Professional associations
"Ministry of Housing, Communities and Local Government",Homes England,CHARTERED INSTITUTE OF HOUSING,STAFF PROFESSIONAL SUBSCRIPTIONS,Finance & Corporate Services,11/12/2019,310,L,94101600,Professional associations
"Ministry of Housing, Communities and Local Government",Homes England,CHARTERED INSTITUTE OF HOUSING,STAFF PROFESSIONAL SUBSCRIPTIONS,Finance & Corporate Services,11/12/2019,310,L,94101600,Professional associations
"Ministry of Housing, Communities and Local Government",Homes England,CHARTERED INSTITUTE OF HOUSING,STAFF PROFESSIONAL SUBSCRIPTIONS,Finance & Corporate Services,11/12/2019,310,L,94101600,Professional associations
"Ministry of Housing, Communities and Local Government",Homes England,CHARTERED INSTITUTE OF HOUSING,STAFF PROFESSIONAL SUBSCRIPTIONS,Finance & Corporate Services,11/12/2019,310,L,94101600,Professional associations
"Ministry of Housing, Communities and Local Government",Homes England,CC HOMES LTD,ST Fund Loans Additions,Economic Assets Hub,04/12/2019,33200,,,Loans
"Ministry of Housing, Communities and Local Government",Homes England,CC HOMES LTD,ST Fund Loans Additions,Economic Assets Hub,16/12/2019,15903,,,Loans
"Ministry of Housing, Communities and Local Government",Homes England,C.M.A. (NEMESIS) LTD,MANAGEMENT COSTS,South West,06/12/2019,825,S,72102100,Pest control
"Ministry of Housing, Communities and Local Government",Homes England,C.M.A. (NEMESIS) LTD,MANAGEMENT COSTS,South West,10/12/2019,294,S,72102100,Pest control
"Ministry of Housing, Communities and Local Government",Homes England,C.M.A. (NEMESIS) LTD,MANAGEMENT COSTS,South West,11/12/2019,285,S,72102100,Pest control
"Ministry of Housing, Communities and Local Government",Homes England,FRANK COOPER & SON LIMITED,ESTATE GENERAL MAINTENANCE,Programmes,24/12/2019,581.75,M,76121500,Refuse collection and disposal
"Ministry of Housing, Communities and Local Government",Homes England,FRANK COOPER & SON LIMITED,ESTATE GENERAL MAINTENANCE,Programmes,24/12/2019,3285,M,76121500,Refuse collection and disposal
"Ministry of Housing, Communities and Local Government",Homes England,FRANK COOPER & SON LIMITED,ESTATE GENERAL MAINTENANCE,Programmes,24/12/2019,581.75,M,76121500,Refuse collection and disposal
"Ministry of Housing, Communities and Local Government",Homes England,CENTERPRISE INTERNATIONAL,DATA CENTRE,Finance & Corporate Services,05/12/2019,6378.4,L,73231500,Business function specific software
"Ministry of Housing, Communities and Local Government",Homes England,COUNTY HR SOLUTIONS LIMITED,MISC PROFESSIONAL FEES (ADMIN ONLY),Economic Assets Hub,11/12/2019,66227.5,S,80101500,Business and corporate management consultation services 
"Ministry of Housing, Communities and Local Government",Homes England,CONCEPT BUILDING SERVICES  (SOUTHERN) LTD,PROPERTY SERVICES,South West,18/12/2019,93000,M,72101500,Building maintenance and repair services
"Ministry of Housing, Communities and Local Government",Homes England,CENTRE FOR ACCESSIBLE ENVIRONMENTS (CAE),COURSES & CONFERENCES,Finance & Corporate Services,04/12/2019,8950,S,86101800,In service training and manpower development
"Ministry of Housing, Communities and Local Government",Homes England,CENTRE FOR ACCESSIBLE ENVIRONMENTS (CAE),COURSES & CONFERENCES,Finance & Corporate Services,04/12/2019,5000,S,86101800,In service training and manpower development
"Ministry of Housing, Communities and Local Government",Homes England,CENTRE FOR ACCESSIBLE ENVIRONMENTS (CAE),COURSES & CONFERENCES,Finance & Corporate Services,04/12/2019,4445,S,86101800,In service training and manpower development
"Ministry of Housing, Communities and Local Government",Homes England,K D CHILDS STONEWORK DEVELOPMENTS,FENCE MAINTENANCE,East And South East,13/12/2019,2500,S,72101500,Building maintenance and repair services
"Ministry of Housing, Communities and Local Government",Homes England,K D CHILDS STONEWORK DEVELOPMENTS,FENCE MAINTENANCE,East And South East,13/12/2019,3500,S,72101500,Building maintenance and repair services
"Ministry of Housing, Communities and Local Government",Homes England,C-ELECT ASSOCIATES LIMITED,BUILDINGS-FIRE PREVENTION,East And South East,03/12/2019,1242.81,S,72101500,Building maintenance and repair services
"Ministry of Housing, Communities and Local Government",Homes England,C-ELECT ASSOCIATES LIMITED,ESTATE GENERAL MAINTENANCE,North East And Yorkshire,04/12/2019,858.92,S,72101500,Building maintenance and repair services
"Ministry of Housing, Communities and Local Government",Homes England,C-ELECT ASSOCIATES LIMITED,ESTATE GENERAL MAINTENANCE,Programmes,04/12/2019,1087.84,S,72101500,Building maintenance and repair services
"Ministry of Housing, Communities and Local Government",Homes England,C-ELECT ASSOCIATES LIMITED,ESTATE GENERAL MAINTENANCE,North East And Yorkshire,04/12/2019,450,S,72101500,Building maintenance and repair services
"Ministry of Housing, Communities and Local Government",Homes England,C-ELECT ASSOCIATES LIMITED,PROPERTY MAINTENANCE,North East And Yorkshire,09/12/2019,487.5,S,72101500,Building maintenance and repair services
"Ministry of Housing, Communities and Local Government",Homes England,C-ELECT ASSOCIATES LIMITED,PROPERTY MAINTENANCE,North East And Yorkshire,09/12/2019,910,S,72101500,Building maintenance and repair services
"Ministry of Housing, Communities and Local Government",Homes England,C-ELECT ASSOCIATES LIMITED,ESTATE GENERAL MAINTENANCE,North East And Yorkshire,12/12/2019,450,S,72101500,Building maintenance and repair services
"Ministry of Housing, Communities and Local Government",Homes England,C-ELECT ASSOCIATES LIMITED,ESTATE GENERAL MAINTENANCE,Programmes,19/12/2019,1944.75,S,72101500,Building maintenance and repair services
"Ministry of Housing, Communities and Local Government",Homes England,C-ELECT ASSOCIATES LIMITED,ESTATE GENERAL MAINTENANCE,North East And Yorkshire,19/12/2019,480,S,72101500,Building maintenance and repair services
"Ministry of Housing, Communities and Local Government",Homes England,CAWARDEN CO LIMITED,CONTRACT WORKS,East And South East,16/12/2019,14650.8,S,72141500,Land preparation services
"Ministry of Housing, Communities and Local Government",Homes England,CAUSEWAY GEOTECH LTD,CONTRACT WORKS,North East And Yorkshire,03/12/2019,71398.49,M,77101500,Environmental auditing
"Ministry of Housing, Communities and Local Government",Homes England,CAUSEWAY GEOTECH LTD,CONTRACT WORKS,North East And Yorkshire,10/12/2019,30013.1,M,77101500,Environmental auditing
"Ministry of Housing, Communities and Local Government",Homes England,COURT PROPERTY DEVELOPERS LTD,ST Fund Loans Additions,Economic Assets Hub,17/12/2019,250000,,,Loans
"Ministry of Housing, Communities and Local Government",Homes England,CHESTER & NEWMAN PLUMBING & HEATING SERVICES,PROPERTY MAINTENANCE,East And South East,19/12/2019,430,S,72101500,Building maintenance and repair services
"Ministry of Housing, Communities and Local Government",Homes England,CASTLEGATE PARK MANAGEMENT COMPANY,ESTATE GENERAL MAINTENANCE,Midlands,,716.99,M,80131500,Lease and rental of property or building
"Ministry of Housing, Communities and Local Government",Homes England,CONTINENTAL LANDSCAPES - GREENHAND,LANDSCAPE MAINT-BUILT ESTATE,Programmes,05/12/2019,390.96,L,72101500,Building maintenance and repair services
"Ministry of Housing, Communities and Local Government",Homes England,CONTINENTAL LANDSCAPES - GREENHAND,LANDSCAPE MAINT-BUILT ESTATE,North West,05/12/2019,685.34,L,72101500,Building maintenance and repair services
"Ministry of Housing, Communities and Local Government",Homes England,CONTINENTAL LANDSCAPES - GREENHAND,LANDSCAPE MAINT-BUILT ESTATE,Programmes,05/12/2019,390.96,L,72101500,Building maintenance and repair services
"Ministry of Housing, Communities and Local Government",Homes England,CONTINENTAL LANDSCAPES - GREENHAND,LANDSCAPE MAINT-BUILT ESTATE,North West,05/12/2019,1177.48,L,72101500,Building maintenance and repair services
"Ministry of Housing, Communities and Local Government",Homes England,CONTINENTAL LANDSCAPES - GREENHAND,LANDSCAPE MAINT-BUILT ESTATE,Programmes,20/12/2019,390.96,L,72101500,Building maintenance and repair services
"Ministry of Housing, Communities and Local Government",Homes England,CONTINENTAL LANDSCAPES - GREENHAND,LANDSCAPE MAINT-BUILT ESTATE,North West,20/12/2019,685.34,L,72101500,Building maintenance and repair services
"Ministry of Housing, Communities and Local Government",Homes England,CASTLE WATER LIMITED,BUILDINGS-WATER,South West,19/12/2019,2421.61,M,83101500,Water and sewer utilities
"Ministry of Housing, Communities and Local Government",Homes England,CB RICHARD ELLIS,PROPERTY SERVICES,South West,06/12/2019,2939,L,80131800,Real estate management services
"Ministry of Housing, Communities and Local Government",Homes England,CB RICHARD ELLIS,RI - SITE VALUATION FEES,Economic Assets Hub,10/12/2019,45000,L,80131800,Real estate management services
"Ministry of Housing, Communities and Local Government",Homes England,CB RICHARD ELLIS,RI - MONITORING SURVEYOR FEES,Economic Assets Hub,11/12/2019,4900,L,80131800,Real estate management services
"Ministry of Housing, Communities and Local Government",Homes England,CB RICHARD ELLIS,RI - SITE VALUATION FEES,Economic Assets Hub,12/12/2019,10000,L,80131800,Real estate management services
"Ministry of Housing, Communities and Local Government",Homes England,CB RICHARD ELLIS,MISC PROFESSIONAL FEES,Programmes,20/12/2019,994.2,L,80131800,Real estate management services
"Ministry of Housing, Communities and Local Government",Homes England,CB RICHARD ELLIS,MISC PROFESSIONAL FEES,Programmes,20/12/2019,254000,L,80131800,Real estate management services
"Ministry of Housing, Communities and Local Government",Homes England,CB RICHARD ELLIS,MISC PROFESSIONAL FEES,Programmes,20/12/2019,662.8,L,80131800,Real estate management services
"Ministry of Housing, Communities and Local Government",Homes England,CB RICHARD ELLIS,MISC PROFESSIONAL FEES,Programmes,20/12/2019,174000,L,80131800,Real estate management services
"Ministry of Housing, Communities and Local Government",Homes England,CB RICHARD ELLIS,RI - SITE VALUATION FEES,Economic Assets Hub,24/12/2019,9750,L,80131800,Real estate management services
"Ministry of Housing, Communities and Local Government",Homes England,CB RICHARD ELLIS,RI - SITE VALUATION FEES,Economic Assets Hub,24/12/2019,9750,L,80131800,Real estate management services
"Ministry of Housing, Communities and Local Government",Homes England,COLN AT THE KNOLL LTD,ST Fund Loans Additions,Economic Assets Hub,24/12/2019,119745,,,Loans
"Ministry of Housing, Communities and Local Government",Homes England,CLARKSON & WOODS LIMITED,OTHER PROFESSIONAL FEES,South West,23/12/2019,925,S,77101500,Environmental auditing
"Ministry of Housing, Communities and Local Government",Homes England,CENTAUR COMMUNICATIONS LTD,COMMUNICATIONS LICENCES & SUPPORT FEES,Executive Office,20/12/2019,3204,L,82101500,Print advertising
"Ministry of Housing, Communities and Local Government",Homes England,CHERWELL DISTRICT COUNCIL,BUILDINGS-VACANT RATES,East And South East,17/12/2019,4440.98,G,80131500,Lease and rental of property or building
"Ministry of Housing, Communities and Local Government",Homes England,CHERWELL DISTRICT COUNCIL,OCCUPIED RATES,East And South East,19/12/2019,4440.98,G,80131500,Lease and rental of property or building
"Ministry of Housing, Communities and Local Government",Homes England,CHANNEL ENGINEERING LTD,ESTATE GENERAL MAINTENANCE,East And South East,03/12/2019,300,S,72101500,Building maintenance and repair services
"Ministry of Housing, Communities and Local Government",Homes England,CHANNEL ENGINEERING LTD,ESTATE GENERAL MAINTENANCE,East And South East,11/12/2019,325,S,72101500,Building maintenance and repair services
"Ministry of Housing, Communities and Local Government",Homes England,CHANNEL ENGINEERING LTD,PROPERTY MAINTENANCE,East And South East,11/12/2019,1607,S,72101500,Building maintenance and repair services
"Ministry of Housing, Communities and Local Government",Homes England,CHANNEL ENGINEERING LTD,PROPERTY MAINTENANCE,East And South East,11/12/2019,600,S,72101500,Building maintenance and repair services
"Ministry of Housing, Communities and Local Government",Homes England,CHANNEL ENGINEERING LTD,ESTATE GENERAL MAINTENANCE,East And South East,19/12/2019,690,S,72101500,Building maintenance and repair services
"Ministry of Housing, Communities and Local Government",Homes England,CHANNEL ENGINEERING LTD,ESTATE GENERAL MAINTENANCE,East And South East,20/12/2019,255,S,72101500,Building maintenance and repair services
"Ministry of Housing, Communities and Local Government",Homes England,CHANNEL ENGINEERING LTD,ESTATE GENERAL MAINTENANCE,East And South East,20/12/2019,298,S,72101500,Building maintenance and repair services
"Ministry of Housing, Communities and Local Government",Homes England,CHANNEL ENGINEERING LTD,ESTATE GENERAL MAINTENANCE,East And South East,20/12/2019,360,S,72101500,Building maintenance and repair services
"Ministry of Housing, Communities and Local Government",Homes England,CABINET OFFICE HM SHARED SERVICES,BUILDINGS-VACANT RATES,Programmes,20/12/2019,5635,G,80131500,Lease and rental of property or building
"Ministry of Housing, Communities and Local Government",Homes England,CEDARDALE ARBORICULTURAL SPECIALISTS,ESTATE GENERAL MAINTENANCE,Programmes,09/12/2019,1340,S,72101500,Building maintenance and repair services
"Ministry of Housing, Communities and Local Government",Homes England,CEDARDALE ARBORICULTURAL SPECIALISTS,ESTATE GENERAL MAINTENANCE,Programmes,09/12/2019,440,S,72101500,Building maintenance and repair services
"Ministry of Housing, Communities and Local Government",Homes England,CARTWRIGHT LANDSCAPES,ESTATE GENERAL MAINTENANCE,Programmes,19/12/2019,274.9,S,72101500,Building maintenance and repair services
"Ministry of Housing, Communities and Local Government",Homes England,CARTWRIGHT LANDSCAPES,ESTATE GENERAL MAINTENANCE,Programmes,19/12/2019,354.03,S,72101500,Building maintenance and repair services
"Ministry of Housing, Communities and Local Government",Homes England,CARTWRIGHT LANDSCAPES,ESTATE GENERAL MAINTENANCE,Programmes,20/12/2019,488.05,S,72101500,Building maintenance and repair services
"Ministry of Housing, Communities and Local Government",Homes England,ENGIE FM LIMITED,PLANNED PREVENTATIVE MAINTENANCE,Finance & Corporate Services,03/12/2019,1736.5,L,72102900,Facility maintenance and repair services
"Ministry of Housing, Communities and Local Government",Homes England,ENGIE FM LIMITED,PLANNED PREVENTATIVE MAINTENANCE,Finance & Corporate Services,10/12/2019,1736.5,L,72102900,Facility maintenance and repair services
"Ministry of Housing, Communities and Local Government",Homes England,MILLS & REEVE,Professional Fees Loans Capitalised,Economic Assets Hub,04/12/2019,41132.7,S,80121600,Business law services
"Ministry of Housing, Communities and Local Government",Homes England,MILLS & REEVE,Professional Fees Equity Capitalised,Economic Assets Hub,05/12/2019,24750,S,80121600,Business law services
"Ministry of Housing, Communities and Local Government",Homes England,MILLS & REEVE,LEGAL FEES,North East And Yorkshire,12/12/2019,1390,S,80121600,Business law services
"Ministry of Housing, Communities and Local Government",Homes England,MILLS & REEVE,LEGAL FEES,Programmes,12/12/2019,5800,S,80121600,Business law services
"Ministry of Housing, Communities and Local Government",Homes England,MILLS & REEVE,LEGAL FEES,Programmes,17/12/2019,4645,S,80121600,Business law services
"Ministry of Housing, Communities and Local Government",Homes England,WYG ENVIRONMENT PLANNING TRANSPORT LTD,ENGINEERING CONSULTANTS,Midlands,11/12/2019,2720,L,81101500,Civil Engineering
"Ministry of Housing, Communities and Local Government",Homes England,WYG ENVIRONMENT PLANNING TRANSPORT LTD,MISC PROFESSIONAL FEES,East And South East,17/12/2019,3988.81,L,81101500,Civil Engineering
"Ministry of Housing, Communities and Local Government",Homes England,WYG ENVIRONMENT PLANNING TRANSPORT LTD,HEALTH & SAFETY SURVEYS,North West,19/12/2019,485,L,81101500,Civil Engineering
"Ministry of Housing, Communities and Local Government",Homes England,WYG ENVIRONMENT PLANNING TRANSPORT LTD,PLANNING APPLICATIONS,North East And Yorkshire,23/12/2019,2550,L,81101500,Civil Engineering
"Ministry of Housing, Communities and Local Government",Homes England,DRIVERS JONAS DELOITTE,MISC PROFESSIONAL FEES,Programmes,03/12/2019,8000,L,80131800,Real estate management services
"Ministry of Housing, Communities and Local Government",Homes England,DRIVERS JONAS DELOITTE,MISC PROFESSIONAL FEES,Programmes,04/12/2019,7525.61,L,80131800,Real estate management services
"Ministry of Housing, Communities and Local Government",Homes England,DRIVERS JONAS DELOITTE,DISPOSAL FEES - PROPERTY AGENTS & ADVERTISING,South West,11/12/2019,10000,L,80131800,Real estate management services
"Ministry of Housing, Communities and Local Government",Homes England,DRIVERS JONAS DELOITTE,MISC PROFESSIONAL FEES,Programmes,13/12/2019,1958.7,L,80131800,Real estate management services
"Ministry of Housing, Communities and Local Government",Homes England,DRIVERS JONAS DELOITTE,MISC PROFESSIONAL FEES,Programmes,16/12/2019,449118.88,L,80131800,Real estate management services
"Ministry of Housing, Communities and Local Government",Homes England,DRIVERS JONAS DELOITTE,PROPERTY SERVICES,East And South East,18/12/2019,30500,L,80131800,Real estate management services
"Ministry of Housing, Communities and Local Government",Homes England,CUSHMAN & WAKEFIELD DEBENHAM TIE LEUNG,RI - MONITORING SURVEYOR FEES,Programmes,02/12/2019,700,L,80131800,Real estate management services
"Ministry of Housing, Communities and Local Government",Homes England,CUSHMAN & WAKEFIELD DEBENHAM TIE LEUNG,RI - MONITORING SURVEYOR FEES,Economic Assets Hub,02/12/2019,750,L,80131800,Real estate management services
"Ministry of Housing, Communities and Local Government",Homes England,CUSHMAN & WAKEFIELD DEBENHAM TIE LEUNG,RI - MONITORING SURVEYOR FEES,Economic Assets Hub,02/12/2019,650,L,80131800,Real estate management services
"Ministry of Housing, Communities and Local Government",Homes England,CUSHMAN & WAKEFIELD DEBENHAM TIE LEUNG,MISC PROFESSIONAL FEES,South West,03/12/2019,6250,L,80131800,Real estate management services
"Ministry of Housing, Communities and Local Government",Homes England,CUSHMAN & WAKEFIELD DEBENHAM TIE LEUNG,RI - MONITORING SURVEYOR FEES,Economic Assets Hub,03/12/2019,750,L,80131800,Real estate management services
"Ministry of Housing, Communities and Local Government",Homes England,CUSHMAN & WAKEFIELD DEBENHAM TIE LEUNG,RI - MONITORING SURVEYOR FEES,Economic Assets Hub,03/12/2019,700,L,80131800,Real estate management services
"Ministry of Housing, Communities and Local Government",Homes England,CUSHMAN & WAKEFIELD DEBENHAM TIE LEUNG,RI - MONITORING SURVEYOR FEES,Economic Assets Hub,03/12/2019,700,L,80131800,Real estate management services
"Ministry of Housing, Communities and Local Government",Homes England,CUSHMAN & WAKEFIELD DEBENHAM TIE LEUNG,RI - MONITORING SURVEYOR FEES,Economic Assets Hub,03/12/2019,650,L,80131800,Real estate management services
"Ministry of Housing, Communities and Local Government",Homes England,CUSHMAN & WAKEFIELD DEBENHAM TIE LEUNG,RI - MONITORING SURVEYOR FEES,Economic Assets Hub,03/12/2019,700,L,80131800,Real estate management services
"Ministry of Housing, Communities and Local Government",Homes England,CUSHMAN & WAKEFIELD DEBENHAM TIE LEUNG,RI - MONITORING SURVEYOR FEES,Economic Assets Hub,03/12/2019,700,L,80131800,Real estate management services
"Ministry of Housing, Communities and Local Government",Homes England,CUSHMAN & WAKEFIELD DEBENHAM TIE LEUNG,RI - MONITORING SURVEYOR FEES,Economic Assets Hub,03/12/2019,700,L,80131800,Real estate management services
"Ministry of Housing, Communities and Local Government",Homes England,CUSHMAN & WAKEFIELD DEBENHAM TIE LEUNG,Professional Fees Loans Capitalised,North East And Yorkshire,03/12/2019,750,L,80131800,Real estate management services
"Ministry of Housing, Communities and Local Government",Homes England,CUSHMAN & WAKEFIELD DEBENHAM TIE LEUNG,RI - MONITORING SURVEYOR FEES,Economic Assets Hub,03/12/2019,700,L,80131800,Real estate management services
"Ministry of Housing, Communities and Local Government",Homes England,CUSHMAN & WAKEFIELD DEBENHAM TIE LEUNG,Professional Fees Loans Capitalised,Economic Assets Hub,03/12/2019,1500,L,80131800,Real estate management services
"Ministry of Housing, Communities and Local Government",Homes England,CUSHMAN & WAKEFIELD DEBENHAM TIE LEUNG,RI - MONITORING SURVEYOR FEES,Economic Assets Hub,03/12/2019,700,L,80131800,Real estate management services
"Ministry of Housing, Communities and Local Government",Homes England,CUSHMAN & WAKEFIELD DEBENHAM TIE LEUNG,RI - MONITORING SURVEYOR FEES,Programmes,03/12/2019,700,L,80131800,Real estate management services
"Ministry of Housing, Communities and Local Government",Homes England,CUSHMAN & WAKEFIELD DEBENHAM TIE LEUNG,PROPERTY SERVICES,South East,03/12/2019,837.78,L,80131800,Real estate management services
"Ministry of Housing, Communities and Local Government",Homes England,CUSHMAN & WAKEFIELD DEBENHAM TIE LEUNG,RI - MONITORING SURVEYOR FEES,Programmes,04/12/2019,700,L,80131800,Real estate management services
"Ministry of Housing, Communities and Local Government",Homes England,CUSHMAN & WAKEFIELD DEBENHAM TIE LEUNG,RI - MONITORING SURVEYOR FEES,Economic Assets Hub,04/12/2019,700,L,80131800,Real estate management services
"Ministry of Housing, Communities and Local Government",Homes England,CUSHMAN & WAKEFIELD DEBENHAM TIE LEUNG,PROPERTY SERVICES,Programmes,05/12/2019,1000,L,80131800,Real estate management services
"Ministry of Housing, Communities and Local Government",Homes England,CUSHMAN & WAKEFIELD DEBENHAM TIE LEUNG,OPEN MARKET VALUATION FEE,North East And Yorkshire,05/12/2019,5750,L,80131800,Real estate management services
"Ministry of Housing, Communities and Local Government",Homes England,CUSHMAN & WAKEFIELD DEBENHAM TIE LEUNG,MASTERPLANNING FEES,Midlands,05/12/2019,2020,L,80131800,Real estate management services
"Ministry of Housing, Communities and Local Government",Homes England,CUSHMAN & WAKEFIELD DEBENHAM TIE LEUNG,MISC PROFESSIONAL FEES,East And South East,06/12/2019,7500,L,80131800,Real estate management services
"Ministry of Housing, Communities and Local Government",Homes England,CUSHMAN & WAKEFIELD DEBENHAM TIE LEUNG,PROPERTY SERVICES,North East And Yorkshire,06/12/2019,2250,L,80131800,Real estate management services
"Ministry of Housing, Communities and Local Government",Homes England,CUSHMAN & WAKEFIELD DEBENHAM TIE LEUNG,RI - MONITORING SURVEYOR FEES,Economic Assets Hub,11/12/2019,700,L,80131800,Real estate management services
"Ministry of Housing, Communities and Local Government",Homes England,CUSHMAN & WAKEFIELD DEBENHAM TIE LEUNG,RI - MONITORING SURVEYOR FEES,Economic Assets Hub,11/12/2019,700,L,80131800,Real estate management services
"Ministry of Housing, Communities and Local Government",Homes England,CUSHMAN & WAKEFIELD DEBENHAM TIE LEUNG,RI - MONITORING SURVEYOR FEES,Economic Assets Hub,11/12/2019,800,L,80131800,Real estate management services
"Ministry of Housing, Communities and Local Government",Homes England,CUSHMAN & WAKEFIELD DEBENHAM TIE LEUNG,PROPERTY SERVICES,Programmes,11/12/2019,9950,L,80131800,Real estate management services
"Ministry of Housing, Communities and Local Government",Homes England,CUSHMAN & WAKEFIELD DEBENHAM TIE LEUNG,RI - MONITORING SURVEYOR FEES,Economic Assets Hub,13/12/2019,850,L,80131800,Real estate management services
"Ministry of Housing, Communities and Local Government",Homes England,CUSHMAN & WAKEFIELD DEBENHAM TIE LEUNG,RI - MONITORING SURVEYOR FEES,Economic Assets Hub,13/12/2019,850,L,80131800,Real estate management services
"Ministry of Housing, Communities and Local Government",Homes England,CUSHMAN & WAKEFIELD DEBENHAM TIE LEUNG,PROPERTY SERVICES,Midlands,13/12/2019,2000,L,80131800,Real estate management services
"Ministry of Housing, Communities and Local Government",Homes England,CUSHMAN & WAKEFIELD DEBENHAM TIE LEUNG,PROPERTY SERVICES,East And South East,17/12/2019,1500,L,80131800,Real estate management services
"Ministry of Housing, Communities and Local Government",Homes England,CUSHMAN & WAKEFIELD DEBENHAM TIE LEUNG,MANAGEMENT COSTS,North East And Yorkshire,17/12/2019,1875,L,80131800,Real estate management services
"Ministry of Housing, Communities and Local Government",Homes England,CUSHMAN & WAKEFIELD DEBENHAM TIE LEUNG,PROPERTY SERVICES,South West,17/12/2019,1749.99,L,80131800,Real estate management services
"Ministry of Housing, Communities and Local Government",Homes England,CUSHMAN & WAKEFIELD DEBENHAM TIE LEUNG,PROPERTY SERVICES,East And South East,17/12/2019,1200,L,80131800,Real estate management services
"Ministry of Housing, Communities and Local Government",Homes England,CUSHMAN & WAKEFIELD DEBENHAM TIE LEUNG,MISC PROFESSIONAL FEES,Midlands,17/12/2019,1036,L,80131800,Real estate management services
"Ministry of Housing, Communities and Local Government",Homes England,CUSHMAN & WAKEFIELD DEBENHAM TIE LEUNG,MANAGEMENT COSTS,Programmes,17/12/2019,1920,L,80131800,Real estate management services
"Ministry of Housing, Communities and Local Government",Homes England,CUSHMAN & WAKEFIELD DEBENHAM TIE LEUNG,PROPERTY SERVICES,South West,17/12/2019,800.01,L,80131800,Real estate management services
"Ministry of Housing, Communities and Local Government",Homes England,CUSHMAN & WAKEFIELD DEBENHAM TIE LEUNG,PROPERTY SERVICES,South West,17/12/2019,2237.5,L,80131800,Real estate management services
"Ministry of Housing, Communities and Local Government",Homes England,CUSHMAN & WAKEFIELD DEBENHAM TIE LEUNG,PROPERTY SERVICES,East And South East,17/12/2019,1000,L,80131800,Real estate management services
"Ministry of Housing, Communities and Local Government",Homes England,CUSHMAN & WAKEFIELD DEBENHAM TIE LEUNG,PROPERTY SERVICES,East And South East,17/12/2019,1374.99,L,80131800,Real estate management services
"Ministry of Housing, Communities and Local Government",Homes England,CUSHMAN & WAKEFIELD DEBENHAM TIE LEUNG,PROPERTY SERVICES,East And South East,17/12/2019,2537.49,L,80131800,Real estate management services
"Ministry of Housing, Communities and Local Government",Homes England,CUSHMAN & WAKEFIELD DEBENHAM TIE LEUNG,PROPERTY SERVICES,South West,17/12/2019,750,L,80131800,Real estate management services
"Ministry of Housing, Communities and Local Government",Homes England,CUSHMAN & WAKEFIELD DEBENHAM TIE LEUNG,PROPERTY SERVICES,Programmes,17/12/2019,1187.5,L,80131800,Real estate management services
"Ministry of Housing, Communities and Local Government",Homes England,CUSHMAN & WAKEFIELD DEBENHAM TIE LEUNG,PROPERTY SERVICES,Programmes,17/12/2019,3300,L,80131800,Real estate management services
"Ministry of Housing, Communities and Local Government",Homes England,CUSHMAN & WAKEFIELD DEBENHAM TIE LEUNG,MISC PROFESSIONAL FEES,Programmes,17/12/2019,11134,L,80131800,Real estate management services
"Ministry of Housing, Communities and Local Government",Homes England,CUSHMAN & WAKEFIELD DEBENHAM TIE LEUNG,PROPERTY SERVICES,South West,18/12/2019,625,L,80131800,Real estate management services
"Ministry of Housing, Communities and Local Government",Homes England,CUSHMAN & WAKEFIELD DEBENHAM TIE LEUNG,PROPERTY SERVICES,East And South East,18/12/2019,1250,L,80131800,Real estate management services
"Ministry of Housing, Communities and Local Government",Homes England,CUSHMAN & WAKEFIELD DEBENHAM TIE LEUNG,PROPERTY SERVICES,Programmes,18/12/2019,837.5,L,80131800,Real estate management services
"Ministry of Housing, Communities and Local Government",Homes England,CUSHMAN & WAKEFIELD DEBENHAM TIE LEUNG,PROPERTY SERVICES,South West,18/12/2019,1000,L,80131800,Real estate management services
"Ministry of Housing, Communities and Local Government",Homes England,CUSHMAN & WAKEFIELD DEBENHAM TIE LEUNG,PROPERTY SERVICES,South West,18/12/2019,687.5,L,80131800,Real estate management services
"Ministry of Housing, Communities and Local Government",Homes England,CUSHMAN & WAKEFIELD DEBENHAM TIE LEUNG,PROPERTY SERVICES,South West,18/12/2019,1937.52,L,80131800,Real estate management services
"Ministry of Housing, Communities and Local Government",Homes England,CUSHMAN & WAKEFIELD DEBENHAM TIE LEUNG,PROPERTY SERVICES,South West,18/12/2019,687.5,L,80131800,Real estate management services
"Ministry of Housing, Communities and Local Government",Homes England,CUSHMAN & WAKEFIELD DEBENHAM TIE LEUNG,PROPERTY SERVICES,Programmes,18/12/2019,2109.59,L,80131800,Real estate management services
"Ministry of Housing, Communities and Local Government",Homes England,CUSHMAN & WAKEFIELD DEBENHAM TIE LEUNG,RI - MONITORING SURVEYOR FEES,Economic Assets Hub,19/12/2019,750,L,80131800,Real estate management services
"Ministry of Housing, Communities and Local Government",Homes England,CUSHMAN & WAKEFIELD DEBENHAM TIE LEUNG,RI - MONITORING SURVEYOR FEES,Programmes,19/12/2019,750,L,80131800,Real estate management services
"Ministry of Housing, Communities and Local Government",Homes England,CUSHMAN & WAKEFIELD DEBENHAM TIE LEUNG,RI - MONITORING SURVEYOR FEES,Economic Assets Hub,19/12/2019,800,L,80131800,Real estate management services
"Ministry of Housing, Communities and Local Government",Homes England,CUSHMAN & WAKEFIELD DEBENHAM TIE LEUNG,RI - MONITORING SURVEYOR FEES,Economic Assets Hub,19/12/2019,800,L,80131800,Real estate management services
"Ministry of Housing, Communities and Local Government",Homes England,CUSHMAN & WAKEFIELD DEBENHAM TIE LEUNG,RI - MONITORING SURVEYOR FEES,Economic Assets Hub,19/12/2019,750,L,80131800,Real estate management services
"Ministry of Housing, Communities and Local Government",Homes England,CUSHMAN & WAKEFIELD DEBENHAM TIE LEUNG,RI - MONITORING SURVEYOR FEES,Economic Assets Hub,19/12/2019,800,L,80131800,Real estate management services
"Ministry of Housing, Communities and Local Government",Homes England,CUSHMAN & WAKEFIELD DEBENHAM TIE LEUNG,PROPERTY SERVICES,Midlands,19/12/2019,2500,L,80131800,Real estate management services
"Ministry of Housing, Communities and Local Government",Homes England,CUSHMAN & WAKEFIELD DEBENHAM TIE LEUNG,OTHER PROFESSIONAL FEES,Midlands,19/12/2019,500,L,80131800,Real estate management services
"Ministry of Housing, Communities and Local Government",Homes England,CUSHMAN & WAKEFIELD DEBENHAM TIE LEUNG,PROPERTY SERVICES,South West,19/12/2019,4210.94,L,80131800,Real estate management services
"Ministry of Housing, Communities and Local Government",Homes England,CUSHMAN & WAKEFIELD DEBENHAM TIE LEUNG,PROPERTY SERVICES,South West,19/12/2019,3900,L,80131800,Real estate management services
"Ministry of Housing, Communities and Local Government",Homes England,CUSHMAN & WAKEFIELD DEBENHAM TIE LEUNG,MISC PROFESSIONAL FEES,North West,19/12/2019,8098.4,L,80131800,Real estate management services
"Ministry of Housing, Communities and Local Government",Homes England,CUSHMAN & WAKEFIELD DEBENHAM TIE LEUNG,RI - MONITORING SURVEYOR FEES,Economic Assets Hub,20/12/2019,700,L,80131800,Real estate management services
"Ministry of Housing, Communities and Local Government",Homes England,CUSHMAN & WAKEFIELD DEBENHAM TIE LEUNG,RI - MONITORING SURVEYOR FEES,Economic Assets Hub,20/12/2019,700,L,80131800,Real estate management services
"Ministry of Housing, Communities and Local Government",Homes England,CUSHMAN & WAKEFIELD DEBENHAM TIE LEUNG,PROPERTY SERVICES,Programmes,20/12/2019,1000,L,80131800,Real estate management services
"Ministry of Housing, Communities and Local Government",Homes England,CUSHMAN & WAKEFIELD DEBENHAM TIE LEUNG,RI - MONITORING SURVEYOR FEES,Programmes,20/12/2019,700,L,80131800,Real estate management services
"Ministry of Housing, Communities and Local Government",Homes England,CUSHMAN & WAKEFIELD DEBENHAM TIE LEUNG,MISC PROFESSIONAL FEES,Programmes,20/12/2019,3048,L,80131800,Real estate management services
"Ministry of Housing, Communities and Local Government",Homes England,CUSHMAN & WAKEFIELD DEBENHAM TIE LEUNG,RI - MONITORING SURVEYOR FEES,Economic Assets Hub,20/12/2019,700,L,80131800,Real estate management services
"Ministry of Housing, Communities and Local Government",Homes England,CUSHMAN & WAKEFIELD DEBENHAM TIE LEUNG,RI - MONITORING SURVEYOR FEES,Economic Assets Hub,20/12/2019,700,L,80131800,Real estate management services
"Ministry of Housing, Communities and Local Government",Homes England,CUSHMAN & WAKEFIELD DEBENHAM TIE LEUNG,OPEN MARKET VALUATION FEE,Midlands,20/12/2019,3500,L,80131800,Real estate management services
"Ministry of Housing, Communities and Local Government",Homes England,CUSHMAN & WAKEFIELD DEBENHAM TIE LEUNG,PROPERTY SERVICES,East And South East,20/12/2019,10000,L,80131800,Real estate management services
"Ministry of Housing, Communities and Local Government",Homes England,CUSHMAN & WAKEFIELD DEBENHAM TIE LEUNG,RI - MONITORING SURVEYOR FEES,Economic Assets Hub,23/12/2019,700,L,80131800,Real estate management services
"Ministry of Housing, Communities and Local Government",Homes England,CUSHMAN & WAKEFIELD DEBENHAM TIE LEUNG,OPEN MARKET VALUATION FEE,East And South East,23/12/2019,2000,L,80131800,Real estate management services
"Ministry of Housing, Communities and Local Government",Homes England,DSM DEMOLITION LIMITED,CONTRACT WORKS,Midlands,19/12/2019,164235.99,M,72141500,Land preparation services
"Ministry of Housing, Communities and Local Government",Homes England,DELTA PROCUREMENT LIMITED,MISC PROFESSIONAL FEES (ADMIN ONLY),Economic Assets Hub,04/12/2019,16650,S,80101500,Business and corporate management consultation services 
"Ministry of Housing, Communities and Local Government",Homes England,DWF LLP,LEGAL FEES,North East And Yorkshire,04/12/2019,1129.5,L,80121600,Business law services
"Ministry of Housing, Communities and Local Government",Homes England,DWF LLP,LEGAL FEES,North East And Yorkshire,04/12/2019,1284,L,80121600,Business law services
"Ministry of Housing, Communities and Local Government",Homes England,DWF LLP,LEGAL FEES,North East And Yorkshire,04/12/2019,450,L,80121600,Business law services
"Ministry of Housing, Communities and Local Government",Homes England,DWF LLP,LEGAL FEES,Midlands,05/12/2019,950,L,80121600,Business law services
"Ministry of Housing, Communities and Local Government",Homes England,DWF LLP,COST OF ACQUISITION,Midlands,12/12/2019,270,L,80121600,Business law services
"Ministry of Housing, Communities and Local Government",Homes England,DWF LLP,STAMP DUTY,Midlands,12/12/2019,19500,L,80121600,Business law services
"Ministry of Housing, Communities and Local Government",Homes England,DWF LLP,COST OF ACQUISITION,Midlands,12/12/2019,500000,L,80121600,Business law services
"Ministry of Housing, Communities and Local Government",Homes England,DWF LLP,LEGAL FEES,East And South East,17/12/2019,3000,L,80121600,Business law services
"Ministry of Housing, Communities and Local Government",Homes England,DWF LLP,STAMP DUTY,Midlands,18/12/2019,455,L,80121600,Business law services
"Ministry of Housing, Communities and Local Government",Homes England,DWF LLP,STAMP DUTY,Midlands,18/12/2019,3906,L,80121600,Business law services
"Ministry of Housing, Communities and Local Government",Homes England,DWF LLP,STAMP DUTY,Midlands,18/12/2019,44500,L,80121600,Business law services
"Ministry of Housing, Communities and Local Government",Homes England,DWF LLP,COST OF ACQUISITION,Midlands,18/12/2019,1100000,L,80121600,Business law services
"Ministry of Housing, Communities and Local Government",Homes England,DWF LLP,DISPOSAL FEES - PROPERTY AGENTS & ADVERTISING,North East And Yorkshire,19/12/2019,1056,L,80121600,Business law services
"Ministry of Housing, Communities and Local Government",Homes England,DWF LLP,LEGAL FEES,Midlands,23/12/2019,2391.9,L,80121600,Business law services
"Ministry of Housing, Communities and Local Government",Homes England,DWF LLP,LEGAL FEES,Programmes,23/12/2019,375,L,80121600,Business law services
"Ministry of Housing, Communities and Local Government",Homes England,DWF LLP,LEGAL FEES,North East And Yorkshire,23/12/2019,6549,L,80121600,Business law services
"Ministry of Housing, Communities and Local Government",Homes England,DWF LLP,LEGAL FEES,North East And Yorkshire,23/12/2019,2113.5,L,80121600,Business law services
"Ministry of Housing, Communities and Local Government",Homes England,DWF LLP,LEGAL FEES,North East And Yorkshire,23/12/2019,255,L,80121600,Business law services
"Ministry of Housing, Communities and Local Government",Homes England,DWF LLP,Professional Fees Loans Capitalised,Economic Assets Hub,23/12/2019,19929.8,L,80121600,Business law services
"Ministry of Housing, Communities and Local Government",Homes England,DEAN TAXI LIMITED,TAXIS,Finance & Corporate Services,04/12/2019,1368.8,S,78111800,Passenger road transportation
"Ministry of Housing, Communities and Local Government",Homes England,DESIGN COUNCIL,COURSES & CONFERENCES,Executive Office,04/12/2019,8292,M,80131800,Real estate management services
"Ministry of Housing, Communities and Local Government",Homes England,DREW SMITH HOMES LIMITED,CONTRACT WORKS,South West,23/12/2019,106010.93,M,72141500,Land preparation services
"Ministry of Housing, Communities and Local Government",Homes England,DEVON PROPERTY DEVELOPMENTS LTD,ST Fund Loans Additions,Economic Assets Hub,17/12/2019,36040,,,Loans
"Ministry of Housing, Communities and Local Government",Homes England,BEN DADDOW,SECURITY,South West,18/12/2019,3350,S,72101500,Building maintenance and repair services
"Ministry of Housing, Communities and Local Government",Homes England,BEN DADDOW,SECURITY,South West,18/12/2019,1228,S,72101500,Building maintenance and repair services
"Ministry of Housing, Communities and Local Government",Homes England,DB GROUP LTD T/A ESUASIVE,PACKAGE MAINTENANCE & SUBSCRIPTIONS,Finance & Corporate Services,12/12/2019,2103.75,S,43231500,Business function specific software
"Ministry of Housing, Communities and Local Government",Homes England,WOOD ENVIRONMENT & INFRASTRUCTURE SOLUTIONS,MASTERPLANNING FEES,East And South East,02/12/2019,4000,L,80131800,Real estate management services
"Ministry of Housing, Communities and Local Government",Homes England,WOOD ENVIRONMENT & INFRASTRUCTURE SOLUTIONS,OTHER PROFESSIONAL FEES,East And South East,03/12/2019,1265.29,L,80131800,Real estate management services
"Ministry of Housing, Communities and Local Government",Homes England,WOOD ENVIRONMENT & INFRASTRUCTURE SOLUTIONS,PROPERTY SERVICES,East And South East,03/12/2019,3877.08,L,80131800,Real estate management services
"Ministry of Housing, Communities and Local Government",Homes England,WOOD ENVIRONMENT & INFRASTRUCTURE SOLUTIONS,PROPERTY SERVICES,East And South East,03/12/2019,3749.64,L,80131800,Real estate management services
"Ministry of Housing, Communities and Local Government",Homes England,WOOD ENVIRONMENT & INFRASTRUCTURE SOLUTIONS,PROPERTY SERVICES,East And South East,03/12/2019,902.76,L,80131800,Real estate management services
"Ministry of Housing, Communities and Local Government",Homes England,WOOD ENVIRONMENT & INFRASTRUCTURE SOLUTIONS,PROPERTY SERVICES,East And South East,03/12/2019,1118.16,L,80131800,Real estate management services
"Ministry of Housing, Communities and Local Government",Homes England,WOOD ENVIRONMENT & INFRASTRUCTURE SOLUTIONS,PROPERTY SERVICES,East And South East,03/12/2019,7949.6,L,80131800,Real estate management services
"Ministry of Housing, Communities and Local Government",Homes England,WOOD ENVIRONMENT & INFRASTRUCTURE SOLUTIONS,PROPERTY SERVICES,East And South East,03/12/2019,1989.5,L,80131800,Real estate management services
"Ministry of Housing, Communities and Local Government",Homes England,WOOD ENVIRONMENT & INFRASTRUCTURE SOLUTIONS,PROPERTY SERVICES,East And South East,03/12/2019,3289.58,L,80131800,Real estate management services
"Ministry of Housing, Communities and Local Government",Homes England,WOOD ENVIRONMENT & INFRASTRUCTURE SOLUTIONS,PROPERTY SERVICES,East And South East,03/12/2019,2171.51,L,80131800,Real estate management services
"Ministry of Housing, Communities and Local Government",Homes England,WOOD ENVIRONMENT & INFRASTRUCTURE SOLUTIONS,MISC PROFESSIONAL FEES,South West,03/12/2019,6285,L,80131800,Real estate management services
"Ministry of Housing, Communities and Local Government",Homes England,WOOD ENVIRONMENT & INFRASTRUCTURE SOLUTIONS,MISC PROFESSIONAL FEES,East And South East,04/12/2019,500,L,80131800,Real estate management services
"Ministry of Housing, Communities and Local Government",Homes England,WOOD ENVIRONMENT & INFRASTRUCTURE SOLUTIONS,OTHER PROFESSIONAL FEES,East And South East,04/12/2019,7840,L,80131800,Real estate management services
"Ministry of Housing, Communities and Local Government",Homes England,WOOD ENVIRONMENT & INFRASTRUCTURE SOLUTIONS,MISC PROFESSIONAL FEES,Midlands,05/12/2019,3050,L,80131800,Real estate management services
"Ministry of Housing, Communities and Local Government",Homes England,WOOD ENVIRONMENT & INFRASTRUCTURE SOLUTIONS,OTHER PROFESSIONAL FEES,Midlands,05/12/2019,709.38,L,80131800,Real estate management services
"Ministry of Housing, Communities and Local Government",Homes England,WOOD ENVIRONMENT & INFRASTRUCTURE SOLUTIONS,OTHER PROFESSIONAL FEES,Midlands,05/12/2019,4558,L,80131800,Real estate management services
"Ministry of Housing, Communities and Local Government",Homes England,WOOD ENVIRONMENT & INFRASTRUCTURE SOLUTIONS,OTHER PROFESSIONAL FEES,East And South East,09/12/2019,1854.25,L,80131800,Real estate management services
"Ministry of Housing, Communities and Local Government",Homes England,WOOD ENVIRONMENT & INFRASTRUCTURE SOLUTIONS,OTHER PROFESSIONAL FEES,East And South East,09/12/2019,6268.37,L,80131800,Real estate management services
"Ministry of Housing, Communities and Local Government",Homes England,WOOD ENVIRONMENT & INFRASTRUCTURE SOLUTIONS,ENGINEERING FEES,East And South East,10/12/2019,650,L,80131800,Real estate management services
"Ministry of Housing, Communities and Local Government",Homes England,WOOD ENVIRONMENT & INFRASTRUCTURE SOLUTIONS,ENGINEERING FEES,East And South East,18/12/2019,6434.2,L,80131800,Real estate management services
"Ministry of Housing, Communities and Local Government",Homes England,WOOD ENVIRONMENT & INFRASTRUCTURE SOLUTIONS,PLANNING APPLICATIONS,Midlands,18/12/2019,3428,L,80131800,Real estate management services
"Ministry of Housing, Communities and Local Government",Homes England,WOOD ENVIRONMENT & INFRASTRUCTURE SOLUTIONS,PLANNING APPLICATIONS,Midlands,18/12/2019,4892,L,80131800,Real estate management services
"Ministry of Housing, Communities and Local Government",Homes England,WOOD ENVIRONMENT & INFRASTRUCTURE SOLUTIONS,ENGINEERING FEES,Midlands,19/12/2019,18580.27,L,80131800,Real estate management services
"Ministry of Housing, Communities and Local Government",Homes England,WOOD ENVIRONMENT & INFRASTRUCTURE SOLUTIONS,PLANNING APPLICATIONS,Midlands,20/12/2019,3600,L,80131800,Real estate management services
"Ministry of Housing, Communities and Local Government",Homes England,EAST WICK AND SWEETWATER PROJECTS (PHASE 1) L,ST Fund Loans Additions,Economic Assets Hub,13/12/2019,4828274.74,,,Loans
"Ministry of Housing, Communities and Local Government",Homes England,EAST WICK AND SWEETWATER PROJECTS (PHASE 1) L,ST Fund Loans Additions,Economic Assets Hub,24/12/2019,2895076.58,,,Loans
"Ministry of Housing, Communities and Local Government",Homes England,ENTERPRISE RENT A CAR,CAR HIRE,Midlands,05/12/2019,398.23,L,25101500,Passenger motor vehicles
"Ministry of Housing, Communities and Local Government",Homes England,EDENRED (UK GROUP) LTD,PEOPLE PLAN / INSTANT RECOGNITION,Finance & Corporate Services,10/12/2019,1525,L,14111803,Vouchers
"Ministry of Housing, Communities and Local Government",Homes England,EE LTD,Computers - Additions,Finance & Corporate Services,06/12/2019,15750,L,83101600,Mobile communications services
"Ministry of Housing, Communities and Local Government",Homes England,EE LTD,TELEPHONES,Finance & Corporate Services,18/12/2019,4320.07,L,83101600,Mobile communications services
"Ministry of Housing, Communities and Local Government",Homes England,EE LTD,TELEPHONES,Finance & Corporate Services,18/12/2019,20554.51,L,83101600,Mobile communications services
"Ministry of Housing, Communities and Local Government",Homes England,EVERSHEDS CLIENT ACCOUNT,LEGAL FEES,Programmes,04/12/2019,275,L,80121600,Business law services
"Ministry of Housing, Communities and Local Government",Homes England,EVERSHEDS CLIENT ACCOUNT,Homebuy Agents Fees,Programmes,09/12/2019,2250,L,80121600,Business law services
"Ministry of Housing, Communities and Local Government",Homes England,EVERSHEDS CLIENT ACCOUNT,LEGAL FEES,Midlands,12/12/2019,5186.6,L,80121600,Business law services
"Ministry of Housing, Communities and Local Government",Homes England,EVERSHEDS CLIENT ACCOUNT,LEGAL FEES,Programmes,20/12/2019,750,L,80121600,Business law services
"Ministry of Housing, Communities and Local Government",Homes England,EA FORMBY (NW) LIMITED,ESTATE GENERAL MAINTENANCE,North West,18/12/2019,450,S,72101500,Building maintenance and repair services
"Ministry of Housing, Communities and Local Government",Homes England,EA FORMBY (NW) LIMITED,ESTATE GENERAL MAINTENANCE,North West,18/12/2019,550,S,72101500,Building maintenance and repair services
"Ministry of Housing, Communities and Local Government",Homes England,EA FORMBY (NW) LIMITED,ESTATE GENERAL MAINTENANCE,North West,18/12/2019,600,S,72101500,Building maintenance and repair services
"Ministry of Housing, Communities and Local Government",Homes England,EDEN PROJECTS AND DEVELOPMENTS LTD,ST Fund Loans Additions,Economic Assets Hub,16/12/2019,35057.43,,,Loans
"Ministry of Housing, Communities and Local Government",Homes England,EDEN PROJECTS AND DEVELOPMENTS LTD,ST Fund Loans Additions,Economic Assets Hub,20/12/2019,58523.68,,,Loans
"Ministry of Housing, Communities and Local Government",Homes England,ENJOY BUILDING LIMITED,ST Fund Loans Additions,Economic Assets Hub,24/12/2019,30000,,,Loans
"Ministry of Housing, Communities and Local Government",Homes England,ELEMENT MATERIALS TECHNOLOGY ENVIRONMENTAL UK,MISC PROFESSIONAL FEES,Programmes,03/12/2019,8475,L,77101500,Environmental auditing
"Ministry of Housing, Communities and Local Government",Homes England,ELEMENT MATERIALS TECHNOLOGY ENVIRONMENTAL UK,HEALTH & SAFETY SURVEYS,Programmes,16/12/2019,1400,L,77101500,Environmental auditing
"Ministry of Housing, Communities and Local Government",Homes England,EDEN BROWN BUILT ENVIRONMENT,AGENCY STAFF,Programmes,02/12/2019,721.7,L,80111600,Temporary personnel services
"Ministry of Housing, Communities and Local Government",Homes England,EDEN BROWN BUILT ENVIRONMENT,AGENCY STAFF,Programmes,17/12/2019,721.7,L,80111600,Temporary personnel services
"Ministry of Housing, Communities and Local Government",Homes England,EDEN BROWN BUILT ENVIRONMENT,AGENCY STAFF,Programmes,17/12/2019,721.7,L,80111600,Temporary personnel services
"Ministry of Housing, Communities and Local Government",Homes England,EDEN BROWN BUILT ENVIRONMENT,AGENCY STAFF,Programmes,23/12/2019,561.9,L,80111600,Temporary personnel services
"Ministry of Housing, Communities and Local Government",Homes England,EPATON LTD,DATA CENTRE,Finance & Corporate Services,19/12/2019,1997.4,S,43211600,Computer accessories
"Ministry of Housing, Communities and Local Government",Homes England,EDDISONS COMMERCIAL LIMITED,RI - MONITORING SURVEYOR FEES,Economic Assets Hub,06/12/2019,700,M,80131800,Real estate management services
"Ministry of Housing, Communities and Local Government",Homes England,EDDISONS COMMERCIAL LIMITED,Professional Fees Loans Capitalised,Economic Assets Hub,11/12/2019,1450,M,80131800,Real estate management services
"Ministry of Housing, Communities and Local Government",Homes England,EDDISONS COMMERCIAL LIMITED,RI - MONITORING SURVEYOR FEES,Economic Assets Hub,20/12/2019,700,M,80131800,Real estate management services
"Ministry of Housing, Communities and Local Government",Homes England,EAST HAMPSHIRE DISTRICT COUNCIL,MASTERPLANNING FEES,East And South East,02/12/2019,817,G,80131800,Real estate management services
"Ministry of Housing, Communities and Local Government",Homes England,EAST HAMPSHIRE DISTRICT COUNCIL,OTHER PROFESSIONAL FEES,Programmes,20/12/2019,84265,G,80131800,Real estate management services
"Ministry of Housing, Communities and Local Government",Homes England,AMEY METERING LIMITED,LIGHTING & HEATING,Finance & Corporate Services,12/12/2019,356.66,L,72102900,Facility maintenance and repair services
"Ministry of Housing, Communities and Local Government",Homes England,MAKE UK T/AS EEF LIMITED,MEETING ROOM HIRE,Programmes,04/12/2019,1043.25,L,90111600,Meeting facilities
"Ministry of Housing, Communities and Local Government",Homes England,AECOM LIMITED,MISC PROFESSIONAL FEES,Executive Office,04/12/2019,87511,L,72101500,Building maintenance and repair services
"Ministry of Housing, Communities and Local Government",Homes England,AECOM LIMITED,ENGINEERING CONSULTANTS,North East And Yorkshire,04/12/2019,8406,L,72101500,Building maintenance and repair services
"Ministry of Housing, Communities and Local Government",Homes England,AECOM LIMITED,MISC PROFESSIONAL FEES,Programmes,04/12/2019,5688,L,72101500,Building maintenance and repair services
"Ministry of Housing, Communities and Local Government",Homes England,AECOM LIMITED,MISC PROFESSIONAL FEES,Programmes,04/12/2019,14573,L,72101500,Building maintenance and repair services
"Ministry of Housing, Communities and Local Government",Homes England,AECOM LIMITED,OTHER PROFESSIONAL FEES,Programmes,06/12/2019,9723,L,72101500,Building maintenance and repair services
"Ministry of Housing, Communities and Local Government",Homes England,AECOM LIMITED,MISC PROFESSIONAL FEES,North West,11/12/2019,1841.12,L,72101500,Building maintenance and repair services
"Ministry of Housing, Communities and Local Government",Homes England,AECOM LIMITED,MISC PROFESSIONAL FEES,North West,11/12/2019,3126,L,72101500,Building maintenance and repair services
"Ministry of Housing, Communities and Local Government",Homes England,AECOM LIMITED,MISC PROFESSIONAL FEES,Programmes,12/12/2019,8722.19,L,72101500,Building maintenance and repair services
"Ministry of Housing, Communities and Local Government",Homes England,AECOM LIMITED,ENGINEERING CONSULTANTS,North East And Yorkshire,13/12/2019,2347.76,L,72101500,Building maintenance and repair services
"Ministry of Housing, Communities and Local Government",Homes England,AECOM LIMITED,OTHER PROFESSIONAL FEES,Programmes,13/12/2019,31619.15,L,72101500,Building maintenance and repair services
"Ministry of Housing, Communities and Local Government",Homes England,AECOM LIMITED,OTHER PROFESSIONAL FEES,Programmes,13/12/2019,19982.7,L,72101500,Building maintenance and repair services
"Ministry of Housing, Communities and Local Government",Homes England,AECOM LIMITED,ENVIRONMENTAL IMPACT ASSESMENTS,North West,18/12/2019,3000,L,72101500,Building maintenance and repair services
"Ministry of Housing, Communities and Local Government",Homes England,AECOM LIMITED,RI - MONITORING SURVEYOR FEES,Economic Assets Hub,20/12/2019,1550,L,72101500,Building maintenance and repair services
"Ministry of Housing, Communities and Local Government",Homes England,AECOM LIMITED,PLANNING APPLICATIONS,South West,23/12/2019,49451.88,L,72101500,Building maintenance and repair services
"Ministry of Housing, Communities and Local Government",Homes England,FRIENDS HOUSE,TEAM MEETINGS,North East And Yorkshire,06/12/2019,1280.82,S,90111600,Meeting facilities
"Ministry of Housing, Communities and Local Government",Homes England,FRIENDS HOUSE,TEAM MEETINGS,North East And Yorkshire,06/12/2019,1537,S,90111600,Meeting facilities
"Ministry of Housing, Communities and Local Government",Homes England,FOXLEYS LTD,PROPERTY MAINTENANCE,South East,10/12/2019,295,S,72101500,Building maintenance and repair services
"Ministry of Housing, Communities and Local Government",Homes England,FOXLEYS LTD,BUILDINGS-GAS,South West,10/12/2019,265,S,72101500,Building maintenance and repair services
"Ministry of Housing, Communities and Local Government",Homes England,FOXLEYS LTD,PROPERTY MAINTENANCE,South East,10/12/2019,562.35,S,72101500,Building maintenance and repair services
"Ministry of Housing, Communities and Local Government",Homes England,SAVILLS UK LIMITED,DISPOSAL FEES - PROPERTY AGENTS & ADVERTISING,East And South East,02/12/2019,9583.34,L,80131800,Real estate management services
"Ministry of Housing, Communities and Local Government",Homes England,SAVILLS UK LIMITED,MISC PROFESSIONAL FEES,North East And Yorkshire,03/12/2019,8500,L,80131800,Real estate management services
"Ministry of Housing, Communities and Local Government",Homes England,SAVILLS UK LIMITED,DISPOSAL FEES - FINANCIAL,East And South East,03/12/2019,20000,L,80131800,Real estate management services
"Ministry of Housing, Communities and Local Government",Homes England,SAVILLS UK LIMITED,RI - SITE VALUATION FEES,Economic Assets Hub,04/12/2019,15000,L,80131800,Real estate management services
"Ministry of Housing, Communities and Local Government",Homes England,SAVILLS UK LIMITED,OTHER PROFESSIONAL FEES,North East And Yorkshire,04/12/2019,566,L,80131800,Real estate management services
"Ministry of Housing, Communities and Local Government",Homes England,SAVILLS UK LIMITED,Professional Fees Loans Capitalised,Economic Assets Hub,09/12/2019,2750,L,80131800,Real estate management services
"Ministry of Housing, Communities and Local Government",Homes England,SAVILLS UK LIMITED,MISC PROFESSIONAL FEES,Midlands,11/12/2019,9950,L,80131800,Real estate management services
"Ministry of Housing, Communities and Local Government",Homes England,SAVILLS UK LIMITED,OPEN MARKET VALUATION FEE,East And South East,12/12/2019,1437.5,L,80131800,Real estate management services
"Ministry of Housing, Communities and Local Government",Homes England,SAVILLS UK LIMITED,OTHER PROFESSIONAL FEES,Midlands,12/12/2019,3500,L,80131800,Real estate management services
"Ministry of Housing, Communities and Local Government",Homes England,SAVILLS UK LIMITED,Professional Fees Loans Capitalised,Economic Assets Hub,13/12/2019,7500,L,80131800,Real estate management services
"Ministry of Housing, Communities and Local Government",Homes England,SAVILLS UK LIMITED,DISPOSAL FEES - PROPERTY AGENTS & ADVERTISING,Programmes,20/12/2019,27500,L,80131800,Real estate management services
"Ministry of Housing, Communities and Local Government",Homes England,SAVILLS UK LIMITED,DISPOSAL FEES - PROPERTY AGENTS & ADVERTISING,Programmes,20/12/2019,7058.58,L,80131800,Real estate management services
"Ministry of Housing, Communities and Local Government",Homes England,SAVILLS UK LIMITED,OPEN MARKET VALUATION FEE,Programmes,20/12/2019,6500,L,80131800,Real estate management services
"Ministry of Housing, Communities and Local Government",Homes England,SAVILLS UK LIMITED,COMPENSATION,Programmes,20/12/2019,4382.5,L,80131800,Real estate management services
"Ministry of Housing, Communities and Local Government",Homes England,4WARD MANAGEMENT LIMITED,PROPERTY SERVICES,North West,13/12/2019,3500,S,80131800,Real estate management services
"Ministry of Housing, Communities and Local Government",Homes England,R FOX T/A SOUTHCOAST MAINTENANCE,MANAGEMENT COSTS,South West,06/12/2019,450,S,72101500,Building maintenance and repair services
"Ministry of Housing, Communities and Local Government",Homes England,R FOX T/A SOUTHCOAST MAINTENANCE,MANAGEMENT COSTS,South West,06/12/2019,750,S,72101500,Building maintenance and repair services
"Ministry of Housing, Communities and Local Government",Homes England,R FOX T/A SOUTHCOAST MAINTENANCE,MANAGEMENT COSTS,East And South East,06/12/2019,440,S,72101500,Building maintenance and repair services
"Ministry of Housing, Communities and Local Government",Homes England,R FOX T/A SOUTHCOAST MAINTENANCE,MANAGEMENT COSTS,South West,06/12/2019,300,S,72101500,Building maintenance and repair services
"Ministry of Housing, Communities and Local Government",Homes England,R FOX T/A SOUTHCOAST MAINTENANCE,MANAGEMENT COSTS,Programmes,06/12/2019,2500,S,72101500,Building maintenance and repair services
"Ministry of Housing, Communities and Local Government",Homes England,R FOX T/A SOUTHCOAST MAINTENANCE,MANAGEMENT COSTS,Programmes,06/12/2019,2500,S,72101500,Building maintenance and repair services
"Ministry of Housing, Communities and Local Government",Homes England,R FOX T/A SOUTHCOAST MAINTENANCE,MANAGEMENT COSTS,South West,06/12/2019,4500,S,72101500,Building maintenance and repair services
"Ministry of Housing, Communities and Local Government",Homes England,R FOX T/A SOUTHCOAST MAINTENANCE,ESTATE GENERAL MAINTENANCE,South West,06/12/2019,600,S,72101500,Building maintenance and repair services
"Ministry of Housing, Communities and Local Government",Homes England,R FOX T/A SOUTHCOAST MAINTENANCE,PROPERTY MAINTENANCE,South West,09/12/2019,1500,S,72101500,Building maintenance and repair services
"Ministry of Housing, Communities and Local Government",Homes England,R FOX T/A SOUTHCOAST MAINTENANCE,PROPERTY MAINTENANCE,South West,09/12/2019,3177,S,72101500,Building maintenance and repair services
"Ministry of Housing, Communities and Local Government",Homes England,R FOX T/A SOUTHCOAST MAINTENANCE,MANAGEMENT COSTS,Programmes,19/12/2019,1200,S,72101500,Building maintenance and repair services
"Ministry of Housing, Communities and Local Government",Homes England,R FOX T/A SOUTHCOAST MAINTENANCE,MANAGEMENT COSTS,Programmes,19/12/2019,1800,S,72101500,Building maintenance and repair services
"Ministry of Housing, Communities and Local Government",Homes England,R FOX T/A SOUTHCOAST MAINTENANCE,MANAGEMENT COSTS,Programmes,19/12/2019,3000,S,72101500,Building maintenance and repair services
"Ministry of Housing, Communities and Local Government",Homes England,R FOX T/A SOUTHCOAST MAINTENANCE,PROPERTY MAINTENANCE,South West,19/12/2019,6810,S,72101500,Building maintenance and repair services
"Ministry of Housing, Communities and Local Government",Homes England,R FOX T/A SOUTHCOAST MAINTENANCE,MANAGEMENT COSTS,South West,19/12/2019,280,S,72101500,Building maintenance and repair services
"Ministry of Housing, Communities and Local Government",Homes England,R FOX T/A SOUTHCOAST MAINTENANCE,MANAGEMENT COSTS,South West,19/12/2019,1104,S,72101500,Building maintenance and repair services
"Ministry of Housing, Communities and Local Government",Homes England,FEN PEST CONTROL LTD,ESTATE GENERAL MAINTENANCE,East And South East,04/12/2019,370,S,72102900,Facility maintenance and repair services
"Ministry of Housing, Communities and Local Government",Homes England,FALCON SECURITY,SECURITY,Midlands,04/12/2019,15145,M,92121500,Guard services
"Ministry of Housing, Communities and Local Government",Homes England,FALCON SECURITY,SECURITY,Midlands,04/12/2019,8026,M,92121500,Guard services
"Ministry of Housing, Communities and Local Government",Homes England,FALCON SECURITY,SECURITY,Midlands,04/12/2019,2245,M,92121500,Guard services
"Ministry of Housing, Communities and Local Government",Homes England,FALCON SECURITY,SECURITY,Midlands,04/12/2019,7200,M,92121500,Guard services
"Ministry of Housing, Communities and Local Government",Homes England,FALCON SECURITY,SECURITY,Midlands,04/12/2019,19025.39,M,92121500,Guard services
"Ministry of Housing, Communities and Local Government",Homes England,FALCON SECURITY,SECURITY,Midlands,04/12/2019,6550,M,92121500,Guard services
"Ministry of Housing, Communities and Local Government",Homes England,FALCON SECURITY,SECURITY,Midlands,04/12/2019,2035,M,92121500,Guard services
"Ministry of Housing, Communities and Local Government",Homes England,FALCON SECURITY,SECURITY (Incl Fire Prevention),Finance & Corporate Services,12/12/2019,9132.48,M,92121500,Guard services
"Ministry of Housing, Communities and Local Government",Homes England,FALCON SECURITY,SECURITY,North East And Yorkshire,12/12/2019,16727.3,M,92121500,Guard services
"Ministry of Housing, Communities and Local Government",Homes England,FALCON SECURITY,SECURITY,Programmes,18/12/2019,15923.04,M,92121500,Guard services
"Ministry of Housing, Communities and Local Government",Homes England,FALCON SECURITY,SECURITY,Midlands,18/12/2019,3840,M,92121500,Guard services
"Ministry of Housing, Communities and Local Government",Homes England,FALCON SECURITY,SECURITY,North West,19/12/2019,10750,M,92121500,Guard services
"Ministry of Housing, Communities and Local Government",Homes England,FALCON SECURITY,SECURITY,Midlands,19/12/2019,14218.4,M,92121500,Guard services
"Ministry of Housing, Communities and Local Government",Homes England,FALCON SECURITY,SECURITY,Midlands,20/12/2019,2592,M,92121500,Guard services
"Ministry of Housing, Communities and Local Government",Homes England,FOXGLOVE INVESTMENTS (DEVELOPMENTS) LIMITED,ST Fund Loans Additions,Economic Assets Hub,20/12/2019,59031,,,Loans
"Ministry of Housing, Communities and Local Government",Homes England,FARRINGTON LEGAL SERVICES,LEGAL FEES,East And South East,02/12/2019,700,S,80121600,Business law services
"Ministry of Housing, Communities and Local Government",Homes England,FRESH ELEMENT LIMITED,MEETING ROOM HIRE,Executive Office,12/12/2019,443.6,M,90111600,Meeting facilities
"Ministry of Housing, Communities and Local Government",Homes England,FIRST NATIONAL SERVICES LTD,PROPERTY MAINTENANCE,Midlands,16/12/2019,411.1,S,72102900,Facility maintenance and repair services
"Ministry of Housing, Communities and Local Government",Homes England,FENWOOD ESTATES LTD,ST Fund Loans Additions,Economic Assets Hub,20/12/2019,132358,,,Loans
"Ministry of Housing, Communities and Local Government",Homes England,FALCON PEST CONTROL,LANDSCAPE MAINT-BUILT ESTATE,South West,05/12/2019,380,S,72102100,Pest control
"Ministry of Housing, Communities and Local Government",Homes England,FIRST CHOICE CLEANING & MAINTENANCE LTD,ESTATE GENERAL MAINTENANCE,Midlands,19/12/2019,920,S,72153501,Building exterior cleaning service  
"Ministry of Housing, Communities and Local Government",Homes England,FIRST CHOICE CLEANING & MAINTENANCE LTD,ESTATE GENERAL MAINTENANCE,Midlands,19/12/2019,1920,S,72153501,Building exterior cleaning service  
"Ministry of Housing, Communities and Local Government",Homes England,Francis Taylor Building,LEGAL FEES,East And South East,06/12/2019,500,S,80121600,Business law services
"Ministry of Housing, Communities and Local Government",Homes England,Francis Taylor Building,LEGAL FEES,East And South East,06/12/2019,750,S,80121600,Business law services
"Ministry of Housing, Communities and Local Government",Homes England,Francis Taylor Building,LEGAL FEES,East And South East,06/12/2019,1500,S,80121600,Business law services
"Ministry of Housing, Communities and Local Government",Homes England,GLENNY LLP,ESTATE GENERAL MAINTENANCE,South East,06/12/2019,786.5,S,72101500,Building maintenance and repair services
"Ministry of Housing, Communities and Local Government",Homes England,GVA GRIMLEY T/A AVISON YOUNG,PROPERTY SERVICES,North East And Yorkshire,02/12/2019,250,L,80131800,Real estate management services
"Ministry of Housing, Communities and Local Government",Homes England,GVA GRIMLEY T/A AVISON YOUNG,PROPERTY SERVICES,Programmes,02/12/2019,500,L,80131800,Real estate management services
"Ministry of Housing, Communities and Local Government",Homes England,GVA GRIMLEY T/A AVISON YOUNG,PROPERTY SERVICES,Programmes,02/12/2019,500,L,80131800,Real estate management services
"Ministry of Housing, Communities and Local Government",Homes England,GVA GRIMLEY T/A AVISON YOUNG,PROPERTY SERVICES,Programmes,02/12/2019,500,L,80131800,Real estate management services
"Ministry of Housing, Communities and Local Government",Homes England,GVA GRIMLEY T/A AVISON YOUNG,PROPERTY SERVICES,Programmes,02/12/2019,500,L,80131800,Real estate management services
"Ministry of Housing, Communities and Local Government",Homes England,GVA GRIMLEY T/A AVISON YOUNG,PROPERTY SERVICES,North East And Yorkshire,02/12/2019,250,L,80131800,Real estate management services
"Ministry of Housing, Communities and Local Government",Homes England,GVA GRIMLEY T/A AVISON YOUNG,RI - MONITORING SURVEYOR FEES,Economic Assets Hub,02/12/2019,800,L,80131800,Real estate management services
"Ministry of Housing, Communities and Local Government",Homes England,GVA GRIMLEY T/A AVISON YOUNG,MANAGEMENT COSTS,North East And Yorkshire,03/12/2019,250,L,80131800,Real estate management services
"Ministry of Housing, Communities and Local Government",Homes England,GVA GRIMLEY T/A AVISON YOUNG,MANAGEMENT COSTS,North East And Yorkshire,03/12/2019,250,L,80131800,Real estate management services
"Ministry of Housing, Communities and Local Government",Homes England,GVA GRIMLEY T/A AVISON YOUNG,PROPERTY SERVICES,Midlands,04/12/2019,1400,L,80131800,Real estate management services
"Ministry of Housing, Communities and Local Government",Homes England,GVA GRIMLEY T/A AVISON YOUNG,MANAGEMENT COSTS,North West,04/12/2019,1400,L,80131800,Real estate management services
"Ministry of Housing, Communities and Local Government",Homes England,GVA GRIMLEY T/A AVISON YOUNG,MANAGEMENT COSTS,Midlands,04/12/2019,2800,L,80131800,Real estate management services
"Ministry of Housing, Communities and Local Government",Homes England,GVA GRIMLEY T/A AVISON YOUNG,MANAGEMENT COSTS,North West,04/12/2019,1400,L,80131800,Real estate management services
"Ministry of Housing, Communities and Local Government",Homes England,GVA GRIMLEY T/A AVISON YOUNG,PROPERTY SERVICES,Midlands,04/12/2019,797.81,L,80131800,Real estate management services
"Ministry of Housing, Communities and Local Government",Homes England,GVA GRIMLEY T/A AVISON YOUNG,MANAGEMENT COSTS,Midlands,04/12/2019,490.96,L,80131800,Real estate management services
"Ministry of Housing, Communities and Local Government",Homes England,GVA GRIMLEY T/A AVISON YOUNG,MANAGEMENT COSTS,Midlands,04/12/2019,1900,L,80131800,Real estate management services
"Ministry of Housing, Communities and Local Government",Homes England,GVA GRIMLEY T/A AVISON YOUNG,RI - MONITORING SURVEYOR FEES,Economic Assets Hub,05/12/2019,750,L,80131800,Real estate management services
"Ministry of Housing, Communities and Local Government",Homes England,GVA GRIMLEY T/A AVISON YOUNG,RI - MONITORING SURVEYOR FEES,Economic Assets Hub,05/12/2019,900,L,80131800,Real estate management services
"Ministry of Housing, Communities and Local Government",Homes England,GVA GRIMLEY T/A AVISON YOUNG,Professional Fees Loans Capitalised,Economic Assets Hub,05/12/2019,750,L,80131800,Real estate management services
"Ministry of Housing, Communities and Local Government",Homes England,GVA GRIMLEY T/A AVISON YOUNG,MASTERPLANNING FEES,North West,05/12/2019,3266.13,L,80131800,Real estate management services
"Ministry of Housing, Communities and Local Government",Homes England,GVA GRIMLEY T/A AVISON YOUNG,MASTERPLANNING FEES,North West,05/12/2019,625.92,L,80131800,Real estate management services
"Ministry of Housing, Communities and Local Government",Homes England,GVA GRIMLEY T/A AVISON YOUNG,ESTATE AGENTS FEES,North East And Yorkshire,10/12/2019,1250,L,80131800,Real estate management services
"Ministry of Housing, Communities and Local Government",Homes England,GVA GRIMLEY T/A AVISON YOUNG,MISC PROFESSIONAL FEES,East And South East,11/12/2019,2362.5,L,80131800,Real estate management services
"Ministry of Housing, Communities and Local Government",Homes England,GVA GRIMLEY T/A AVISON YOUNG,MISC PROFESSIONAL FEES,East And South East,11/12/2019,500,L,80131800,Real estate management services
"Ministry of Housing, Communities and Local Government",Homes England,GVA GRIMLEY T/A AVISON YOUNG,RI - MONITORING SURVEYOR FEES,Programmes,11/12/2019,918.25,L,80131800,Real estate management services
"Ministry of Housing, Communities and Local Government",Homes England,GVA GRIMLEY T/A AVISON YOUNG,Professional Fees Loans Capitalised,Economic Assets Hub,11/12/2019,3975,L,80131800,Real estate management services
"Ministry of Housing, Communities and Local Government",Homes England,GVA GRIMLEY T/A AVISON YOUNG,RI - MONITORING SURVEYOR FEES,Economic Assets Hub,12/12/2019,1305.27,L,80131800,Real estate management services
"Ministry of Housing, Communities and Local Government",Homes England,GVA GRIMLEY T/A AVISON YOUNG,OTHER PROFESSIONAL FEES,Programmes,12/12/2019,37500,L,80131800,Real estate management services
"Ministry of Housing, Communities and Local Government",Homes England,GVA GRIMLEY T/A AVISON YOUNG,MASTERPLANNING FEES,North West,12/12/2019,3260,L,80131800,Real estate management services
"Ministry of Housing, Communities and Local Government",Homes England,GVA GRIMLEY T/A AVISON YOUNG,MASTERPLANNING FEES,North West,12/12/2019,888.57,L,80131800,Real estate management services
"Ministry of Housing, Communities and Local Government",Homes England,GVA GRIMLEY T/A AVISON YOUNG,MANAGEMENT COSTS,North West,13/12/2019,1400,L,80131800,Real estate management services
"Ministry of Housing, Communities and Local Government",Homes England,GVA GRIMLEY T/A AVISON YOUNG,RI - MONITORING SURVEYOR FEES,Economic Assets Hub,13/12/2019,750,L,80131800,Real estate management services
"Ministry of Housing, Communities and Local Government",Homes England,GVA GRIMLEY T/A AVISON YOUNG,MANAGEMENT COSTS,Midlands,16/12/2019,750,L,80131800,Real estate management services
"Ministry of Housing, Communities and Local Government",Homes England,GVA GRIMLEY T/A AVISON YOUNG,MANAGEMENT COSTS,Midlands,16/12/2019,683.84,L,80131800,Real estate management services
"Ministry of Housing, Communities and Local Government",Homes England,GVA GRIMLEY T/A AVISON YOUNG,MANAGEMENT COSTS,Midlands,16/12/2019,2375,L,80131800,Real estate management services
"Ministry of Housing, Communities and Local Government",Homes England,GVA GRIMLEY T/A AVISON YOUNG,MANAGEMENT COSTS,Midlands,16/12/2019,1500,L,80131800,Real estate management services
"Ministry of Housing, Communities and Local Government",Homes England,GVA GRIMLEY T/A AVISON YOUNG,MANAGEMENT COSTS,Midlands,16/12/2019,750,L,80131800,Real estate management services
"Ministry of Housing, Communities and Local Government",Homes England,GVA GRIMLEY T/A AVISON YOUNG,MANAGEMENT COSTS,Midlands,16/12/2019,600,L,80131800,Real estate management services
"Ministry of Housing, Communities and Local Government",Homes England,GVA GRIMLEY T/A AVISON YOUNG,SECONDED STAFF COSTS,Finance & Corporate Services,17/12/2019,11144,L,80131800,Real estate management services
"Ministry of Housing, Communities and Local Government",Homes England,GVA GRIMLEY T/A AVISON YOUNG,DISPOSAL FEES - PROPERTY AGENTS & ADVERTISING,Midlands,18/12/2019,7405,L,80131800,Real estate management services
"Ministry of Housing, Communities and Local Government",Homes England,GVA GRIMLEY T/A AVISON YOUNG,MANAGEMENT COSTS,Midlands,18/12/2019,1200,L,80131800,Real estate management services
"Ministry of Housing, Communities and Local Government",Homes England,GVA GRIMLEY T/A AVISON YOUNG,MANAGEMENT COSTS,Midlands,18/12/2019,1000,L,80131800,Real estate management services
"Ministry of Housing, Communities and Local Government",Homes England,GVA GRIMLEY T/A AVISON YOUNG,MANAGEMENT COSTS,Midlands,18/12/2019,2000,L,80131800,Real estate management services
"Ministry of Housing, Communities and Local Government",Homes England,GVA GRIMLEY T/A AVISON YOUNG,OPEN MARKET VALUATION FEE,East And South East,18/12/2019,3215,L,80131800,Real estate management services
"Ministry of Housing, Communities and Local Government",Homes England,GVA GRIMLEY T/A AVISON YOUNG,RI - MONITORING SURVEYOR FEES,Economic Assets Hub,19/12/2019,800,L,80131800,Real estate management services
"Ministry of Housing, Communities and Local Government",Homes England,GVA GRIMLEY T/A AVISON YOUNG,RI - MONITORING SURVEYOR FEES,Economic Assets Hub,19/12/2019,1600,L,80131800,Real estate management services
"Ministry of Housing, Communities and Local Government",Homes England,GVA GRIMLEY T/A AVISON YOUNG,RI - MONITORING SURVEYOR FEES,Economic Assets Hub,19/12/2019,935.5,L,80131800,Real estate management services
"Ministry of Housing, Communities and Local Government",Homes England,GVA GRIMLEY T/A AVISON YOUNG,MISC PROFESSIONAL FEES (ADMIN ONLY),Finance & Corporate Services,20/12/2019,90892,L,80131800,Real estate management services
"Ministry of Housing, Communities and Local Government",Homes England,GVA GRIMLEY T/A AVISON YOUNG,MANAGEMENT COSTS,Midlands,23/12/2019,1200,L,80131800,Real estate management services
"Ministry of Housing, Communities and Local Government",Homes England,GVA GRIMLEY T/A AVISON YOUNG,DISPOSAL FEES - PROPERTY AGENTS & ADVERTISING,Midlands,23/12/2019,5586,L,80131800,Real estate management services
"Ministry of Housing, Communities and Local Government",Homes England,GVA GRIMLEY T/A AVISON YOUNG,MANAGEMENT COSTS,Midlands,23/12/2019,450,L,80131800,Real estate management services
"Ministry of Housing, Communities and Local Government",Homes England,GVA GRIMLEY T/A AVISON YOUNG,RI - MONITORING SURVEYOR FEES,Economic Assets Hub,23/12/2019,800,L,80131800,Real estate management services
"Ministry of Housing, Communities and Local Government",Homes England,GRUNDON WASTE MANAGEMENT LTD,ESTATE GENERAL MAINTENANCE,Midlands,04/12/2019,1735,L,76121500,Refuse collection and disposal
"Ministry of Housing, Communities and Local Government",Homes England,GRUNDON WASTE MANAGEMENT LTD,PROPERTY MAINTENANCE,Programmes,13/12/2019,3990,L,76121500,Refuse collection and disposal
"Ministry of Housing, Communities and Local Government",Homes England,GEOTECHNICS LIMITED,CONTRACT WORKS,North East And Yorkshire,12/12/2019,291.3,M,77101500,Environmental auditing
"Ministry of Housing, Communities and Local Government",Homes England,GVA LTD,SERVICE CHARGE,South West,04/12/2019,13512,L,80131500,Lease and rental of property or building
"Ministry of Housing, Communities and Local Government",Homes England,GVA LTD,SERVICE CHARGE,South West,05/12/2019,29631,L,80131500,Lease and rental of property or building
"Ministry of Housing, Communities and Local Government",Homes England,GATESHEAD METROPOLITAN BOROUGH COUNCIL,CAPITAL GRANTS TO LOCAL AUTHORITIES,Programmes,18/12/2019,403259,G,,Grants
"Ministry of Housing, Communities and Local Government",Homes England,GLASSHOUSES123 LIMITED,ST Fund Loans Additions,Economic Assets Hub,12/12/2019,200000,,,Loans
"Ministry of Housing, Communities and Local Government",Homes England,GLASSHOUSES123 LIMITED,ST Fund Loans Additions,Economic Assets Hub,20/12/2019,147134,,,Loans
"Ministry of Housing, Communities and Local Government",Homes England,GLASSHOUSES123 LIMITED,ST Fund Loans Additions,Economic Assets Hub,24/12/2019,174099.19,,,Loans
"Ministry of Housing, Communities and Local Government",Homes England,GULP DIGITAL LIMITED,MISC PROFESSIONAL FEES (ADMIN ONLY),Economic Assets Hub,11/12/2019,105000,S,80101500,Business and corporate management consultation services�
"Ministry of Housing, Communities and Local Government",Homes England,GBR DEVELOPMENTS LLP,ST Fund Loans Additions,Economic Assets Hub,20/12/2019,54240.46,,,Loans
"Ministry of Housing, Communities and Local Government",Homes England,GHP CONSTRUCTION LIMITED,PROPERTY MAINTENANCE,Programmes,18/12/2019,654.36,S,72101500,Building maintenance and repair services
"Ministry of Housing, Communities and Local Government",Homes England,GVA GRIMLEY LTD CLIENT A/C,SERVICE RENTS & ESTATE CHARGES,Midlands,04/12/2019,1116.82,L,80131500,Lease and rental of property or building
"Ministry of Housing, Communities and Local Government",Homes England,GVA GRIMLEY LTD CLIENT A/C,SERVICE RENTS & ESTATE CHARGES,Midlands,04/12/2019,3960.08,L,80131500,Lease and rental of property or building
"Ministry of Housing, Communities and Local Government",Homes England,GUARDING UK LTD,SECURITY,East And South East,09/12/2019,932.5,L,92121500,Guard services
"Ministry of Housing, Communities and Local Government",Homes England,GUARDING UK LTD,SECURITY,South West,11/12/2019,932.5,L,92121500,Guard services
"Ministry of Housing, Communities and Local Government",Homes England,GUARDING UK LTD,SECURITY,South West,11/12/2019,932.5,L,92121500,Guard services
"Ministry of Housing, Communities and Local Government",Homes England,GUARDING UK LTD,SECURITY,South West,11/12/2019,932.5,L,92121500,Guard services
"Ministry of Housing, Communities and Local Government",Homes England,GUARDING UK LTD,SECURITY,South West,11/12/2019,932.5,L,92121500,Guard services
"Ministry of Housing, Communities and Local Government",Homes England,GUARDING UK LTD,SECURITY,East And South East,19/12/2019,932.5,L,92121500,Guard services
"Ministry of Housing, Communities and Local Government",Homes England,GRITIT LTD,ESTATE GENERAL MAINTENANCE,South West,06/12/2019,311.88,M,72153501,Building exterior cleaning service  
"Ministry of Housing, Communities and Local Government",Homes England,GVA (PMA321),SERVICE CHARGE,Programmes,16/12/2019,2520,L,80131500,Lease and rental of property or building
"Ministry of Housing, Communities and Local Government",Homes England,GVA GRIMLEY T/A AVISON YOUNG,SERVICE RENTS & ESTATE CHARGES,Programmes,20/12/2019,312.61,L,80131800,Real estate management services
"Ministry of Housing, Communities and Local Government",Homes England,GVA GRIMLEY T/A AVISON YOUNG,SERVICE RENTS & ESTATE CHARGES,Programmes,20/12/2019,331.69,L,80131800,Real estate management services
"Ministry of Housing, Communities and Local Government",Homes England,GENTOO HOMES LTD,ST Fund Loans Additions,Economic Assets Hub,03/12/2019,288154,L,,Loans
"Ministry of Housing, Communities and Local Government",Homes England,GENTOO HOMES LTD,ST Fund Loans Additions,Economic Assets Hub,17/12/2019,506563,L,,Loans
"Ministry of Housing, Communities and Local Government",Homes England,HAYMARKET MEDIA GROUP,MANAGEMENT DEVELOPMENT,Finance & Corporate Services,05/12/2019,1150.2,M,94101500,Business associations
"Ministry of Housing, Communities and Local Government",Homes England,HAYMARKET MEDIA GROUP,MANAGEMENT DEVELOPMENT,Finance & Corporate Services,05/12/2019,1744.8,M,94101500,Business associations
"Ministry of Housing, Communities and Local Government",Homes England,HAYS ACCOUNTANCY & FINANCE,AGENCY STAFF,Programmes,03/12/2019,6583.5,L,80111600,Temporary personnel services
"Ministry of Housing, Communities and Local Government",Homes England,HAYS ACCOUNTANCY & FINANCE,AGENCY STAFF,Programmes,10/12/2019,6583.5,L,80111600,Temporary personnel services
"Ministry of Housing, Communities and Local Government",Homes England,HAYS ACCOUNTANCY & FINANCE,AGENCY STAFF,Programmes,11/12/2019,6583.5,L,80111600,Temporary personnel services
"Ministry of Housing, Communities and Local Government",Homes England,HAYS ACCOUNTANCY & FINANCE,AGENCY STAFF,Programmes,23/12/2019,6583.5,L,80111600,Temporary personnel services
"Ministry of Housing, Communities and Local Government",Homes England,ARCADIS CONSULTING (UK) LIMITED,AGENCY STAFF,Finance & Corporate Services,02/12/2019,11492.11,L,811001500,Civil Engineering
"Ministry of Housing, Communities and Local Government",Homes England,ARCADIS CONSULTING (UK) LIMITED,OTHER PROFESSIONAL FEES,South West,02/12/2019,40000,L,811001500,Civil Engineering
"Ministry of Housing, Communities and Local Government",Homes England,ARCADIS CONSULTING (UK) LIMITED,PLANNING APPLICATIONS,Programmes,02/12/2019,132358.16,L,811001500,Civil Engineering
"Ministry of Housing, Communities and Local Government",Homes England,ARCADIS CONSULTING (UK) LIMITED,RI - MONITORING SURVEYOR FEES,Programmes,05/12/2019,1950,L,811001500,Civil Engineering
"Ministry of Housing, Communities and Local Government",Homes England,ARCADIS CONSULTING (UK) LIMITED,OTHER PROFESSIONAL FEES,Programmes,18/12/2019,59498.73,L,811001500,Civil Engineering
"Ministry of Housing, Communities and Local Government",Homes England,ARCADIS CONSULTING (UK) LIMITED,OTHER PROFESSIONAL FEES,Programmes,18/12/2019,120077.27,L,811001500,Civil Engineering
"Ministry of Housing, Communities and Local Government",Homes England,SODEXO LIMITED,TEAM MEETINGS,Programmes,02/12/2019,544.25,L,90101600,Banquet and catering services
"Ministry of Housing, Communities and Local Government",Homes England,HSS HIRE SERVICE GROUP PLC,FURNITURE & EQUIPMENT-MAINTENANCE,Finance & Corporate Services,03/12/2019,5491.25,L,72102900,Facility maintenance and repair services
"Ministry of Housing, Communities and Local Government",Homes England,HSS HIRE SERVICE GROUP PLC,FURNITURE & EQUIPMENT-MAINTENANCE,Finance & Corporate Services,03/12/2019,1928.06,L,72102900,Facility maintenance and repair services
"Ministry of Housing, Communities and Local Government",Homes England,HSS HIRE SERVICE GROUP PLC,FURNITURE & EQUIPMENT-MAINTENANCE,Finance & Corporate Services,05/12/2019,439.3,L,72102900,Facility maintenance and repair services
"Ministry of Housing, Communities and Local Government",Homes England,HSS HIRE SERVICE GROUP PLC,FURNITURE & EQUIPMENT-MAINTENANCE,Finance & Corporate Services,10/12/2019,1308.06,L,72102900,Facility maintenance and repair services
"Ministry of Housing, Communities and Local Government",Homes England,HSS HIRE SERVICE GROUP PLC,FURNITURE & EQUIPMENT-MAINTENANCE,Finance & Corporate Services,24/12/2019,1271.4,L,72102900,Facility maintenance and repair services
"Ministry of Housing, Communities and Local Government",Homes England,HARTNELL TAYLOR COOK LLP,PROJECT MANAGEMENT,South West,10/12/2019,1250,M,80131800,Real estate management services
"Ministry of Housing, Communities and Local Government",Homes England,HOLROYD HOMES (YORKSHIRE) LTD,ST Fund Loans Additions,Economic Assets Hub,20/12/2019,86093.31,,,Loans
"Ministry of Housing, Communities and Local Government",Homes England,HASTINGS BOROUGH COUNCIL,CAPITAL GRANTS TO LOCAL AUTHORITIES,Programmes,16/12/2019,302683.22,G,,Grants
"Ministry of Housing, Communities and Local Government",Homes England,HYDROSURE LIMITED,ESTATE GENERAL MAINTENANCE,North East And Yorkshire,24/12/2019,300,S,72101500,Building maintenance and repair services
"Ministry of Housing, Communities and Local Government",Homes England,HOUSING GROWTH PARTNERSHIP LIMITED,Managed Funds - Additions,Programmes,17/12/2019,1654108.13,,,Loans
"Ministry of Housing, Communities and Local Government",Homes England,HOUSING GROWTH PARTNERSHIP LIMITED,Managed Funds - Additions,Programmes,20/12/2019,794794,,,Loans
"Ministry of Housing, Communities and Local Government",Homes England,HAYFIELD HOMES (FARINGDON ROAD) LIMITED,ST Fund Loans Additions,Economic Assets Hub,18/12/2019,300746,,,Loans
"Ministry of Housing, Communities and Local Government",Homes England,HARROW GREEN LIMITED,OFFICE RELOCATION COSTS,Finance & Corporate Services,02/12/2019,1500,L,72102900,Facility maintenance and repair services
"Ministry of Housing, Communities and Local Government",Homes England,HARROW GREEN LIMITED,OFFICE RELOCATION COSTS,Finance & Corporate Services,03/12/2019,11622,L,72102900,Facility maintenance and repair services
"Ministry of Housing, Communities and Local Government",Homes England,HARROW GREEN LIMITED,OFFICE RELOCATION COSTS,Finance & Corporate Services,04/12/2019,2741,L,72102900,Facility maintenance and repair services
"Ministry of Housing, Communities and Local Government",Homes England,HARROW GREEN LIMITED,OFFICE RELOCATION COSTS,Finance & Corporate Services,18/12/2019,10636.8,L,72102900,Facility maintenance and repair services
"Ministry of Housing, Communities and Local Government",Homes England,HARROW GREEN LIMITED,OFFICE RELOCATION COSTS,Finance & Corporate Services,19/12/2019,3003.4,L,72102900,Facility maintenance and repair services
"Ministry of Housing, Communities and Local Government",Homes England,HARROW GREEN LIMITED,BUILDING REDECORATION & ADHOC WORKS,Finance & Corporate Services,20/12/2019,957,L,72102900,Facility maintenance and repair services
"Ministry of Housing, Communities and Local Government",Homes England,HABLE EDUCATION LTD,BESPOKE DEVELOPMENT SUPPORT,Finance & Corporate Services,10/12/2019,59340,S,86101800,In service training and manpower development
"Ministry of Housing, Communities and Local Government",Homes England,HABLE EDUCATION LTD,BESPOKE DEVELOPMENT SUPPORT,Finance & Corporate Services,12/12/2019,1900,S,86101800,In service training and manpower development
"Ministry of Housing, Communities and Local Government",Homes England,HERON CONSTRUCTIVE SOLUTIONS LTD,ROADS & CAR PARKS,Programmes,16/12/2019,1546.56,S,72102900,Facility maintenance and repair services
"Ministry of Housing, Communities and Local Government",Homes England,HENLEY CAMLAND EBBSFLEET 801 LIMITED,LT Fund Loans (Ps) Additions,Economic Assets Hub,19/12/2019,1369179,,,Loans
"Ministry of Housing, Communities and Local Government",Homes England,HODSON DEVELOPMENTS (ASHFORD) LTD.,LT Fund Loans (Ps) Additions,Economic Assets Hub,02/12/2019,182495.46,,,Loans
"Ministry of Housing, Communities and Local Government",Homes England,HODSON DEVELOPMENTS (ASHFORD) LTD.,LT Fund Loans (Ps) Additions,Economic Assets Hub,12/12/2019,274276.02,,,Loans
"Ministry of Housing, Communities and Local Government",Homes England,HANWOOD PARK LLP,LT Fund Loans (Ps) Additions,Economic Assets Hub,16/12/2019,659628.17,,,Loans
"Ministry of Housing, Communities and Local Government",Homes England,HARTTRON LIMITED,OTHER PROFESSIONAL FEES,North West,12/12/2019,2695.2,S,81151604,Land surveying  
"Ministry of Housing, Communities and Local Government",Homes England,HALES GROUP LTD,AGENCY STAFF,Finance & Corporate Services,03/12/2019,319.1,M,80111600,Temporary personnel services
"Ministry of Housing, Communities and Local Government",Homes England,HEWITSONS SOLICITORS,DISPOSAL FEES - LEGAL,North East And Yorkshire,02/12/2019,1500,M,80121600,Business law services
"Ministry of Housing, Communities and Local Government",Homes England,HEWITSONS SOLICITORS,DISPOSAL FEES - LEGAL,South West,02/12/2019,1500,M,80121600,Business law services
"Ministry of Housing, Communities and Local Government",Homes England,HEWITSONS SOLICITORS,LEGAL FEES,East And South East,02/12/2019,760,M,80121600,Business law services
"Ministry of Housing, Communities and Local Government",Homes England,HEWITSONS SOLICITORS,LEGAL FEES,North East And Yorkshire,02/12/2019,965,M,80121600,Business law services
"Ministry of Housing, Communities and Local Government",Homes England,HEWITSONS SOLICITORS,DISPOSAL FEES - LEGAL,Midlands,03/12/2019,600,M,80121600,Business law services
"Ministry of Housing, Communities and Local Government",Homes England,HEWITSONS SOLICITORS,DISPOSAL FEES - LEGAL,East And South East,03/12/2019,395,M,80121600,Business law services
"Ministry of Housing, Communities and Local Government",Homes England,HEWITSONS SOLICITORS,LEGAL FEES,East And South East,03/12/2019,300,M,80121600,Business law services
"Ministry of Housing, Communities and Local Government",Homes England,HEWITSONS SOLICITORS,DISPOSAL FEES - LEGAL,North West,05/12/2019,1500,M,80121600,Business law services
"Ministry of Housing, Communities and Local Government",Homes England,HEWITSONS SOLICITORS,LEGAL FEES,North West,05/12/2019,1425,M,80121600,Business law services
"Ministry of Housing, Communities and Local Government",Homes England,HEWITSONS SOLICITORS,Professional Fees Loans Capitalised,Economic Assets Hub,09/12/2019,12000,M,80121600,Business law services
"Ministry of Housing, Communities and Local Government",Homes England,HEWITSONS SOLICITORS,LEGAL FEES,Economic Assets Hub,10/12/2019,250,M,80121600,Business law services
"Ministry of Housing, Communities and Local Government",Homes England,HEWITSONS SOLICITORS,LEGAL FEES,Economic Assets Hub,10/12/2019,250,M,80121600,Business law services
"Ministry of Housing, Communities and Local Government",Homes England,HEWITSONS SOLICITORS,DISPOSAL FEES - LEGAL,South West,10/12/2019,475,M,80121600,Business law services
"Ministry of Housing, Communities and Local Government",Homes England,HEWITSONS SOLICITORS,LEGAL FEES,Economic Assets Hub,11/12/2019,250,M,80121600,Business law services
"Ministry of Housing, Communities and Local Government",Homes England,HEWITSONS SOLICITORS,MISC PROFESSIONAL FEES,East And South East,17/12/2019,1595,M,80121600,Business law services
"Ministry of Housing, Communities and Local Government",Homes England,HEWITSONS SOLICITORS,DISPOSAL FEES - LEGAL,East And South East,17/12/2019,1690,M,80121600,Business law services
"Ministry of Housing, Communities and Local Government",Homes England,HEWITSONS SOLICITORS,Homebuy Agents Fees,Programmes,19/12/2019,6070,M,80121600,Business law services
"Ministry of Housing, Communities and Local Government",Homes England,HEWITSONS SOLICITORS,DISPOSAL FEES - LEGAL,North East And Yorkshire,20/12/2019,475,M,80121600,Business law services
"Ministry of Housing, Communities and Local Government",Homes England,HEWITSONS SOLICITORS,DISPOSAL FEES - LEGAL,East And South East,20/12/2019,475,M,80121600,Business law services
"Ministry of Housing, Communities and Local Government",Homes England,HEWITSONS SOLICITORS,DISPOSAL FEES - LEGAL,Midlands,20/12/2019,1930,M,80121600,Business law services
"Ministry of Housing, Communities and Local Government",Homes England,HEWITSONS SOLICITORS,DISPOSAL FEES - LEGAL,South West,20/12/2019,2025,M,80121600,Business law services
"Ministry of Housing, Communities and Local Government",Homes England,HEWITSONS SOLICITORS,DISPOSAL FEES - LEGAL,East And South East,20/12/2019,2875,M,80121600,Business law services
"Ministry of Housing, Communities and Local Government",Homes England,HEWITSONS SOLICITORS,LEGAL FEES,North West,20/12/2019,775,M,80121600,Business law services
"Ministry of Housing, Communities and Local Government",Homes England,HEWITSONS SOLICITORS,MISC PROFESSIONAL FEES,East And South East,20/12/2019,855,M,80121600,Business law services
"Ministry of Housing, Communities and Local Government",Homes England,HEWITSONS SOLICITORS,DISPOSAL FEES - LEGAL,Midlands,20/12/2019,1060,M,80121600,Business law services
"Ministry of Housing, Communities and Local Government",Homes England,HEWITSONS SOLICITORS,LEGAL FEES,East And South East,20/12/2019,570,M,80121600,Business law services
"Ministry of Housing, Communities and Local Government",Homes England,HEWITSONS SOLICITORS,LEGAL FEES,North West,20/12/2019,1500,M,80121600,Business law services
"Ministry of Housing, Communities and Local Government",Homes England,GL HEARN LIMITED,MISC PROFESSIONAL FEES,North West,12/12/2019,5665,S,80131800,Real estate management services
"Ministry of Housing, Communities and Local Government",Homes England,GL HEARN LIMITED,AGENCY STAFF,Programmes,12/12/2019,26649.62,S,80131800,Real estate management services
"Ministry of Housing, Communities and Local Government",Homes England,GL HEARN LIMITED,MISC PROFESSIONAL FEES,East And South East,17/12/2019,6333,S,80131800,Real estate management services
"Ministry of Housing, Communities and Local Government",Homes England,GL HEARN LIMITED,PROPERTY SERVICES,Programmes,20/12/2019,4709.6,S,80131800,Real estate management services
"Ministry of Housing, Communities and Local Government",Homes England,HUDDLE,PACKAGE MAINTENANCE & SUBSCRIPTIONS,Finance & Corporate Services,12/12/2019,30000,S,43231500,Business function specific software
"Ministry of Housing, Communities and Local Government",Homes England,HIGHBROOK HOMES (KIRKSTONE) LTD,ST Fund Loans Additions,Economic Assets Hub,12/12/2019,227495.11,,,Loans
"Ministry of Housing, Communities and Local Government",Homes England,HIGHWAYS ENGLAND COMPANY LTD,SERVICE CHARGES,Finance & Corporate Services,11/12/2019,56776.02,G,80131500,Lease and rental of property or building
"Ministry of Housing, Communities and Local Government",Homes England,INNOVATIVE IGLOO LIMITED,SITE SPECIFIC SIGNAGE,Midlands,19/12/2019,650,S,55121700,Signage
"Ministry of Housing, Communities and Local Government",Homes England,INDEPTH MANAGED SERVICES,CLEANING,Finance & Corporate Services,04/12/2019,1362.86,L,76111500,General building and office cleaining and maintenance services
"Ministry of Housing, Communities and Local Government",Homes England,INDEPTH MANAGED SERVICES,CLEANING,Finance & Corporate Services,04/12/2019,2954.08,L,76111500,General building and office cleaining and maintenance services
"Ministry of Housing, Communities and Local Government",Homes England,INDEPTH MANAGED SERVICES,CLEANING,Finance & Corporate Services,04/12/2019,1226.62,L,76111500,General building and office cleaining and maintenance services
"Ministry of Housing, Communities and Local Government",Homes England,INDEPTH MANAGED SERVICES,CLEANING,Finance & Corporate Services,04/12/2019,2975.58,L,76111500,General building and office cleaining and maintenance services
"Ministry of Housing, Communities and Local Government",Homes England,IPSWICH WHARF DEVELOPMENTS LIMITED,ST Fund Loans Additions,Economic Assets Hub,17/12/2019,51956.29,,,Loans
"Ministry of Housing, Communities and Local Government",Homes England,IPSWICH WHARF DEVELOPMENTS LIMITED,ST Fund Loans Additions,Economic Assets Hub,18/12/2019,441799.51,,,Loans
"Ministry of Housing, Communities and Local Government",Homes England,INFORMATION DATAHUB,MISC PROFESSIONAL FEES,Programmes,10/12/2019,21900,S,43231500,Business function specific software
"Ministry of Housing, Communities and Local Government",Homes England,ICIAN DEVELOPMENT LIMITED,Gbb Equity A Repayments,Economic Assets Hub,18/12/2019,5684,,,Loans
"Ministry of Housing, Communities and Local Government",Homes England,JONES LANG LASALLE,OPEN MARKET VALUATION FEE,North West,02/12/2019,16925,L,80131800,Real estate management services
"Ministry of Housing, Communities and Local Government",Homes England,JONES LANG LASALLE,RI - MONITORING SURVEYOR FEES,Economic Assets Hub,04/12/2019,950,L,80131800,Real estate management services
"Ministry of Housing, Communities and Local Government",Homes England,JONES LANG LASALLE,RI - MONITORING SURVEYOR FEES,Economic Assets Hub,05/12/2019,1600,L,80131800,Real estate management services
"Ministry of Housing, Communities and Local Government",Homes England,JONES LANG LASALLE,DISPOSAL FEES - PROPERTY AGENTS & ADVERTISING,Programmes,13/12/2019,13600,L,80131800,Real estate management services
"Ministry of Housing, Communities and Local Government",Homes England,JONES LANG LASALLE,PROPERTY SERVICES,North East And Yorkshire,13/12/2019,11750,L,80131800,Real estate management services
"Ministry of Housing, Communities and Local Government",Homes England,JONES LANG LASALLE,RI - SITE VALUATION FEES,Economic Assets Hub,16/12/2019,8950,L,80131800,Real estate management services
"Ministry of Housing, Communities and Local Government",Homes England,JONES LANG LASALLE,Professional Fees Loans Capitalised,Economic Assets Hub,16/12/2019,3000,L,80131800,Real estate management services
"Ministry of Housing, Communities and Local Government",Homes England,JONES LANG LASALLE,OPEN MARKET VALUATION FEE,Programmes,17/12/2019,3000,L,80131800,Real estate management services
"Ministry of Housing, Communities and Local Government",Homes England,JONES LANG LASALLE,OPEN MARKET VALUATION FEE,Programmes,18/12/2019,10000,L,80131800,Real estate management services
"Ministry of Housing, Communities and Local Government",Homes England,JONES LANG LASALLE,Professional Fees Loans Capitalised,Economic Assets Hub,20/12/2019,2500,L,80131800,Real estate management services
"Ministry of Housing, Communities and Local Government",Homes England,JONES LANG LASALLE,OPEN MARKET VALUATION FEE,Programmes,23/12/2019,4500,L,80131800,Real estate management services
"Ministry of Housing, Communities and Local Government",Homes England,JONES LANG LASALLE,OPEN MARKET VALUATION FEE,Programmes,24/12/2019,2500,L,80131800,Real estate management services
"Ministry of Housing, Communities and Local Government",Homes England,JONES LANG LASALLE,OPEN MARKET VALUATION FEE,Programmes,24/12/2019,3500,L,80131800,Real estate management services
"Ministry of Housing, Communities and Local Government",Homes England,JOHN BROADBENT CONSULTING LIMITED,PROPERTY SERVICES,North West,05/12/2019,845.37,S,80131800,Real estate management services
"Ministry of Housing, Communities and Local Government",Homes England,JONES BROS 1877 LTD,CATERING,Finance & Corporate Services,03/12/2019,295,S,50131700,Milk and butter products
"Ministry of Housing, Communities and Local Government",Homes England,JCP LIGHT HAULAGE,POSTAGE/COURIERS,Finance & Corporate Services,23/12/2019,2695,S,78102200,Postal and small parcel and courier services
"Ministry of Housing, Communities and Local Government",Homes England,KNIGHT FRANK LLP,MISC PROFESSIONAL FEES,Programmes,17/12/2019,62700,L,80131800,Real estate management services
"Ministry of Housing, Communities and Local Government",Homes England,KMS COMMERCIAL PROPERTY MAINTENANCE LTD,ESTATE GENERAL MAINTENANCE,North West,12/12/2019,1625,M,72101500,Building maintenance and repair services
"Ministry of Housing, Communities and Local Government",Homes England,KMS COMMERCIAL PROPERTY MAINTENANCE LTD,ESTATE GENERAL MAINTENANCE,North West,12/12/2019,268.55,M,72101500,Building maintenance and repair services
"Ministry of Housing, Communities and Local Government",Homes England,KMS COMMERCIAL PROPERTY MAINTENANCE LTD,ESTATE GENERAL MAINTENANCE,North West,12/12/2019,1996.5,M,72101500,Building maintenance and repair services
"Ministry of Housing, Communities and Local Government",Homes England,KERNOW TREE SURGERY,OTHER PROFESSIONAL FEES,South West,06/12/2019,264.58,S,72101500,Building maintenance and repair services
"Ministry of Housing, Communities and Local Government",Homes England,KERNOW TREE SURGERY,ESTATE GENERAL MAINTENANCE,South West,19/12/2019,380.53,S,72101500,Building maintenance and repair services
"Ministry of Housing, Communities and Local Government",Homes England,KERNOW TREE SURGERY,ESTATE GENERAL MAINTENANCE,South West,19/12/2019,495,S,72101500,Building maintenance and repair services
"Ministry of Housing, Communities and Local Government",Homes England,CSL - KPMG LLP,COURSES & CONFERENCES,Programmes,02/12/2019,594,L,86101800,In service training and manpower development
"Ministry of Housing, Communities and Local Government",Homes England,CHUBB FIRE LIMITED,SECURITY (Incl Fire Prevention),Finance & Corporate Services,24/12/2019,256.79,L,72102900,Facility maintenance and repair services
"Ministry of Housing, Communities and Local Government",Homes England,CHUBB FIRE LIMITED,SECURITY (Incl Fire Prevention),Finance & Corporate Services,24/12/2019,622.93,L,72102900,Facility maintenance and repair services
"Ministry of Housing, Communities and Local Government",Homes England,KC PROPERTY SERVICES LTD,ST Fund Loans Additions,Economic Assets Hub,13/12/2019,35140.5,,,Loans
"Ministry of Housing, Communities and Local Government",Homes England,KINGSWOOD HOMES (FORTON) LIMITED,ST Fund Loans Additions,Economic Assets Hub,18/12/2019,307328.3,,,Loans
"Ministry of Housing, Communities and Local Government",Homes England,KINGSWOOD HOMES DEVON LIMITED,ST Fund Loans Additions,Economic Assets Hub,20/12/2019,152369,,,Loans
"Ministry of Housing, Communities and Local Government",Homes England,NORTH EAST PROPERTY PARTNERSHIP,SERVICE CHARGES,Finance & Corporate Services,20/12/2019,391.32,S,80131800,Real estate management services
"Ministry of Housing, Communities and Local Government",Homes England,KELMEC LTD,ESTATE GENERAL MAINTENANCE,North East And Yorkshire,20/12/2019,850,S,72101500,Building maintenance and repair services
"Ministry of Housing, Communities and Local Government",Homes England,LAMBERT SMITH HAMPTON,RI - MONITORING SURVEYOR FEES,Economic Assets Hub,02/12/2019,650,L,80131800,Real estate management services
"Ministry of Housing, Communities and Local Government",Homes England,LAMBERT SMITH HAMPTON,RI - MONITORING SURVEYOR FEES,Economic Assets Hub,02/12/2019,650,L,80131800,Real estate management services
"Ministry of Housing, Communities and Local Government",Homes England,LAMBERT SMITH HAMPTON,DISPOSAL FEES - PROPERTY AGENTS & ADVERTISING,Midlands,03/12/2019,3845,L,80131800,Real estate management services
"Ministry of Housing, Communities and Local Government",Homes England,LAMBERT SMITH HAMPTON,MISC PROFESSIONAL FEES,Programmes,03/12/2019,650,L,80131800,Real estate management services
"Ministry of Housing, Communities and Local Government",Homes England,LAMBERT SMITH HAMPTON,RI - MONITORING SURVEYOR FEES,Economic Assets Hub,03/12/2019,3801.17,L,80131800,Real estate management services
"Ministry of Housing, Communities and Local Government",Homes England,LAMBERT SMITH HAMPTON,RI - SITE VALUATION FEES,Economic Assets Hub,04/12/2019,3311,L,80131800,Real estate management services
"Ministry of Housing, Communities and Local Government",Homes England,LAMBERT SMITH HAMPTON,MISC PROFESSIONAL FEES,North West,05/12/2019,9149,L,80131800,Real estate management services
"Ministry of Housing, Communities and Local Government",Homes England,LAMBERT SMITH HAMPTON,OPEN MARKET VALUATION FEE,North East And Yorkshire,05/12/2019,250,L,80131800,Real estate management services
"Ministry of Housing, Communities and Local Government",Homes England,LAMBERT SMITH HAMPTON,MISC PROFESSIONAL FEES,North West,05/12/2019,10195,L,80131800,Real estate management services
"Ministry of Housing, Communities and Local Government",Homes England,LAMBERT SMITH HAMPTON,Professional Fees Loans Capitalised,Economic Assets Hub,06/12/2019,3000,L,80131800,Real estate management services
"Ministry of Housing, Communities and Local Government",Homes England,LAMBERT SMITH HAMPTON,RI - MONITORING SURVEYOR FEES,Programmes,11/12/2019,650,L,80131800,Real estate management services
"Ministry of Housing, Communities and Local Government",Homes England,LAMBERT SMITH HAMPTON,RI - MONITORING SURVEYOR FEES,Economic Assets Hub,12/12/2019,900,L,80131800,Real estate management services
"Ministry of Housing, Communities and Local Government",Homes England,LAMBERT SMITH HAMPTON,RI - MONITORING SURVEYOR FEES,Economic Assets Hub,12/12/2019,900,L,80131800,Real estate management services
"Ministry of Housing, Communities and Local Government",Homes England,LAMBERT SMITH HAMPTON,RI - MONITORING SURVEYOR FEES,Economic Assets Hub,16/12/2019,600,L,80131800,Real estate management services
"Ministry of Housing, Communities and Local Government",Homes England,LAMBERT SMITH HAMPTON,ESTATE AGENTS FEES,North East And Yorkshire,18/12/2019,375,L,80131800,Real estate management services
"Ministry of Housing, Communities and Local Government",Homes England,LAMBERT SMITH HAMPTON,MISC PROFESSIONAL FEES,North West,19/12/2019,9149,L,80131800,Real estate management services
"Ministry of Housing, Communities and Local Government",Homes England,LAMBERT SMITH HAMPTON,PROPERTY SERVICES,South West,20/12/2019,9000,L,80131800,Real estate management services
"Ministry of Housing, Communities and Local Government",Homes England,LAMBERT SMITH HAMPTON,OPEN MARKET VALUATION FEE,South West,23/12/2019,1000,L,80131800,Real estate management services
"Ministry of Housing, Communities and Local Government",Homes England,LAMBERT SMITH HAMPTON,RI - MONITORING SURVEYOR FEES,Economic Assets Hub,24/12/2019,1100,L,80131800,Real estate management services
"Ministry of Housing, Communities and Local Government",Homes England,LAMBERT SMITH HAMPTON,RI - MONITORING SURVEYOR FEES,Economic Assets Hub,24/12/2019,1100,L,80131800,Real estate management services
"Ministry of Housing, Communities and Local Government",Homes England,LAMBERT SMITH HAMPTON,RI - MONITORING SURVEYOR FEES,Economic Assets Hub,24/12/2019,650,L,80131800,Real estate management services
"Ministry of Housing, Communities and Local Government",Homes England,LAMBERT SMITH HAMPTON,Professional Fees Loans Capitalised,Economic Assets Hub,24/12/2019,4500,L,80131800,Real estate management services
"Ministry of Housing, Communities and Local Government",Homes England,LAMBERT SMITH HAMPTON,Professional Fees Loans Capitalised,Economic Assets Hub,24/12/2019,2044.17,L,80131800,Real estate management services
"Ministry of Housing, Communities and Local Government",Homes England,BROADLAND HOUSING ASSOCIATION LIMITED,CAPITAL GRANTS TO RPs (NOT LA),East & South East,24/12/2019,103500,,,Grants
"Ministry of Housing, Communities and Local Government",Homes England,BROADLAND HOUSING ASSOCIATION LIMITED,CAPITAL GRANTS TO RPs (NOT LA),East & South East,24/12/2019,17250,,,Grants
"Ministry of Housing, Communities and Local Government",Homes England,BROADLAND HOUSING ASSOCIATION LIMITED,CAPITAL GRANTS TO RPs (NOT LA),East & South East,24/12/2019,107250,,,Grants
"Ministry of Housing, Communities and Local Government",Homes England,THE RIVERSIDE GROUP,CAPITAL GRANTS TO RPs (NOT LA),North West,10/12/2019,9000,L,,Grants
"Ministry of Housing, Communities and Local Government",Homes England,THE RIVERSIDE GROUP,CAPITAL GRANTS TO RPs (NOT LA),North West,17/12/2019,703000,L,,Grants
"Ministry of Housing, Communities and Local Government",Homes England,THE RIVERSIDE GROUP,REVENUE GRANTS TO RPs,Midlands,18/12/2019,50450,L,,Grants
"Ministry of Housing, Communities and Local Government",Homes England,THE RIVERSIDE GROUP,CAPITAL GRANTS TO RPs (NOT LA),North West,19/12/2019,9000,L,,Grants
"Ministry of Housing, Communities and Local Government",Homes England,THE RIVERSIDE GROUP,CAPITAL GRANTS TO RPs (NOT LA),North West,19/12/2019,1370850,L,,Grants
"Ministry of Housing, Communities and Local Government",Homes England,THE RIVERSIDE GROUP,CAPITAL GRANTS TO RPs (NOT LA),North West,19/12/2019,9000,L,,Grants
"Ministry of Housing, Communities and Local Government",Homes England,THE RIVERSIDE GROUP,CAPITAL GRANTS TO RPs (NOT LA),North West,24/12/2019,9000,L,,Grants
"Ministry of Housing, Communities and Local Government",Homes England,THE RIVERSIDE GROUP,CAPITAL GRANTS TO RPs (NOT LA),North West,24/12/2019,10000,L,,Grants
"Ministry of Housing, Communities and Local Government",Homes England,THE RIVERSIDE GROUP,CAPITAL GRANTS TO RPs (NOT LA),North West,24/12/2019,10000,L,,Grants
"Ministry of Housing, Communities and Local Government",Homes England,THE RIVERSIDE GROUP,REVENUE GRANTS TO RPs,Midlands,24/12/2019,82900,L,,Grants
"Ministry of Housing, Communities and Local Government",Homes England,IRWELL VALLEY HOUSING ASSOCIATION LTD,CAPITAL GRANTS TO RPs (NOT LA),North West,23/12/2019,541500,,,Grants
"Ministry of Housing, Communities and Local Government",Homes England,SOLON SOUTH WEST HOUSING ASSOCIATION LTD,CAPITAL GRANTS TO RPs (NOT LA),South West,24/12/2019,150000,,,Grants
"Ministry of Housing, Communities and Local Government",Homes England,STONEWATER (2) LTD,REVENUE GRANTS TO RPs,Midlands,11/12/2019,45400,L,,Grants
"Ministry of Housing, Communities and Local Government",Homes England,STONEWATER (2) LTD,REVENUE GRANTS TO RPs,Midlands,11/12/2019,42000,L,,Grants
"Ministry of Housing, Communities and Local Government",Homes England,SANCTUARY HOUSING ASSOCIATION,CAPITAL GRANTS TO RPs (NOT LA),East & South East,09/12/2019,151600,L,,Grants
"Ministry of Housing, Communities and Local Government",Homes England,SANCTUARY HOUSING ASSOCIATION,CAPITAL GRANTS TO RPs (NOT LA),East & South East,09/12/2019,87500,L,,Grants
"Ministry of Housing, Communities and Local Government",Homes England,SANCTUARY HOUSING ASSOCIATION,CAPITAL GRANTS TO RPs (NOT LA),South West,10/12/2019,264273,L,,Grants
"Ministry of Housing, Communities and Local Government",Homes England,SANCTUARY HOUSING ASSOCIATION,CAPITAL GRANTS TO RPs (NOT LA),South West,10/12/2019,190934,L,,Grants
"Ministry of Housing, Communities and Local Government",Homes England,SANCTUARY HOUSING ASSOCIATION,CAPITAL GRANTS TO RPs (NOT LA),South West,11/12/2019,167068,L,,Grants
"Ministry of Housing, Communities and Local Government",Homes England,SANCTUARY HOUSING ASSOCIATION,CAPITAL GRANTS TO RPs (NOT LA),South West,11/12/2019,231239,L,,Grants
"Ministry of Housing, Communities and Local Government",Homes England,SANCTUARY HOUSING ASSOCIATION,REVENUE GRANTS TO RPs,Midlands,17/12/2019,70600,L,,Grants
"Ministry of Housing, Communities and Local Government",Homes England,SANCTUARY HOUSING ASSOCIATION,CAPITAL GRANTS TO RPs (NOT LA),"North East, Yorkshire & the Humber",17/12/2019,797085,L,,Grants
"Ministry of Housing, Communities and Local Government",Homes England,SANCTUARY HOUSING ASSOCIATION,CAPITAL GRANTS TO RPs (NOT LA),Midlands,20/12/2019,80000,L,,Grants
"Ministry of Housing, Communities and Local Government",Homes England,SANCTUARY HOUSING ASSOCIATION,CAPITAL GRANTS TO RPs (NOT LA),"North East, Yorkshire & the Humber",24/12/2019,160000,L,,Grants
"Ministry of Housing, Communities and Local Government",Homes England,SANCTUARY HOUSING ASSOCIATION,CAPITAL GRANTS TO RPs (NOT LA),East & South East,24/12/2019,196000,L,,Grants
"Ministry of Housing, Communities and Local Government",Homes England,SANCTUARY HOUSING ASSOCIATION,CAPITAL GRANTS TO RPs (NOT LA),"North East, Yorkshire & the Humber",24/12/2019,697449,L,,Grants
"Ministry of Housing, Communities and Local Government",Homes England,SANCTUARY HOUSING ASSOCIATION,CAPITAL GRANTS TO RPs (NOT LA),East & South East,24/12/2019,756000,L,,Grants
"Ministry of Housing, Communities and Local Government",Homes England,SANCTUARY HOUSING ASSOCIATION,CAPITAL GRANTS TO RPs (NOT LA),South West,24/12/2019,298583,L,,Grants
"Ministry of Housing, Communities and Local Government",Homes England,SANCTUARY HOUSING ASSOCIATION,CAPITAL GRANTS TO RPs (NOT LA),Midlands,24/12/2019,270000,L,,Grants
"Ministry of Housing, Communities and Local Government",Homes England,SANCTUARY HOUSING ASSOCIATION,CAPITAL GRANTS TO RPs (NOT LA),Midlands,24/12/2019,280000,L,,Grants
"Ministry of Housing, Communities and Local Government",Homes England,STONEWATER (3) LTD,REVENUE GRANTS TO RPs,Midlands,20/12/2019,61000,L,,Grants
"Ministry of Housing, Communities and Local Government",Homes England,KNIGHTSTONE HOUSING ASSOCIATION LIMITED,CAPITAL GRANTS TO RPs (NOT LA),South West,24/12/2019,148750,,,Grants
"Ministry of Housing, Communities and Local Government",Homes England,KNIGHTSTONE HOUSING ASSOCIATION LIMITED,CAPITAL GRANTS TO RPs (NOT LA),South West,24/12/2019,96739,,,Grants
"Ministry of Housing, Communities and Local Government",Homes England,KNIGHTSTONE HOUSING ASSOCIATION LIMITED,CAPITAL GRANTS TO RPs (NOT LA),South West,24/12/2019,430000,,,Grants
"Ministry of Housing, Communities and Local Government",Homes England,KNIGHTSTONE HOUSING ASSOCIATION LIMITED,CAPITAL GRANTS TO RPs (NOT LA),South West,24/12/2019,175000,,,Grants
"Ministry of Housing, Communities and Local Government",Homes England,L M W DEVELOPMENT SOLUTIONS LIMITED,ST Fund Loans Additions,Economic Assets Hub,19/12/2019,55792.46,,,Loans
"Ministry of Housing, Communities and Local Government",Homes England,MOAT HOMES LIMITED,CAPITAL GRANTS TO RPs (NOT LA),East & South East,19/12/2019,13500,,,Grants
"Ministry of Housing, Communities and Local Government",Homes England,WEST MERCIA HOUSING GROUP,REVENUE GRANTS TO RPs,Midlands,24/12/2019,75500,,,Grants
"Ministry of Housing, Communities and Local Government",Homes England,THOMAS LISTER LTD,PROPERTY SERVICES,Midlands,03/12/2019,29168.56,S,80131800,Real estate management services
"Ministry of Housing, Communities and Local Government",Homes England,THOMAS LISTER LTD,OPEN MARKET VALUATION FEE,Programmes,05/12/2019,1950,S,80131800,Real estate management services
"Ministry of Housing, Communities and Local Government",Homes England,THOMAS LISTER LTD,MISC PROFESSIONAL FEES,North West,05/12/2019,2288.06,S,80131800,Real estate management services
"Ministry of Housing, Communities and Local Government",Homes England,THOMAS LISTER LTD,OPEN MARKET VALUATION FEE,Programmes,05/12/2019,2275,S,80131800,Real estate management services
"Ministry of Housing, Communities and Local Government",Homes England,THOMAS LISTER LTD,DISPOSAL FEES - PROPERTY AGENTS & ADVERTISING,North West,09/12/2019,2279.1,S,80131800,Real estate management services
"Ministry of Housing, Communities and Local Government",Homes England,THOMAS LISTER LTD,DISPOSAL FEES - PROPERTY AGENTS & ADVERTISING,Midlands,09/12/2019,3150,S,80131800,Real estate management services
"Ministry of Housing, Communities and Local Government",Homes England,THOMAS LISTER LTD,PROPERTY SERVICES,Midlands,09/12/2019,3220,S,80131800,Real estate management services
"Ministry of Housing, Communities and Local Government",Homes England,THOMAS LISTER LTD,OPEN MARKET VALUATION FEE,Programmes,18/12/2019,950,S,80131800,Real estate management services
"Ministry of Housing, Communities and Local Government",Homes England,PLACES FOR PEOPLE,Help To Buy Additions,East & South East,11/12/2019,51750,L,,Grants
"Ministry of Housing, Communities and Local Government",Homes England,PLACES FOR PEOPLE,REVENUE GRANTS TO RPs,Midlands,20/12/2019,45400,L,,Grants
"Ministry of Housing, Communities and Local Government",Homes England,PLACES FOR PEOPLE,Help To Buy Additions,East & South East,23/12/2019,55990,L,,Grants
"Ministry of Housing, Communities and Local Government",Homes England,PLACES FOR PEOPLE,Help To Buy Additions,East & South East,23/12/2019,68500,L,,Grants
"Ministry of Housing, Communities and Local Government",Homes England,PLACES FOR PEOPLE,REVENUE GRANTS TO RPs,Midlands,24/12/2019,64400,L,,Grants
"Ministry of Housing, Communities and Local Government",Homes England,SWAYTHLING HOUSING SOCIETY LIMITED,Homebuy Agents Fees,South West,03/12/2019,361,L,,Grants
"Ministry of Housing, Communities and Local Government",Homes England,SWAYTHLING HOUSING SOCIETY LIMITED,Homebuy Agents Fees,South West,03/12/2019,361,L,,Grants
"Ministry of Housing, Communities and Local Government",Homes England,SWAYTHLING HOUSING SOCIETY LIMITED,Homebuy Agents Fees,South West,03/12/2019,361,L,,Grants
"Ministry of Housing, Communities and Local Government",Homes England,SWAYTHLING HOUSING SOCIETY LIMITED,Homebuy Agents Fees,South West,03/12/2019,361,L,,Grants
"Ministry of Housing, Communities and Local Government",Homes England,SWAYTHLING HOUSING SOCIETY LIMITED,Homebuy Agents Fees,South West,03/12/2019,361,L,,Grants
"Ministry of Housing, Communities and Local Government",Homes England,SWAYTHLING HOUSING SOCIETY LIMITED,Homebuy Agents Fees,South West,03/12/2019,361,L,,Grants
"Ministry of Housing, Communities and Local Government",Homes England,SWAYTHLING HOUSING SOCIETY LIMITED,Homebuy Agents Fees,South West,03/12/2019,361,L,,Grants
"Ministry of Housing, Communities and Local Government",Homes England,SWAYTHLING HOUSING SOCIETY LIMITED,Homebuy Agents Fees,South West,03/12/2019,361,L,,Grants
"Ministry of Housing, Communities and Local Government",Homes England,SWAYTHLING HOUSING SOCIETY LIMITED,Homebuy Agents Fees,South West,03/12/2019,361,L,,Grants
"Ministry of Housing, Communities and Local Government",Homes England,SWAYTHLING HOUSING SOCIETY LIMITED,Homebuy Agents Fees,South West,03/12/2019,361,L,,Grants
"Ministry of Housing, Communities and Local Government",Homes England,SWAYTHLING HOUSING SOCIETY LIMITED,Homebuy Agents Fees,South West,03/12/2019,361,L,,Grants
"Ministry of Housing, Communities and Local Government",Homes England,SWAYTHLING HOUSING SOCIETY LIMITED,Homebuy Agents Fees,South West,03/12/2019,361,L,,Grants
"Ministry of Housing, Communities and Local Government",Homes England,SWAYTHLING HOUSING SOCIETY LIMITED,Homebuy Agents Fees,South West,03/12/2019,361,L,,Grants
"Ministry of Housing, Communities and Local Government",Homes England,SWAYTHLING HOUSING SOCIETY LIMITED,Homebuy Agents Fees,South West,03/12/2019,361,L,,Grants
"Ministry of Housing, Communities and Local Government",Homes England,SWAYTHLING HOUSING SOCIETY LIMITED,Homebuy Agents Fees,South West,04/12/2019,361,L,,Grants
"Ministry of Housing, Communities and Local Government",Homes England,SWAYTHLING HOUSING SOCIETY LIMITED,Homebuy Agents Fees,South West,04/12/2019,361,L,,Grants
"Ministry of Housing, Communities and Local Government",Homes England,SWAYTHLING HOUSING SOCIETY LIMITED,Homebuy Agents Fees,South West,04/12/2019,361,L,,Grants
"Ministry of Housing, Communities and Local Government",Homes England,SWAYTHLING HOUSING SOCIETY LIMITED,Homebuy Agents Fees,South West,04/12/2019,361,L,,Grants
"Ministry of Housing, Communities and Local Government",Homes England,SWAYTHLING HOUSING SOCIETY LIMITED,Homebuy Agents Fees,South West,04/12/2019,361,L,,Grants
"Ministry of Housing, Communities and Local Government",Homes England,SWAYTHLING HOUSING SOCIETY LIMITED,Homebuy Agents Fees,South West,04/12/2019,361,L,,Grants
"Ministry of Housing, Communities and Local Government",Homes England,SWAYTHLING HOUSING SOCIETY LIMITED,CAPITAL GRANTS TO RPs (NOT LA),South West,10/12/2019,646312,L,,Grants
"Ministry of Housing, Communities and Local Government",Homes England,SWAYTHLING HOUSING SOCIETY LIMITED,Homebuy Agents Fees,South West,04/12/2019,361,L,,Grants
"Ministry of Housing, Communities and Local Government",Homes England,SWAYTHLING HOUSING SOCIETY LIMITED,Homebuy Agents Fees,South West,04/12/2019,361,L,,Grants
"Ministry of Housing, Communities and Local Government",Homes England,SWAYTHLING HOUSING SOCIETY LIMITED,Homebuy Agents Fees,South West,04/12/2019,361,L,,Grants
"Ministry of Housing, Communities and Local Government",Homes England,SWAYTHLING HOUSING SOCIETY LIMITED,Homebuy Agents Fees,South West,04/12/2019,361,L,,Grants
"Ministry of Housing, Communities and Local Government",Homes England,SWAYTHLING HOUSING SOCIETY LIMITED,Homebuy Agents Fees,South West,04/12/2019,361,L,,Grants
"Ministry of Housing, Communities and Local Government",Homes England,SWAYTHLING HOUSING SOCIETY LIMITED,Homebuy Agents Fees,South West,04/12/2019,361,L,,Grants
"Ministry of Housing, Communities and Local Government",Homes England,SWAYTHLING HOUSING SOCIETY LIMITED,Homebuy Agents Fees,South West,05/12/2019,361,L,,Grants
"Ministry of Housing, Communities and Local Government",Homes England,SWAYTHLING HOUSING SOCIETY LIMITED,Homebuy Agents Fees,South West,05/12/2019,361,L,,Grants
"Ministry of Housing, Communities and Local Government",Homes England,SWAYTHLING HOUSING SOCIETY LIMITED,Homebuy Agents Fees,South West,05/12/2019,361,L,,Grants
"Ministry of Housing, Communities and Local Government",Homes England,SWAYTHLING HOUSING SOCIETY LIMITED,Homebuy Agents Fees,South West,05/12/2019,361,L,,Grants
"Ministry of Housing, Communities and Local Government",Homes England,SWAYTHLING HOUSING SOCIETY LIMITED,Homebuy Agents Fees,South West,05/12/2019,361,L,,Grants
"Ministry of Housing, Communities and Local Government",Homes England,SWAYTHLING HOUSING SOCIETY LIMITED,Homebuy Agents Fees,South West,05/12/2019,361,L,,Grants
"Ministry of Housing, Communities and Local Government",Homes England,SWAYTHLING HOUSING SOCIETY LIMITED,Homebuy Agents Fees,South West,05/12/2019,361,L,,Grants
"Ministry of Housing, Communities and Local Government",Homes England,SWAYTHLING HOUSING SOCIETY LIMITED,Homebuy Agents Fees,South West,05/12/2019,361,L,,Grants
"Ministry of Housing, Communities and Local Government",Homes England,SWAYTHLING HOUSING SOCIETY LIMITED,Homebuy Agents Fees,South West,05/12/2019,361,L,,Grants
"Ministry of Housing, Communities and Local Government",Homes England,SWAYTHLING HOUSING SOCIETY LIMITED,Homebuy Agents Fees,South West,05/12/2019,361,L,,Grants
"Ministry of Housing, Communities and Local Government",Homes England,SWAYTHLING HOUSING SOCIETY LIMITED,Homebuy Agents Fees,South West,05/12/2019,361,L,,Grants
"Ministry of Housing, Communities and Local Government",Homes England,SWAYTHLING HOUSING SOCIETY LIMITED,Homebuy Agents Fees,South West,05/12/2019,361,L,,Grants
"Ministry of Housing, Communities and Local Government",Homes England,SWAYTHLING HOUSING SOCIETY LIMITED,Homebuy Agents Fees,South West,05/12/2019,361,L,,Grants
"Ministry of Housing, Communities and Local Government",Homes England,SWAYTHLING HOUSING SOCIETY LIMITED,Homebuy Agents Fees,South West,05/12/2019,361,L,,Grants
"Ministry of Housing, Communities and Local Government",Homes England,SWAYTHLING HOUSING SOCIETY LIMITED,Homebuy Agents Fees,South West,05/12/2019,361,L,,Grants
"Ministry of Housing, Communities and Local Government",Homes England,SWAYTHLING HOUSING SOCIETY LIMITED,Homebuy Agents Fees,South West,05/12/2019,361,L,,Grants
"Ministry of Housing, Communities and Local Government",Homes England,SWAYTHLING HOUSING SOCIETY LIMITED,Homebuy Agents Fees,South West,05/12/2019,361,L,,Grants
"Ministry of Housing, Communities and Local Government",Homes England,SWAYTHLING HOUSING SOCIETY LIMITED,Homebuy Agents Fees,South West,05/12/2019,361,L,,Grants
"Ministry of Housing, Communities and Local Government",Homes England,SWAYTHLING HOUSING SOCIETY LIMITED,Homebuy Agents Fees,South West,05/12/2019,361,L,,Grants
"Ministry of Housing, Communities and Local Government",Homes England,SWAYTHLING HOUSING SOCIETY LIMITED,Homebuy Agents Fees,South West,06/12/2019,361,L,,Grants
"Ministry of Housing, Communities and Local Government",Homes England,SWAYTHLING HOUSING SOCIETY LIMITED,Homebuy Agents Fees,South West,06/12/2019,361,L,,Grants
"Ministry of Housing, Communities and Local Government",Homes England,SWAYTHLING HOUSING SOCIETY LIMITED,Homebuy Agents Fees,South West,06/12/2019,361,L,,Grants
"Ministry of Housing, Communities and Local Government",Homes England,SWAYTHLING HOUSING SOCIETY LIMITED,Homebuy Agents Fees,South West,06/12/2019,361,L,,Grants
"Ministry of Housing, Communities and Local Government",Homes England,SWAYTHLING HOUSING SOCIETY LIMITED,Homebuy Agents Fees,South West,06/12/2019,361,L,,Grants
"Ministry of Housing, Communities and Local Government",Homes England,SWAYTHLING HOUSING SOCIETY LIMITED,Homebuy Agents Fees,South West,06/12/2019,361,L,,Grants
"Ministry of Housing, Communities and Local Government",Homes England,SWAYTHLING HOUSING SOCIETY LIMITED,Homebuy Agents Fees,South West,06/12/2019,361,L,,Grants
"Ministry of Housing, Communities and Local Government",Homes England,SWAYTHLING HOUSING SOCIETY LIMITED,Homebuy Agents Fees,South West,06/12/2019,361,L,,Grants
"Ministry of Housing, Communities and Local Government",Homes England,SWAYTHLING HOUSING SOCIETY LIMITED,Homebuy Agents Fees,South West,06/12/2019,361,L,,Grants
"Ministry of Housing, Communities and Local Government",Homes England,SWAYTHLING HOUSING SOCIETY LIMITED,Homebuy Agents Fees,South West,06/12/2019,361,L,,Grants
"Ministry of Housing, Communities and Local Government",Homes England,SWAYTHLING HOUSING SOCIETY LIMITED,Homebuy Agents Fees,South West,09/12/2019,361,L,,Grants
"Ministry of Housing, Communities and Local Government",Homes England,SWAYTHLING HOUSING SOCIETY LIMITED,Homebuy Agents Fees,South West,09/12/2019,361,L,,Grants
"Ministry of Housing, Communities and Local Government",Homes England,SWAYTHLING HOUSING SOCIETY LIMITED,Homebuy Agents Fees,South West,09/12/2019,361,L,,Grants
"Ministry of Housing, Communities and Local Government",Homes England,SWAYTHLING HOUSING SOCIETY LIMITED,Homebuy Agents Fees,South West,09/12/2019,361,L,,Grants
"Ministry of Housing, Communities and Local Government",Homes England,SWAYTHLING HOUSING SOCIETY LIMITED,Homebuy Agents Fees,South West,09/12/2019,361,L,,Grants
"Ministry of Housing, Communities and Local Government",Homes England,SWAYTHLING HOUSING SOCIETY LIMITED,Homebuy Agents Fees,South West,09/12/2019,361,L,,Grants
"Ministry of Housing, Communities and Local Government",Homes England,SWAYTHLING HOUSING SOCIETY LIMITED,Homebuy Agents Fees,South West,09/12/2019,361,L,,Grants
"Ministry of Housing, Communities and Local Government",Homes England,SWAYTHLING HOUSING SOCIETY LIMITED,Homebuy Agents Fees,South West,10/12/2019,361,L,,Grants
"Ministry of Housing, Communities and Local Government",Homes England,SWAYTHLING HOUSING SOCIETY LIMITED,Homebuy Agents Fees,South West,10/12/2019,361,L,,Grants
"Ministry of Housing, Communities and Local Government",Homes England,SWAYTHLING HOUSING SOCIETY LIMITED,Homebuy Agents Fees,South West,10/12/2019,361,L,,Grants
"Ministry of Housing, Communities and Local Government",Homes England,SWAYTHLING HOUSING SOCIETY LIMITED,Homebuy Agents Fees,South West,10/12/2019,361,L,,Grants
"Ministry of Housing, Communities and Local Government",Homes England,SWAYTHLING HOUSING SOCIETY LIMITED,Homebuy Agents Fees,South West,10/12/2019,361,L,,Grants
"Ministry of Housing, Communities and Local Government",Homes England,SWAYTHLING HOUSING SOCIETY LIMITED,Homebuy Agents Fees,South West,10/12/2019,361,L,,Grants
"Ministry of Housing, Communities and Local Government",Homes England,SWAYTHLING HOUSING SOCIETY LIMITED,Homebuy Agents Fees,South West,10/12/2019,361,L,,Grants
"Ministry of Housing, Communities and Local Government",Homes England,SWAYTHLING HOUSING SOCIETY LIMITED,Homebuy Agents Fees,South West,10/12/2019,361,L,,Grants
"Ministry of Housing, Communities and Local Government",Homes England,SWAYTHLING HOUSING SOCIETY LIMITED,Homebuy Agents Fees,South West,10/12/2019,361,L,,Grants
"Ministry of Housing, Communities and Local Government",Homes England,SWAYTHLING HOUSING SOCIETY LIMITED,Homebuy Agents Fees,South West,10/12/2019,361,L,,Grants
"Ministry of Housing, Communities and Local Government",Homes England,SWAYTHLING HOUSING SOCIETY LIMITED,Homebuy Agents Fees,South West,10/12/2019,361,L,,Grants
"Ministry of Housing, Communities and Local Government",Homes England,SWAYTHLING HOUSING SOCIETY LIMITED,Homebuy Agents Fees,South West,10/12/2019,361,L,,Grants
"Ministry of Housing, Communities and Local Government",Homes England,SWAYTHLING HOUSING SOCIETY LIMITED,Homebuy Agents Fees,South West,10/12/2019,361,L,,Grants
"Ministry of Housing, Communities and Local Government",Homes England,SWAYTHLING HOUSING SOCIETY LIMITED,Homebuy Agents Fees,South West,10/12/2019,361,L,,Grants
"Ministry of Housing, Communities and Local Government",Homes England,SWAYTHLING HOUSING SOCIETY LIMITED,Homebuy Agents Fees,South West,10/12/2019,361,L,,Grants
"Ministry of Housing, Communities and Local Government",Homes England,SWAYTHLING HOUSING SOCIETY LIMITED,Homebuy Agents Fees,South West,10/12/2019,361,L,,Grants
"Ministry of Housing, Communities and Local Government",Homes England,SWAYTHLING HOUSING SOCIETY LIMITED,Homebuy Agents Fees,South West,10/12/2019,361,L,,Grants
"Ministry of Housing, Communities and Local Government",Homes England,SWAYTHLING HOUSING SOCIETY LIMITED,Homebuy Agents Fees,South West,11/12/2019,361,L,,Grants
"Ministry of Housing, Communities and Local Government",Homes England,SWAYTHLING HOUSING SOCIETY LIMITED,Homebuy Agents Fees,South West,11/12/2019,361,L,,Grants
"Ministry of Housing, Communities and Local Government",Homes England,SWAYTHLING HOUSING SOCIETY LIMITED,Homebuy Agents Fees,South West,11/12/2019,361,L,,Grants
"Ministry of Housing, Communities and Local Government",Homes England,SWAYTHLING HOUSING SOCIETY LIMITED,Homebuy Agents Fees,South West,11/12/2019,361,L,,Grants
"Ministry of Housing, Communities and Local Government",Homes England,SWAYTHLING HOUSING SOCIETY LIMITED,Homebuy Agents Fees,South West,11/12/2019,361,L,,Grants
"Ministry of Housing, Communities and Local Government",Homes England,SWAYTHLING HOUSING SOCIETY LIMITED,Homebuy Agents Fees,South West,11/12/2019,361,L,,Grants
"Ministry of Housing, Communities and Local Government",Homes England,SWAYTHLING HOUSING SOCIETY LIMITED,Homebuy Agents Fees,South West,11/12/2019,361,L,,Grants
"Ministry of Housing, Communities and Local Government",Homes England,SWAYTHLING HOUSING SOCIETY LIMITED,Homebuy Agents Fees,South West,12/12/2019,361,L,,Grants
"Ministry of Housing, Communities and Local Government",Homes England,SWAYTHLING HOUSING SOCIETY LIMITED,Homebuy Agents Fees,South West,12/12/2019,361,L,,Grants
"Ministry of Housing, Communities and Local Government",Homes England,SWAYTHLING HOUSING SOCIETY LIMITED,Homebuy Agents Fees,South West,12/12/2019,361,L,,Grants
"Ministry of Housing, Communities and Local Government",Homes England,SWAYTHLING HOUSING SOCIETY LIMITED,Homebuy Agents Fees,South West,12/12/2019,361,L,,Grants
"Ministry of Housing, Communities and Local Government",Homes England,SWAYTHLING HOUSING SOCIETY LIMITED,Homebuy Agents Fees,South West,12/12/2019,361,L,,Grants
"Ministry of Housing, Communities and Local Government",Homes England,SWAYTHLING HOUSING SOCIETY LIMITED,Homebuy Agents Fees,South West,12/12/2019,361,L,,Grants
"Ministry of Housing, Communities and Local Government",Homes England,SWAYTHLING HOUSING SOCIETY LIMITED,Homebuy Agents Fees,South West,12/12/2019,361,L,,Grants
"Ministry of Housing, Communities and Local Government",Homes England,SWAYTHLING HOUSING SOCIETY LIMITED,Homebuy Agents Fees,South West,12/12/2019,361,L,,Grants
"Ministry of Housing, Communities and Local Government",Homes England,SWAYTHLING HOUSING SOCIETY LIMITED,Homebuy Agents Fees,South West,12/12/2019,361,L,,Grants
"Ministry of Housing, Communities and Local Government",Homes England,SWAYTHLING HOUSING SOCIETY LIMITED,Homebuy Agents Fees,South West,12/12/2019,361,L,,Grants
"Ministry of Housing, Communities and Local Government",Homes England,SWAYTHLING HOUSING SOCIETY LIMITED,Homebuy Agents Fees,South West,12/12/2019,361,L,,Grants
"Ministry of Housing, Communities and Local Government",Homes England,SWAYTHLING HOUSING SOCIETY LIMITED,Homebuy Agents Fees,South West,12/12/2019,361,L,,Grants
"Ministry of Housing, Communities and Local Government",Homes England,SWAYTHLING HOUSING SOCIETY LIMITED,Homebuy Agents Fees,South West,12/12/2019,361,L,,Grants
"Ministry of Housing, Communities and Local Government",Homes England,SWAYTHLING HOUSING SOCIETY LIMITED,Homebuy Agents Fees,South West,12/12/2019,361,L,,Grants
"Ministry of Housing, Communities and Local Government",Homes England,SWAYTHLING HOUSING SOCIETY LIMITED,Homebuy Agents Fees,South West,12/12/2019,361,L,,Grants
"Ministry of Housing, Communities and Local Government",Homes England,SWAYTHLING HOUSING SOCIETY LIMITED,Homebuy Agents Fees,South West,12/12/2019,361,L,,Grants
"Ministry of Housing, Communities and Local Government",Homes England,SWAYTHLING HOUSING SOCIETY LIMITED,Homebuy Agents Fees,South West,18/12/2019,361,L,,Grants
"Ministry of Housing, Communities and Local Government",Homes England,SWAYTHLING HOUSING SOCIETY LIMITED,Homebuy Agents Fees,South West,12/12/2019,361,L,,Grants
"Ministry of Housing, Communities and Local Government",Homes England,SWAYTHLING HOUSING SOCIETY LIMITED,Homebuy Agents Fees,South West,12/12/2019,361,L,,Grants
"Ministry of Housing, Communities and Local Government",Homes England,SWAYTHLING HOUSING SOCIETY LIMITED,Homebuy Agents Fees,South West,13/12/2019,361,L,,Grants
"Ministry of Housing, Communities and Local Government",Homes England,SWAYTHLING HOUSING SOCIETY LIMITED,Homebuy Agents Fees,South West,13/12/2019,361,L,,Grants
"Ministry of Housing, Communities and Local Government",Homes England,SWAYTHLING HOUSING SOCIETY LIMITED,Homebuy Agents Fees,South West,13/12/2019,361,L,,Grants
"Ministry of Housing, Communities and Local Government",Homes England,SWAYTHLING HOUSING SOCIETY LIMITED,Homebuy Agents Fees,South West,13/12/2019,361,L,,Grants
"Ministry of Housing, Communities and Local Government",Homes England,SWAYTHLING HOUSING SOCIETY LIMITED,Homebuy Agents Fees,South West,13/12/2019,361,L,,Grants
"Ministry of Housing, Communities and Local Government",Homes England,SWAYTHLING HOUSING SOCIETY LIMITED,Homebuy Agents Fees,South West,13/12/2019,361,L,,Grants
"Ministry of Housing, Communities and Local Government",Homes England,SWAYTHLING HOUSING SOCIETY LIMITED,Homebuy Agents Fees,South West,13/12/2019,361,L,,Grants
"Ministry of Housing, Communities and Local Government",Homes England,SWAYTHLING HOUSING SOCIETY LIMITED,Homebuy Agents Fees,South West,13/12/2019,361,L,,Grants
"Ministry of Housing, Communities and Local Government",Homes England,SWAYTHLING HOUSING SOCIETY LIMITED,Homebuy Agents Fees,South West,13/12/2019,361,L,,Grants
"Ministry of Housing, Communities and Local Government",Homes England,SWAYTHLING HOUSING SOCIETY LIMITED,Homebuy Agents Fees,South West,13/12/2019,361,L,,Grants
"Ministry of Housing, Communities and Local Government",Homes England,SWAYTHLING HOUSING SOCIETY LIMITED,Homebuy Agents Fees,South West,13/12/2019,361,L,,Grants
"Ministry of Housing, Communities and Local Government",Homes England,SWAYTHLING HOUSING SOCIETY LIMITED,Homebuy Agents Fees,South West,13/12/2019,361,L,,Grants
"Ministry of Housing, Communities and Local Government",Homes England,SWAYTHLING HOUSING SOCIETY LIMITED,Homebuy Agents Fees,South West,16/12/2019,361,L,,Grants
"Ministry of Housing, Communities and Local Government",Homes England,SWAYTHLING HOUSING SOCIETY LIMITED,Homebuy Agents Fees,South West,16/12/2019,361,L,,Grants
"Ministry of Housing, Communities and Local Government",Homes England,SWAYTHLING HOUSING SOCIETY LIMITED,Homebuy Agents Fees,South West,16/12/2019,361,L,,Grants
"Ministry of Housing, Communities and Local Government",Homes England,SWAYTHLING HOUSING SOCIETY LIMITED,Homebuy Agents Fees,South West,16/12/2019,361,L,,Grants
"Ministry of Housing, Communities and Local Government",Homes England,SWAYTHLING HOUSING SOCIETY LIMITED,Homebuy Agents Fees,South West,16/12/2019,361,L,,Grants
"Ministry of Housing, Communities and Local Government",Homes England,SWAYTHLING HOUSING SOCIETY LIMITED,Homebuy Agents Fees,South West,16/12/2019,361,L,,Grants
"Ministry of Housing, Communities and Local Government",Homes England,SWAYTHLING HOUSING SOCIETY LIMITED,Homebuy Agents Fees,South West,16/12/2019,361,L,,Grants
"Ministry of Housing, Communities and Local Government",Homes England,SWAYTHLING HOUSING SOCIETY LIMITED,Homebuy Agents Fees,South West,16/12/2019,361,L,,Grants
"Ministry of Housing, Communities and Local Government",Homes England,SWAYTHLING HOUSING SOCIETY LIMITED,Homebuy Agents Fees,South West,16/12/2019,361,L,,Grants
"Ministry of Housing, Communities and Local Government",Homes England,SWAYTHLING HOUSING SOCIETY LIMITED,Homebuy Agents Fees,South West,16/12/2019,361,L,,Grants
"Ministry of Housing, Communities and Local Government",Homes England,SWAYTHLING HOUSING SOCIETY LIMITED,Homebuy Agents Fees,South West,16/12/2019,361,L,,Grants
"Ministry of Housing, Communities and Local Government",Homes England,SWAYTHLING HOUSING SOCIETY LIMITED,Homebuy Agents Fees,South West,16/12/2019,361,L,,Grants
"Ministry of Housing, Communities and Local Government",Homes England,SWAYTHLING HOUSING SOCIETY LIMITED,Homebuy Agents Fees,South West,16/12/2019,361,L,,Grants
